NUMERO_MANDATO;RIGA_MANDATO;QUIET;IMPORTO_RIGA;IMPORTO_MANDATO;BENEFICIARIO;CIG;TITOLO_PAGAMENTO;DATA_MANDATO;CAPITOLO;ARTICOLO;NUMERO_IMPEGNO;TITOLO;DESCR_TITOLO;LIVELLO_II;DESCR_LIVELLO_II;LIVELLO_III;DESCR_LIVELLO_III;LIVELLO_IV;DESCR_LIVELLO_IV;LIVELLO_V;DESCR_LIVELLO_V;DATA_PAG_EFF;
1079;1;0;"1.183,40";"1.183,40";MARCHEGIANO FRANCO;Z5C2456C44;SALDO Fatt.n. 2  del 17/07/2018 ACQUISTO NVR E HARD DISK 1T;03-10-2018;1276;0;190;1;Spese correnti;3;Acquisto di beni e servizi;2;Acquisto di servizi;9;Manutenzione ordinaria e riparazioni;6;Manutenzione ordinaria e riparazioni di macchine per ufficio;03-10-2018;
1080;1;0;"1.358,45";"14.783,82";COOPERATIVA PRIMAVERA Soc. Coop.;6355628E21;SALDO Fatt.n. 33/PA  del 30/06/2018 Fattura per gestione servizio mensa c/o nido S.Vito Paese mese di giugno 2018;03-10-2018;1422;0;279;1;Spese correnti;3;Acquisto di beni e servizi;2;Acquisto di servizi;15;Contratti di servizio pubblico;6;Contratti di servizio per le mense scolastiche;03-10-2018;
1080;2;0;"1.629,26";"14.783,82";COOPERATIVA PRIMAVERA Soc. Coop.;6355628E21;SALDO Fatt.n. 26/PA  del 31/05/2018 Fattura per gestione servizio mensa c/o nido San Vito Paese mese maggio 2018;03-10-2018;1422;0;279;1;Spese correnti;3;Acquisto di beni e servizi;2;Acquisto di servizi;15;Contratti di servizio pubblico;6;Contratti di servizio per le mense scolastiche;03-10-2018;
1080;3;0;"1.745,34";"14.783,82";COOPERATIVA PRIMAVERA Soc. Coop.;6355628E21;SALDO Fatt.n. 25/PA  del 31/05/2018 Fattura relativa al servizio di gestione Mensa c/o Scuola Materna S.Vito Paese mese di maggio 2018;03-10-2018;1422;0;279;1;Spese correnti;3;Acquisto di beni e servizi;2;Acquisto di servizi;15;Contratti di servizio pubblico;6;Contratti di servizio per le mense scolastiche;03-10-2018;
1080;4;0;"1.961,23";"14.783,82";COOPERATIVA PRIMAVERA Soc. Coop.;6355628E21;SALDO Fatt.n. 34/PA  del 30/06/2018 Fattura per gestione servizio mensa c/o scuola materna S.Apollinare mese di giugno 2018;03-10-2018;1422;0;279;1;Spese correnti;3;Acquisto di beni e servizi;2;Acquisto di servizi;15;Contratti di servizio pubblico;6;Contratti di servizio per le mense scolastiche;03-10-2018;
1080;5;0;"3.450,72";"14.783,82";COOPERATIVA PRIMAVERA Soc. Coop.;6355628E21;SALDO Fatt.n. 27/PA  del 31/05/2018 Fattura gestione servizio mensa c/o scuola materna S.Apollinare mese di maggio 2018;03-10-2018;1422;0;279;1;Spese correnti;3;Acquisto di beni e servizi;2;Acquisto di servizi;15;Contratti di servizio pubblico;6;Contratti di servizio per le mense scolastiche;03-10-2018;
1080;6;0;"4.638,82";"14.783,82";COOPERATIVA PRIMAVERA Soc. Coop.;6355628E21;SALDO Fatt.n. 32/PA  del 30/06/2018 Fattura per gestione servizio mensa c/o scuola materna S.Vito Paese mese di giugno 2018;03-10-2018;1422;0;279;1;Spese correnti;3;Acquisto di beni e servizi;2;Acquisto di servizi;15;Contratti di servizio pubblico;6;Contratti di servizio per le mense scolastiche;03-10-2018;
1081;1;0;"44,00";"44,00";AGENTE CONTABILE SBARAGLIA Giuliano; ;IMPEGNO DI SPESA E LIQUIDAZIONE PER ACQUISTO DI STAMPATI PER L'UFFICIO DEMOGRAFICO - CARTE D'IDENTITA';03-10-2018;1116;0;278;1;Spese correnti;3;Acquisto di beni e servizi;1;Acquisto di beni;2;Altri beni di consumo;1;"Carta, cancelleria e stampati";03-10-2018;
1082;1;0;"1.159,00";"3.477,00";SEBACH S.r.l.;CZ723CE97B;SALDO Fatt.n. V18083797  del 28/06/2018 Noleggio bagni chimici dal 12.06.2018 al 11.07.2018;03-10-2018;1757;0;148;1;Spese correnti;3;Acquisto di beni e servizi;2;Acquisto di servizi;7;Utilizzo di beni di terzi;8;Noleggi di impianti e macchinari;03-10-2018;
1082;2;0;"1.159,00";"3.477,00";SEBACH S.r.l.;CZ723CE97B;SALDO Fatt.n. V18100025  del 24/07/2018 Noleggio bagni chimici dal 12.07.250148 all'11.08.2018;03-10-2018;1757;0;148;1;Spese correnti;3;Acquisto di beni e servizi;2;Acquisto di servizi;7;Utilizzo di beni di terzi;8;Noleggi di impianti e macchinari;03-10-2018;
1082;3;0;"1.159,00";"3.477,00";SEBACH S.r.l.;CZ723CE97B;SALDO Fatt.n. V18115362  del 21/08/2018 Noleggio bagni chimici dal 12.08.2018 al 03.09.2018;03-10-2018;1757;0;148;1;Spese correnti;3;Acquisto di beni e servizi;2;Acquisto di servizi;7;Utilizzo di beni di terzi;8;Noleggi di impianti e macchinari;03-10-2018;
1083;1;0;"6.030,78";"6.030,78";BUCCO Alberto;ZD82271FDD;SALDO Fatt.n. E4  del 31/07/2018 Prestazioni con mezzi meccanici.;03-10-2018;2086;0;63;1;Spese correnti;3;Acquisto di beni e servizi;2;Acquisto di servizi;9;Manutenzione ordinaria e riparazioni;8;Manutenzione ordinaria e riparazioni di beni immobili;03-10-2018;
1085;1;0;"238,79";"1.558,33";ABACO S.P.A.;Z2A235E8A3;SALDO Fatt.n. 2018120002273  del 09/07/2018 Contratto gestione riscossione e accertamento ICP e pubbliche affissioni - GIUGNO 2018;03-10-2018;1193;0;121;1;Spese correnti;3;Acquisto di beni e servizi;2;Acquisto di servizi;3;Aggi di riscossione;999;Altri aggi di riscossione n.a.c.;03-10-2018;
1085;2;0;"1.319,54";"1.558,33";ABACO S.P.A.;Z2A235E8A3;SALDO Fatt.n. 2018120001922  del 07/06/2018 Contratto gestione riscossioner e accertamento pubblicit e pubbliche affissioni - MAGGIo 2018;03-10-2018;1193;0;121;1;Spese correnti;3;Acquisto di beni e servizi;2;Acquisto di servizi;3;Aggi di riscossione;999;Altri aggi di riscossione n.a.c.;03-10-2018;
1086;1;0;"424,44";"424,44";MUCCI Antonio;Z7D2467FD9;"SALDO Fatt.n. 6/E  del 28/08/2018  Fornitura e posa in opera, lavori di infilaggio e allaccio nuova linea elettrica per locali Informazioni Turistiche e Pronto Soccorso, presso ex stazione Ferrovia, San Vito Chietino";03-10-2018;2091;0;199;1;Spese correnti;3;Acquisto di beni e servizi;2;Acquisto di servizi;11;Prestazioni professionali e specialistiche;999;Altre prestazioni professionali e specialistiche n.a.c.;03-10-2018;
1087;1;0;"39.922,80";"39.922,80";OTTIMA S.r.l.;606897656D;SALDO Fatt.n. FATTPA 94_18  del 31/08/2018 Canone bimestrale contratto gestione pubblica illuminazione - Luglio/Agosto 2018.;03-10-2018;1939;0;176;1;Spese correnti;3;Acquisto di beni e servizi;2;Acquisto di servizi;15;Contratti di servizio pubblico;15;Contratti di servizio per l'illuminazione pubblica;03-10-2018;
1088;1;0;"2.013,00";"2.013,00";SGUVA RENTING SPA;Z861E8FA3F;SALDO Fatt.n. 6209  del 15/06/2018 CANONE DI NOLEGGIO N. 5 - Casetta acqua fontealma;03-10-2018;1573;0;41;1;Spese correnti;3;Acquisto di beni e servizi;2;Acquisto di servizi;15;Contratti di servizio pubblico;999;Altre spese per contratti di servizio pubblico;03-10-2018;
1089;1;0;"1.200,86";"4.803,44";TELECONTROL SERVICE SOC. COOP;XBC18983E9;"SALDO Fatt.n. 5/18  del 02/03/2018 Servizio di gestione, manutenzione e riqualificazione energetica impianti pubblica illuminazione - Periodo: Febbraio 2018";03-10-2018;1939;0;175;1;Spese correnti;3;Acquisto di beni e servizi;2;Acquisto di servizi;15;Contratti di servizio pubblico;15;Contratti di servizio per l'illuminazione pubblica;03-10-2018;
1089;2;0;"1.200,86";"4.803,44";TELECONTROL SERVICE SOC. COOP;XBC18983E9;"SALDO Fatt.n. 7/18  del 02/04/2018 Servizio di gestione, manutenzione e riqualificazione energetica impianti pubblica illuminazione - Periodo: Marzo 2018";03-10-2018;1939;0;175;1;Spese correnti;3;Acquisto di beni e servizi;2;Acquisto di servizi;15;Contratti di servizio pubblico;15;Contratti di servizio per l'illuminazione pubblica;03-10-2018;
1089;3;0;"1.200,86";"4.803,44";TELECONTROL SERVICE SOC. COOP;XBC18983E9;"SALDO Fatt.n. 8/18  del 02/05/2018 Servizio di gestione, manutenzione e riqualificazione energetica impianti pubblica illuminazione - Periodo: Aprile 2018";03-10-2018;1939;0;175;1;Spese correnti;3;Acquisto di beni e servizi;2;Acquisto di servizi;15;Contratti di servizio pubblico;15;Contratti di servizio per l'illuminazione pubblica;03-10-2018;
1089;4;0;"1.200,86";"4.803,44";TELECONTROL SERVICE SOC. COOP;XBC18983E9;"SALDO Fatt.n. 09/18  del 04/06/2018 Servizio di gestione, manutenzione e riqualificazione - Mese di maggio 2018.";03-10-2018;1939;0;175;1;Spese correnti;3;Acquisto di beni e servizi;2;Acquisto di servizi;15;Contratti di servizio pubblico;15;Contratti di servizio per l'illuminazione pubblica;03-10-2018;
1090;1;0;"62,22";"62,22";DECART S.r.l.;Z3C2410FB6;SALDO Fatt.n. 519/PA  del 23/07/2018 Fornitura stampati per ufficio Polizia Locale;03-10-2018;1268;0;169;1;Spese correnti;3;Acquisto di beni e servizi;1;Acquisto di beni;2;Altri beni di consumo;1;"Carta, cancelleria e stampati";03-10-2018;
1091;1;0;"446,58";"446,58";"AUTOFFICINE BARBONE DI C. &amp; W. BARBONE S.N.C.";Z262349A33;"SALDO Fatt.n. 7/99  del 14/05/2018 Prestazione effettuata presso la sede operativa di C.da Quercia del Corvo, 32, 66038 San Vito (CH)";03-10-2018;1276;0;94;1;Spese correnti;3;Acquisto di beni e servizi;2;Acquisto di servizi;9;Manutenzione ordinaria e riparazioni;6;Manutenzione ordinaria e riparazioni di macchine per ufficio;03-10-2018;
1097;1;0;"1.656,00";"1.656,00";MASCIARELLI Giovanni; ;LIQUIDAZIONE COMPETENZE PER COMPONENTE DELLA COMMISSIONE DI GARA;04-10-2018;1109;0;271;1;Spese correnti;3;Acquisto di beni e servizi;2;Acquisto di servizi;1;Organi e incarichi istituzionali dell'amministrazione;8;"Compensi agli organi istituzionali di revisione, di controllo ed altri incarichi istituzionali dell'amministrazione";04-10-2018;
1098;1;0;"480,00";"480,00";LA MORGIA Piergiorgio;ZDB249A894;SALDO Fatt.n. 1  del 20/08/2018 Prestazione musicale del 17.08.2018;04-10-2018;2091;0;245;1;Spese correnti;3;Acquisto di beni e servizi;2;Acquisto di servizi;11;Prestazioni professionali e specialistiche;999;Altre prestazioni professionali e specialistiche n.a.c.;04-10-2018;
1099;1;0;"550,00";"550,00";ASSOCIAZIONE CULTURALE GLI ARTIMANTI;ZD62427FB7;SALDO Fatt.n. FPA 1/18  del 06/09/2018 Prestazione professionale teatro 2 pini 18.07.2018;04-10-2018;2091;0;178;1;Spese correnti;3;Acquisto di beni e servizi;2;Acquisto di servizi;11;Prestazioni professionali e specialistiche;999;Altre prestazioni professionali e specialistiche n.a.c.;04-10-2018;
1100;1;0;"440,00";"440,00";ASSOCIAZIONE TEATRO POSSIBILE;Z0F234E561;SALDO Fatt.n. FATTPA 3_18  del 22/06/2018 Prestazione teatrale.;04-10-2018;2091;0;95;1;Spese correnti;3;Acquisto di beni e servizi;2;Acquisto di servizi;11;Prestazioni professionali e specialistiche;999;Altre prestazioni professionali e specialistiche n.a.c.;04-10-2018;
1101;1;0;"499,20";"499,20";PAOLINI Cesare;ZD7245EC86;SALDO Fatt.n. 1  del 23/08/2018 Prestazion e musicale del 14.08.2018;04-10-2018;2091;0;193;1;Spese correnti;3;Acquisto di beni e servizi;2;Acquisto di servizi;11;Prestazioni professionali e specialistiche;999;Altre prestazioni professionali e specialistiche n.a.c.;04-10-2018;
1102;1;0;"187,20";"187,20";PAOLINI Valentina;ZD7245EC86;SALDO Fatt.n. 1  del 23/08/2018 Prestazione musicale del 17.07.2018;04-10-2018;2091;0;193;1;Spese correnti;3;Acquisto di beni e servizi;2;Acquisto di servizi;11;Prestazioni professionali e specialistiche;999;Altre prestazioni professionali e specialistiche n.a.c.;04-10-2018;
1103;1;0;"390,00";"390,00";DE FLORIO DE GRANDIS Roberto;ZD7245EC86;SALDO Fatt.n. 1  del 23/08/2018 Prestazione musicale del 24.07.2018;04-10-2018;2091;0;193;1;Spese correnti;3;Acquisto di beni e servizi;2;Acquisto di servizi;11;Prestazioni professionali e specialistiche;999;Altre prestazioni professionali e specialistiche n.a.c.;04-10-2018;
1104;1;0;"648,00";"648,00";ANGELUCCI Paolo;ZD7245EC86;SALDO Fatt.n. 1  del 23/08/2018 Prestazione musicale del 07.08.2018;04-10-2018;2091;0;193;1;Spese correnti;3;Acquisto di beni e servizi;2;Acquisto di servizi;11;Prestazioni professionali e specialistiche;999;Altre prestazioni professionali e specialistiche n.a.c.;04-10-2018;
1105;1;0;"600,00";"600,00";CARBONE Remoaldo;ZD62427FB7;SALDO Fatt.n. 1  del 18/09/2018 Prestazione musicale del 29.062018;04-10-2018;2091;0;175;1;Spese correnti;3;Acquisto di beni e servizi;2;Acquisto di servizi;11;Prestazioni professionali e specialistiche;999;Altre prestazioni professionali e specialistiche n.a.c.;04-10-2018;
1106;1;0;"300,00";"300,00";TORTORA Pierluigi;ZD7245EC86;SALDO Fatt.n. 3  del 26/07/2018 Prestazione artistica occasionale del 26.07.2018;04-10-2018;2091;0;193;1;Spese correnti;3;Acquisto di beni e servizi;2;Acquisto di servizi;11;Prestazioni professionali e specialistiche;999;Altre prestazioni professionali e specialistiche n.a.c.;04-10-2018;
1107;1;0;"360,00";"360,00";MANCINI Achille;ZDB249A894;SALDO Fatt.n. 1  del 20/08/2018 Prestazione musicale del 16.08.2018;04-10-2018;2091;0;245;1;Spese correnti;3;Acquisto di beni e servizi;2;Acquisto di servizi;11;Prestazioni professionali e specialistiche;999;Altre prestazioni professionali e specialistiche n.a.c.;04-10-2018;
1108;1;0;"480,00";"480,00";VERI' Ciro;ZDB249A894;SALDO Fatt.n. 1  del 23/08/2018 Prestazione musicale del 19.08.2018;04-10-2018;2091;0;245;1;Spese correnti;3;Acquisto di beni e servizi;2;Acquisto di servizi;11;Prestazioni professionali e specialistiche;999;Altre prestazioni professionali e specialistiche n.a.c.;04-10-2018;
1109;1;0;"480,00";"480,00";CARABBA Alessandro;ZDB249A894;SALDO Fatt.n. 1  del 24/08/2018 Prestazione musicale16.08.2018;04-10-2018;2091;0;245;1;Spese correnti;3;Acquisto di beni e servizi;2;Acquisto di servizi;11;Prestazioni professionali e specialistiche;999;Altre prestazioni professionali e specialistiche n.a.c.;04-10-2018;
1110;1;0;"250,66";"250,66";TESORERIA PROVINCIALE DELLO STATO; ;Liquidazione spese visure 4^ trimestre 2017 e 1^ e 2^ bimestre 2018;04-10-2018;1278;0;259;1;Spese correnti;3;Acquisto di beni e servizi;2;Acquisto di servizi;5;Utenze e canoni;3;Accesso a banche dati e a pubblicazioni on line;04-10-2018;
1111;1;0;"50,00";"50,00";A.F.I.A. Associazione Famiglie Ipoacusici Abruzzesi;Z352108C30;ACCONTO Fatt.n. 191  del 07/06/2018 Servizio assistenza educativa didattica domiciliare - L-R- 32/97 - Maggio 2018;05-10-2018;1654;0;343;1;Spese correnti;3;Acquisto di beni e servizi;2;Acquisto di servizi;11;Prestazioni professionali e specialistiche;2;"Assistenza psicologica, sociale e religiosa";05-10-2018;
1112;1;0;"600,00";"600,00";A.F.I.A. Associazione Famiglie Ipoacusici Abruzzesi;Z352108C30;SALDO Fatt.n. 191  del 07/06/2018 Servizio assistenza educativa didattica domiciliare - L-R- 32/97 - Maggio 2018;05-10-2018;1654;0;342;1;Spese correnti;3;Acquisto di beni e servizi;2;Acquisto di servizi;11;Prestazioni professionali e specialistiche;2;"Assistenza psicologica, sociale e religiosa";05-10-2018;
1113;1;0;"597,00";"597,00";MUCCI Antonio;Z3A24C4CD9;SALDO Fatt.n. 9/E  del 18/09/2018 Prestazione da elettricista.;05-10-2018;1542;0;264;1;Spese correnti;3;Acquisto di beni e servizi;2;Acquisto di servizi;9;Manutenzione ordinaria e riparazioni;8;Manutenzione ordinaria e riparazioni di beni immobili;05-10-2018;
1114;1;0;"1.098,00";"1.098,00";MUCCI Antonio;Z3E24C4CF2;SALDO Fatt.n. 11/E  del 19/09/2018 Prestazioni da elettricista;05-10-2018;1366;0;266;1;Spese correnti;3;Acquisto di beni e servizi;2;Acquisto di servizi;9;Manutenzione ordinaria e riparazioni;8;Manutenzione ordinaria e riparazioni di beni immobili;05-10-2018;
1115;1;0;"1.159,00";"1.159,00";MUCCI Antonio;Z7824C4CE4;SALDO Fatt.n. 10/E  del 18/09/2018 Prestazioni da elettricista;05-10-2018;2171;0;265;1;Spese correnti;3;Acquisto di beni e servizi;2;Acquisto di servizi;9;Manutenzione ordinaria e riparazioni;8;Manutenzione ordinaria e riparazioni di beni immobili;05-10-2018;
1119;1;0;"6.023,95";"6.023,95";DIPENDENTI COMUNALI; ;STIPENDI MESE DI: OTTOBRE 18;22-10-2018;1001;0;0;1;Spese correnti;3;Acquisto di beni e servizi;2;Acquisto di servizi;1;Organi e incarichi istituzionali dell'amministrazione;1;Organi istituzionali dell'amministrazione - Indennit�;22-10-2018;
1163;1;0;"58.712,79";"58.712,79";ECO.LAN. S.p.A.; ;SALDO Fatt.n. 100681  del 31/07/2018 Servizio igiene urbana - Canone mese di Luglio 2018;23-10-2018;1745;0;47;1;Spese correnti;3;Acquisto di beni e servizi;2;Acquisto di servizi;15;Contratti di servizio pubblico;4;Contratti di servizio per la raccolta rifiuti;23-10-2018;
1165;1;0;"297,88";"297,88";AGENZIA DELLE ENTRATE - IVA; ;Versamento Iva su attivita' commerciale mese di ottobre 2018;25-10-2018;2154;0;295;1;Spese correnti;10;Altre spese correnti;3;Versamenti IVA a debito;1;Versamenti IVA a debito per le gestioni commerciali;1;Versamenti IVA a debito per le gestioni commerciali;25-10-2018;
1166;1;0;"4.026,00";"4.026,00";vivaio Paone;Z78235A957;SALDO Fatt.n. FATTPA 5_18  del 27/07/2018 Sistemazione aiuole lungomare di gualdo;25-10-2018;2171;0;99;1;Spese correnti;3;Acquisto di beni e servizi;2;Acquisto di servizi;9;Manutenzione ordinaria e riparazioni;12;Manutenzione ordinaria e riparazioni di terreni e beni materiali non prodotti;25-10-2018;
1167;1;0;"1.220,00";"1.220,00";MUCCI Antonio;ZF9245F8A1;SALDO Fatt.n. 8/E  del 18/09/2018 Prestazione da elettricista;25-10-2018;2091;0;192;1;Spese correnti;3;Acquisto di beni e servizi;2;Acquisto di servizi;11;Prestazioni professionali e specialistiche;999;Altre prestazioni professionali e specialistiche n.a.c.;25-10-2018;
1168;1;0;"1.527,44";"1.527,44";"F. &amp; C. COSTRUZIONI DI FLAMMINIO MARIO";X3218983F9;SALDO Fatt.n. 12/2018  del 11/07/2018 Prestazioni da muratore per tumulazione Altobelli Carlo;25-10-2018;3053;0;254;2;Spese in conto capitale;2;Investimenti fissi lordi e acquisto di terreni;1;Beni materiali;9;Beni immobili;15;Cimiteri;25-10-2018;
1169;1;0;"10,00";"83,20";ECONOMO COMUNALE - PETACCIA Silvana; ;Rimborso bolletta N.    26 del  10-08-18 Rimborso D'Addario Luigi per lavaggio autovettura vigili;25-10-2018;1120;0;20;1;Spese correnti;3;Acquisto di beni e servizi;1;Acquisto di beni;2;Altri beni di consumo;6;Materiale informatico;25-10-2018;
1169;2;0;"73,20";"83,20";ECONOMO COMUNALE - PETACCIA Silvana; ;Rimborso bolletta N.    27 del  10-08-18 Rimborso D'Addario Luigi per manutenzione poltrona ufficio vigili;25-10-2018;1120;0;20;1;Spese correnti;3;Acquisto di beni e servizi;1;Acquisto di beni;2;Altri beni di consumo;6;Materiale informatico;25-10-2018;
1170;1;0;"105,00";"105,00";ECONOMO COMUNALE - PETACCIA Silvana; ;Rimborso bolletta N.    25 del  02-08-18 Rimborso spese De marco Tiziana per acquisto prodotti farmaceutici per guardia medica;25-10-2018;1120;0;20;1;Spese correnti;3;Acquisto di beni e servizi;1;Acquisto di beni;2;Altri beni di consumo;999;Altri beni e materiali di consumo n.a.c.;25-10-2018;
1171;1;0;"78,50";"208,50";ECONOMO COMUNALE - PETACCIA Silvana; ;Rimborso bolletta N.    30 del  24-09-18 Saldo ricevuta fiscale n. 4904654 del 21.09.2018 Maggioli . Libri;25-10-2018;1121;0;167;1;Spese correnti;3;Acquisto di beni e servizi;1;Acquisto di beni;2;Altri beni di consumo;1;"Carta, cancelleria e stampati";25-10-2018;
1171;2;0;"130,00";"208,50";ECONOMO COMUNALE - PETACCIA Silvana; ;Rimborso bolletta N.    22 del  02-07-18 Rimborso spese Veri' Corrado per pagamento spese per duplicato carte di circolazione;25-10-2018;1121;0;167;1;Spese correnti;3;Acquisto di beni e servizi;1;Acquisto di beni;2;Altri beni di consumo;1;"Carta, cancelleria e stampati";25-10-2018;
1172;1;0;"5,50";"74,99";ECONOMO COMUNALE - PETACCIA Silvana; ;Rimborso bolletta N.    29 del  13-09-18 Rimborso spese telegramma Pagliaccio Rosa Maria;25-10-2018;1122;0;11;1;Spese correnti;3;Acquisto di beni e servizi;1;Acquisto di beni;2;Altri beni di consumo;1;"Carta, cancelleria e stampati";25-10-2018;
1172;2;0;"5,80";"74,99";ECONOMO COMUNALE - PETACCIA Silvana; ;Rimborso bolletta N.    24 del  16-07-18 Rimborso consigliere De Nobile per acquisto materiale di pulizia pe rlocali da adibire a biblioteca;25-10-2018;1122;0;11;1;Spese correnti;3;Acquisto di beni e servizi;1;Acquisto di beni;2;Altri beni di consumo;1;"Carta, cancelleria e stampati";25-10-2018;
1172;3;0;"14,19";"74,99";ECONOMO COMUNALE - PETACCIA Silvana; ;Rimborso bolletta N.    23 del  02-07-18 Rimborso spese consigliere De Nobile per acquisto acqua e bicchieri di carta;25-10-2018;1122;0;11;1;Spese correnti;3;Acquisto di beni e servizi;1;Acquisto di beni;2;Altri beni di consumo;1;"Carta, cancelleria e stampati";25-10-2018;
1172;4;0;"49,50";"74,99";ECONOMO COMUNALE - PETACCIA Silvana; ;Rimborso bolletta N.    31 del  27-09-18 Acquisto carta per fotocopiatrice alla Ditta Di Carta .;25-10-2018;1122;0;11;1;Spese correnti;3;Acquisto di beni e servizi;1;Acquisto di beni;2;Altri beni di consumo;1;"Carta, cancelleria e stampati";25-10-2018;
1173;1;0;"241,49";"241,49";ECONOMO COMUNALE - PETACCIA Silvana; ;Rimborso bolletta N.    28 del  17-08-18 Rimborso spese al Vice Sindaco Nardone per acquisto bevande e panini nella gioranta del 16.08.2018.;25-10-2018;1126;0;250;1;Spese correnti;3;Acquisto di beni e servizi;1;Acquisto di beni;2;Altri beni di consumo;11;Generi alimentari;25-10-2018;
1177;1;0;"2.200,00";"2.200,00";PUBLIRETI Srl; ;Presa atto piano di rientro Publireti srl;30-10-2018;2154;0;312;1;Spese correnti;10;Altre spese correnti;3;Versamenti IVA a debito;1;Versamenti IVA a debito per le gestioni commerciali;1;Versamenti IVA a debito per le gestioni commerciali;30-10-2018;
1178;1;0;"5.100,59";"5.100,59";PUBLIRETI Srl; ;Presa atto piano di rientro Publireti srl;30-10-2018;2154;0;312;1;Spese correnti;10;Altre spese correnti;3;Versamenti IVA a debito;1;Versamenti IVA a debito per le gestioni commerciali;1;Versamenti IVA a debito per le gestioni commerciali;30-10-2018;
1179;1;0;"10.465,01";"10.465,01";AMBITO SOCIALE DISTRETT. N. 11 - GESTIONE SOCIALE N. 2; ;"PIANO DI ZONA 2017 - LIQUIDAZIONE DELLA QUOTA DI COMPARTECIPAZIONE COMUNALE A CHIUSURA DELL'ANNO 2017 IN FAVORE DEL COMUNE DI FOSSACESIA, IN QUALITA' DI UFFICIO DI ZONA DI GESTIONE SOCIALE N. 2";30-10-2018;1794;0;292;1;Spese correnti;4;Trasferimenti correnti;1;Trasferimenti correnti a Amministrazioni Pubbliche;2;Trasferimenti correnti a Amministrazioni Locali;5;Trasferimenti correnti a Unioni di Comuni;30-10-2018;
1181;1;0;"20.000,00";"20.000,00";HELIAN S.r.l.;Z4A23A404A;ACCONTO Fatt.n. 13/PA  del 30/06/2018 Noleggio impianto parcheggio giugno/settembre 2018;06-11-2018;1922;0;131;1;Spese correnti;3;Acquisto di beni e servizi;2;Acquisto di servizi;7;Utilizzo di beni di terzi;8;Noleggi di impianti e macchinari;06-11-2018;
1182;1;0;"11.110,00";"11.110,00";HELIAN S.r.l.;Z4A23A404A;SALDO Fatt.n. 13/PA  del 30/06/2018 Noleggio impianto parcheggio giugno/settembre 2018;06-11-2018;1923;0;132;1;Spese correnti;3;Acquisto di beni e servizi;2;Acquisto di servizi;99;Altri servizi;999;Altri servizi diversi n.a.c.;06-11-2018;
1183;1;0;"12.168,29";"12.168,29";GECABUS SRLS;6337728A96;SALDO Fatt.n. 39/2018/PA  del 01/10/2018 Servizio trasporto scolastico - Settembre 2018;06-11-2018;1424;0;190;1;Spese correnti;3;Acquisto di beni e servizi;2;Acquisto di servizi;15;Contratti di servizio pubblico;2;Contratti di servizio di trasporto scolastico;06-11-2018;
1184;1;0;"259,41";"259,41";AUTORITA' DI REGOLAZIONE ENERGIA RETI E AMBIENTE; ;Contributo ARERA - Energia 2018 - Comune di San Vito Chietino - P.IVA: 00094240694;06-11-2018;1057;1;315;1;Spese correnti;3;Acquisto di beni e servizi;2;Acquisto di servizi;5;Utenze e canoni;999;Utenze e canoni per altri servizi n.a.c.;06-11-2018;
1190;1;0;"264,96";"264,96";I.N.P.S; ;LIQUIDAZIONE RITENUTE INPS SU COMPENSO MASCIARELLI;06-11-2018;1109;0;271;1;Spese correnti;3;Acquisto di beni e servizi;2;Acquisto di servizi;1;Organi e incarichi istituzionali dell'amministrazione;8;"Compensi agli organi istituzionali di revisione, di controllo ed altri incarichi istituzionali dell'amministrazione";06-11-2018;
1201;1;0;"27,78";"108,24";TELECOM ITALIA S.p.a.;XO4132F1CE;SALDO Fatt.n. 8P00211931  del 05/10/2018 Noleggio impianto principale* 01 marzo 18 - 30 settembre 18;09-11-2018;1036;0;322;1;Spese correnti;3;Acquisto di beni e servizi;2;Acquisto di servizi;5;Utenze e canoni;1;Telefonia fissa;09-11-2018;
1201;2;0;"35,27";"108,24";TELECOM ITALIA S.p.a.;XO4132F1CE;SALDO Fatt.n. 8P00211249  del 05/10/2018 Noleggio impianto principale* 01 marzo 18 - 30 settembre 18;09-11-2018;1036;0;322;1;Spese correnti;3;Acquisto di beni e servizi;2;Acquisto di servizi;5;Utenze e canoni;1;Telefonia fissa;09-11-2018;
1201;3;0;"45,19";"108,24";TELECOM ITALIA S.p.a.;XO4132F1CE;SALDO Fatt.n. 4220718800032083  del 05/10/2018 Noleggio impianto principale* 01 marzo 18 - 30 settembre 18;09-11-2018;1036;0;322;1;Spese correnti;3;Acquisto di beni e servizi;2;Acquisto di servizi;5;Utenze e canoni;1;Telefonia fissa;09-11-2018;
1202;1;0;"279,88";"563,59";ENEL ENERGIA S.p.A.; ;SALDO Fatt.n. 004811775560  del 06/10/2018 Fornitura energia elettrica mese di settembre 2018;09-11-2018;1057;1;9;1;Spese correnti;3;Acquisto di beni e servizi;2;Acquisto di servizi;5;Utenze e canoni;4;Energia elettrica;09-11-2018;
1202;2;0;"283,71";"563,59";ENEL ENERGIA S.p.A.; ;SALDO Fatt.n. 004811775561  del 06/10/2018 Fornitura energia elettrica mese di settembre 2018;09-11-2018;1057;1;9;1;Spese correnti;3;Acquisto di beni e servizi;2;Acquisto di servizi;5;Utenze e canoni;4;Energia elettrica;09-11-2018;
1203;1;0;"117,33";"253,92";ODOARDO ZECCA S.r.l.; ;SALDO Fatt.n. P2018/000164  del 27/09/2018 Bolletta Energia Elettrica relativa al periodo 01/07/2018 - 31/08/2018;09-11-2018;1344;0;106;1;Spese correnti;3;Acquisto di beni e servizi;2;Acquisto di servizi;5;Utenze e canoni;4;Energia elettrica;09-11-2018;
1203;2;0;"136,59";"253,92";ODOARDO ZECCA S.r.l.; ;SALDO Fatt.n. P2018/000179  del 27/09/2018 Bolletta Energia Elettrica relativa al periodo 01/07/2018 - 31/08/2018;09-11-2018;1344;0;106;1;Spese correnti;3;Acquisto di beni e servizi;2;Acquisto di servizi;5;Utenze e canoni;4;Energia elettrica;09-11-2018;
1204;1;0;"79,00";"1.069,77";ODOARDO ZECCA S.r.l.; ;SALDO Fatt.n. P2018/000168  del 27/09/2018 Bolletta Energia Elettrica relativa al periodo 01/07/2018 - 31/08/2018;09-11-2018;2124;0;117;1;Spese correnti;3;Acquisto di beni e servizi;2;Acquisto di servizi;5;Utenze e canoni;4;Energia elettrica;09-11-2018;
1204;2;0;"91,49";"1.069,77";ODOARDO ZECCA S.r.l.; ;SALDO Fatt.n. P2018/000169  del 27/09/2018 Bolletta Energia Elettrica relativa al periodo 01/07/2018 - 31/08/2018;09-11-2018;2124;0;117;1;Spese correnti;3;Acquisto di beni e servizi;2;Acquisto di servizi;5;Utenze e canoni;4;Energia elettrica;09-11-2018;
1204;3;0;"98,30";"1.069,77";ODOARDO ZECCA S.r.l.; ;SALDO Fatt.n. P2018/000163  del 27/09/2018 Bolletta Energia Elettrica relativa al periodo 01/07/2018 - 31/08/2018;09-11-2018;2124;0;117;1;Spese correnti;3;Acquisto di beni e servizi;2;Acquisto di servizi;5;Utenze e canoni;4;Energia elettrica;09-11-2018;
1204;4;0;"121,51";"1.069,77";ODOARDO ZECCA S.r.l.; ;SALDO Fatt.n. P2018/000166  del 27/09/2018 Bolletta Energia Elettrica relativa al periodo 01/07/2018 - 31/08/2018;09-11-2018;2124;0;117;1;Spese correnti;3;Acquisto di beni e servizi;2;Acquisto di servizi;5;Utenze e canoni;4;Energia elettrica;09-11-2018;
1204;5;0;"315,87";"1.069,77";ODOARDO ZECCA S.r.l.; ;SALDO Fatt.n. P2018/000173  del 27/09/2018 Bolletta Energia Elettrica relativa al periodo 01/07/2018 - 31/08/2018;09-11-2018;2124;0;117;1;Spese correnti;3;Acquisto di beni e servizi;2;Acquisto di servizi;5;Utenze e canoni;4;Energia elettrica;09-11-2018;
1204;6;0;"363,60";"1.069,77";ODOARDO ZECCA S.r.l.; ;SALDO Fatt.n. P2018/000180  del 27/09/2018 Bolletta Energia Elettrica relativa al periodo 01/07/2018 - 31/08/2018;09-11-2018;2124;0;117;1;Spese correnti;3;Acquisto di beni e servizi;2;Acquisto di servizi;5;Utenze e canoni;4;Energia elettrica;09-11-2018;
1205;1;0;"57,54";"131,57";ODOARDO ZECCA S.r.l.; ;SALDO Fatt.n. P2018/000171  del 27/09/2018 Bolletta Energia Elettrica relativa al periodo 01/07/2018 - 31/08/2018;09-11-2018;1656;0;111;1;Spese correnti;3;Acquisto di beni e servizi;2;Acquisto di servizi;5;Utenze e canoni;4;Energia elettrica;09-11-2018;
1205;2;0;"74,03";"131,57";ODOARDO ZECCA S.r.l.; ;SALDO Fatt.n. P2018/000159  del 27/09/2018 Bolletta Energia Elettrica relativa al periodo 01/07/2018 - 31/08/2018;09-11-2018;1656;0;111;1;Spese correnti;3;Acquisto di beni e servizi;2;Acquisto di servizi;5;Utenze e canoni;4;Energia elettrica;09-11-2018;
1206;1;0;"56,34";"813,03";ODOARDO ZECCA S.r.l.; ;SALDO Fatt.n. P2018/000176  del 27/09/2018 Bolletta Energia Elettrica relativa al periodo 01/08/2018 - 31/08/2018;09-11-2018;1370;0;107;1;Spese correnti;3;Acquisto di beni e servizi;2;Acquisto di servizi;5;Utenze e canoni;4;Energia elettrica;09-11-2018;
1206;2;0;"70,46";"813,03";ODOARDO ZECCA S.r.l.; ;SALDO Fatt.n. P2018/000170  del 27/09/2018 Bolletta Energia Elettrica relativa al periodo 01/07/2018 - 31/08/2018;09-11-2018;1370;0;107;1;Spese correnti;3;Acquisto di beni e servizi;2;Acquisto di servizi;5;Utenze e canoni;4;Energia elettrica;09-11-2018;
1206;3;0;"172,20";"813,03";ODOARDO ZECCA S.r.l.; ;SALDO Fatt.n. P2018/000146  del 27/08/2018 Bolletta Energia Elettrica relativa al periodo 01/07/2018 - 31/07/2018;09-11-2018;1370;0;107;1;Spese correnti;3;Acquisto di beni e servizi;2;Acquisto di servizi;5;Utenze e canoni;4;Energia elettrica;09-11-2018;
1206;4;0;"196,44";"813,03";ODOARDO ZECCA S.r.l.; ;SALDO Fatt.n. P2018/000187  del 23/10/2018 Bolletta Energia Elettrica relativa al periodo 01/09/2018 - 30/09/2018;09-11-2018;1370;0;107;1;Spese correnti;3;Acquisto di beni e servizi;2;Acquisto di servizi;5;Utenze e canoni;4;Energia elettrica;09-11-2018;
1206;5;0;"317,59";"813,03";ODOARDO ZECCA S.r.l.; ;SALDO Fatt.n. P2018/000175  del 27/09/2018 Bolletta Energia Elettrica relativa al periodo 01/07/2018 - 31/08/2018;09-11-2018;1370;0;107;1;Spese correnti;3;Acquisto di beni e servizi;2;Acquisto di servizi;5;Utenze e canoni;4;Energia elettrica;09-11-2018;
1207;1;0;"138,62";"500,95";ODOARDO ZECCA S.r.l.; ;SALDO Fatt.n. P2018/000162  del 27/09/2018 Bolletta Energia Elettrica relativa al periodo 01/08/2018 - 31/08/2018;09-11-2018;1387;0;108;1;Spese correnti;3;Acquisto di beni e servizi;2;Acquisto di servizi;5;Utenze e canoni;4;Energia elettrica;09-11-2018;
1207;2;0;"167,54";"500,95";ODOARDO ZECCA S.r.l.; ;SALDO Fatt.n. P2018/000144  del 27/08/2018 Bolletta Energia Elettrica relativa al periodo 01/07/2018 - 31/07/2018;09-11-2018;1387;0;108;1;Spese correnti;3;Acquisto di beni e servizi;2;Acquisto di servizi;5;Utenze e canoni;4;Energia elettrica;09-11-2018;
1207;3;0;"194,79";"500,95";ODOARDO ZECCA S.r.l.; ;SALDO Fatt.n. P2018/000185  del 23/10/2018 Bolletta Energia Elettrica relativa al periodo 01/09/2018 - 30/09/2018;09-11-2018;1387;0;108;1;Spese correnti;3;Acquisto di beni e servizi;2;Acquisto di servizi;5;Utenze e canoni;4;Energia elettrica;09-11-2018;
1208;1;0;"61,90";"1.493,73";ODOARDO ZECCA S.r.l.; ;SALDO Fatt.n. P2018/000158  del 27/09/2018 Bolletta Energia Elettrica relativa al periodo 01/07/2018 - 31/08/2018;09-11-2018;1036;0;104;1;Spese correnti;3;Acquisto di beni e servizi;2;Acquisto di servizi;5;Utenze e canoni;4;Energia elettrica;09-11-2018;
1208;2;0;"66,06";"1.493,73";ODOARDO ZECCA S.r.l.; ;SALDO Fatt.n. P2018/000177  del 27/09/2018 Bolletta Energia Elettrica relativa al periodo 01/07/2018 - 31/08/2018;09-11-2018;1036;0;104;1;Spese correnti;3;Acquisto di beni e servizi;2;Acquisto di servizi;5;Utenze e canoni;4;Energia elettrica;09-11-2018;
1208;3;0;"447,48";"1.493,73";ODOARDO ZECCA S.r.l.; ;SALDO Fatt.n. P2018/000147  del 27/08/2018 Bolletta Energia Elettrica relativa al periodo 01/07/2018 - 31/07/2018;09-11-2018;1036;0;104;1;Spese correnti;3;Acquisto di beni e servizi;2;Acquisto di servizi;5;Utenze e canoni;4;Energia elettrica;09-11-2018;
1208;4;0;"456,29";"1.493,73";ODOARDO ZECCA S.r.l.; ;SALDO Fatt.n. P2018/000178  del 27/09/2018 Bolletta Energia Elettrica relativa al periodo 01/08/2018 - 31/08/2018;09-11-2018;1036;0;104;1;Spese correnti;3;Acquisto di beni e servizi;2;Acquisto di servizi;5;Utenze e canoni;4;Energia elettrica;09-11-2018;
1208;5;0;"462,00";"1.493,73";ODOARDO ZECCA S.r.l.; ;SALDO Fatt.n. P2018/000188  del 23/10/2018 Bolletta Energia Elettrica relativa al periodo 01/09/2018 - 30/09/2018;09-11-2018;1036;0;104;1;Spese correnti;3;Acquisto di beni e servizi;2;Acquisto di servizi;5;Utenze e canoni;4;Energia elettrica;09-11-2018;
1209;1;0;"69,02";"69,02";ODOARDO ZECCA S.r.l.; ;SALDO Fatt.n. P2018/000154  del 27/09/2018 Bolletta Energia Elettrica relativa al periodo 01/07/2018 - 31/08/2018;09-11-2018;1269;0;105;1;Spese correnti;3;Acquisto di beni e servizi;2;Acquisto di servizi;5;Utenze e canoni;4;Energia elettrica;09-11-2018;
1210;1;0;"201,32";"201,32";ODOARDO ZECCA S.r.l.; ;SALDO Fatt.n. P2018/000181  del 27/09/2018 Bolletta Energia Elettrica relativa al periodo 01/07/2018 - 31/08/2018;09-11-2018;1505;0;110;1;Spese correnti;3;Acquisto di beni e servizi;2;Acquisto di servizi;5;Utenze e canoni;4;Energia elettrica;09-11-2018;
1211;1;0;"415,40";"415,40";ODOARDO ZECCA S.r.l.; ;SALDO Fatt.n. P2018/000156  del 27/09/2018 Bolletta Energia Elettrica relativa al periodo 01/07/2018 - 31/08/2018;09-11-2018;2084;0;116;1;Spese correnti;3;Acquisto di beni e servizi;2;Acquisto di servizi;5;Utenze e canoni;4;Energia elettrica;09-11-2018;
1212;1;0;"142,57";"142,57";ODOARDO ZECCA S.r.l.; ;SALDO Fatt.n. P2018/000161  del 27/09/2018 Bolletta Energia Elettrica relativa al periodo 01/07/2018 - 31/08/2018;09-11-2018;2026;0;119;1;Spese correnti;3;Acquisto di beni e servizi;2;Acquisto di servizi;5;Utenze e canoni;4;Energia elettrica;09-11-2018;
1213;1;0;"45,08";"155,16";ODOARDO ZECCA S.r.l.; ;SALDO Fatt.n. P2018/000155  del 27/09/2018 Bolletta Energia Elettrica relativa al periodo 01/07/2018 - 31/08/2018;09-11-2018;2174;0;118;1;Spese correnti;3;Acquisto di beni e servizi;2;Acquisto di servizi;5;Utenze e canoni;4;Energia elettrica;09-11-2018;
1213;2;0;"110,08";"155,16";ODOARDO ZECCA S.r.l.; ;SALDO Fatt.n. P2018/000167  del 27/09/2018 Bolletta Energia Elettrica relativa al periodo 01/07/2018 - 31/08/2018;09-11-2018;2174;0;118;1;Spese correnti;3;Acquisto di beni e servizi;2;Acquisto di servizi;5;Utenze e canoni;4;Energia elettrica;09-11-2018;
1214;1;0;"108,32";"382,27";ODOARDO ZECCA S.r.l.; ;SALDO Fatt.n. P2018/000172  del 27/09/2018 Bolletta Energia Elettrica relativa al periodo 01/07/2018 - 31/08/2018;09-11-2018;2006;0;115;1;Spese correnti;3;Acquisto di beni e servizi;2;Acquisto di servizi;5;Utenze e canoni;4;Energia elettrica;09-11-2018;
1214;2;0;"273,95";"382,27";ODOARDO ZECCA S.r.l.; ;SALDO Fatt.n. P2018/000157  del 27/09/2018 Bolletta Energia Elettrica relativa al periodo 01/07/2018 - 31/08/2018;09-11-2018;2006;0;115;1;Spese correnti;3;Acquisto di beni e servizi;2;Acquisto di servizi;5;Utenze e canoni;4;Energia elettrica;09-11-2018;
1215;1;0;"221,13";"221,13";ODOARDO ZECCA S.r.l.; ;SALDO Fatt.n. P2018/000174  del 27/09/2018 Bolletta Energia Elettrica relativa al periodo 01/07/2018 - 31/08/2018;09-11-2018;1829;0;113;1;Spese correnti;3;Acquisto di beni e servizi;2;Acquisto di servizi;5;Utenze e canoni;4;Energia elettrica;09-11-2018;
1216;1;0;"59,01";"922,20";ODOARDO ZECCA S.r.l.; ;SALDO Fatt.n. P2018/000186  del 23/10/2018 Bolletta Energia Elettrica relativa al periodo 01/09/2018 - 30/09/2018;09-11-2018;1826;0;112;1;Spese correnti;3;Acquisto di beni e servizi;2;Acquisto di servizi;5;Utenze e canoni;4;Energia elettrica;09-11-2018;
1216;2;0;"83,79";"922,20";ODOARDO ZECCA S.r.l.; ;SALDO Fatt.n. P2018/000165  del 27/09/2018 Bolletta Energia Elettrica relativa al periodo 01/08/2018 - 31/08/2018;09-11-2018;1826;0;112;1;Spese correnti;3;Acquisto di beni e servizi;2;Acquisto di servizi;5;Utenze e canoni;4;Energia elettrica;09-11-2018;
1216;3;0;"105,12";"922,20";ODOARDO ZECCA S.r.l.; ;SALDO Fatt.n. P2018/000145  del 27/08/2018 Bolletta Energia Elettrica relativa al periodo 01/07/2018 - 31/07/2018;09-11-2018;1826;0;112;1;Spese correnti;3;Acquisto di beni e servizi;2;Acquisto di servizi;5;Utenze e canoni;4;Energia elettrica;09-11-2018;
1216;4;0;"185,28";"922,20";ODOARDO ZECCA S.r.l.; ;SALDO Fatt.n. P2018/000143  del 27/08/2018 Bolletta Energia Elettrica relativa al periodo 01/07/2018 - 31/07/2018;09-11-2018;1826;0;112;1;Spese correnti;3;Acquisto di beni e servizi;2;Acquisto di servizi;5;Utenze e canoni;4;Energia elettrica;09-11-2018;
1216;5;0;"218,61";"922,20";ODOARDO ZECCA S.r.l.; ;SALDO Fatt.n. P2018/000160  del 27/09/2018 Bolletta Energia Elettrica relativa al periodo 01/08/2018 - 31/08/2018;09-11-2018;1826;0;112;1;Spese correnti;3;Acquisto di beni e servizi;2;Acquisto di servizi;5;Utenze e canoni;4;Energia elettrica;09-11-2018;
1216;6;0;"270,39";"922,20";ODOARDO ZECCA S.r.l.; ;SALDO Fatt.n. P2018/000184  del 23/10/2018 Bolletta Energia Elettrica relativa al periodo 01/09/2018 - 30/09/2018;09-11-2018;1826;0;112;1;Spese correnti;3;Acquisto di beni e servizi;2;Acquisto di servizi;5;Utenze e canoni;4;Energia elettrica;09-11-2018;
1217;1;0;"-21,37";"198,73";SANGROSERVIZI SRL; ;SALDO Fatt.n. P2018/219  del 25/09/2018 Bolletta Gas relativa al periodo 09/05/2018 - 31/08/2018;09-11-2018;1036;0;151;1;Spese correnti;3;Acquisto di beni e servizi;2;Acquisto di servizi;5;Utenze e canoni;6;Gas;09-11-2018;
1217;2;0;"53,88";"198,73";SANGROSERVIZI SRL; ;SALDO Fatt.n. P2018/228  del 25/09/2018 Bolletta Gas relativa al periodo 12/08/2017 - 31/08/2018;09-11-2018;1036;0;151;1;Spese correnti;3;Acquisto di beni e servizi;2;Acquisto di servizi;5;Utenze e canoni;6;Gas;09-11-2018;
1217;3;0;"70,50";"198,73";SANGROSERVIZI SRL; ;SALDO Fatt.n. P2018/232  del 25/09/2018 Bolletta Gas relativa al periodo 01/07/2018 - 31/08/2018;09-11-2018;1036;0;151;1;Spese correnti;3;Acquisto di beni e servizi;2;Acquisto di servizi;5;Utenze e canoni;6;Gas;09-11-2018;
1217;4;0;"95,72";"198,73";SANGROSERVIZI SRL; ;SALDO Fatt.n. P2018/222  del 25/09/2018 Bolletta Gas relativa al periodo 30/06/2018 - 31/08/2018;09-11-2018;1036;0;151;1;Spese correnti;3;Acquisto di beni e servizi;2;Acquisto di servizi;5;Utenze e canoni;6;Gas;09-11-2018;
1218;1;0;"21,22";"21,22";SANGROSERVIZI SRL; ;SALDO Fatt.n. P2018/229  del 25/09/2018 Bolletta Gas relativa al periodo 01/07/2018 - 31/08/2018;09-11-2018;1269;0;152;1;Spese correnti;3;Acquisto di beni e servizi;2;Acquisto di servizi;5;Utenze e canoni;6;Gas;09-11-2018;
1219;1;0;"6,30";"167,43";SANGROSERVIZI SRL; ;SALDO Fatt.n. P2018/231  del 25/09/2018 Bolletta Gas relativa al periodo 09/05/2018 - 31/08/2018;09-11-2018;1505;0;157;1;Spese correnti;3;Acquisto di beni e servizi;2;Acquisto di servizi;5;Utenze e canoni;6;Gas;09-11-2018;
1219;2;0;"161,13";"167,43";SANGROSERVIZI SRL; ;SALDO Fatt.n. P2018/233  del 25/09/2018 Bolletta Gas relativa al periodo 01/07/2018 - 31/08/2018;09-11-2018;1505;0;157;1;Spese correnti;3;Acquisto di beni e servizi;2;Acquisto di servizi;5;Utenze e canoni;6;Gas;09-11-2018;
1220;1;0;"21,17";"116,14";SANGROSERVIZI SRL; ;SALDO Fatt.n. P2018/236  del 25/09/2018 Bolletta Gas relativa al periodo 12/08/2017 - 31/08/2018;09-11-2018;2174;0;216;1;Spese correnti;3;Acquisto di beni e servizi;2;Acquisto di servizi;5;Utenze e canoni;6;Gas;09-11-2018;
1220;2;0;"94,97";"116,14";SANGROSERVIZI SRL; ;SALDO Fatt.n. P2018/237  del 25/09/2018 Bolletta Gas relativa al periodo 12/10/2017 - 31/08/2018;09-11-2018;2174;0;216;1;Spese correnti;3;Acquisto di beni e servizi;2;Acquisto di servizi;5;Utenze e canoni;6;Gas;09-11-2018;
1221;1;0;"-149,46";"39,51";SANGROSERVIZI SRL; ;SALDO Fatt.n. P2018/225  del 25/09/2018 Bolletta Gas relativa al periodo 09/05/2018 - 31/08/2018;09-11-2018;1370;0;154;1;Spese correnti;3;Acquisto di beni e servizi;2;Acquisto di servizi;5;Utenze e canoni;6;Gas;09-11-2018;
1221;2;0;"85,97";"39,51";SANGROSERVIZI SRL; ;SALDO Fatt.n. P2018/220  del 25/09/2018 Bolletta Gas relativa al periodo 30/06/2018 - 31/08/2018;09-11-2018;1370;0;154;1;Spese correnti;3;Acquisto di beni e servizi;2;Acquisto di servizi;5;Utenze e canoni;6;Gas;09-11-2018;
1221;3;0;"103,00";"39,51";SANGROSERVIZI SRL; ;SALDO Fatt.n. P2018/226  del 25/09/2018 Bolletta Gas relativa al periodo 30/06/2018 - 31/08/2018;09-11-2018;1370;0;154;1;Spese correnti;3;Acquisto di beni e servizi;2;Acquisto di servizi;5;Utenze e canoni;6;Gas;09-11-2018;
1222;1;0;"464,76";"464,76";SANGROSERVIZI SRL; ;SALDO Fatt.n. P2018/227  del 25/09/2018 Bolletta Gas relativa al periodo 30/06/2018 - 31/08/2018;09-11-2018;1387;0;155;1;Spese correnti;3;Acquisto di beni e servizi;2;Acquisto di servizi;5;Utenze e canoni;6;Gas;09-11-2018;
1223;1;0;"-64,87";"23,61";SANGROSERVIZI SRL; ;SALDO Fatt.n. P2018/221  del 25/09/2018 Bolletta Gas relativa al periodo 09/05/2018 - 31/08/2018;09-11-2018;1829;0;158;1;Spese correnti;3;Acquisto di beni e servizi;2;Acquisto di servizi;5;Utenze e canoni;6;Gas;09-11-2018;
1223;2;0;"-1,61";"23,61";SANGROSERVIZI SRL; ;SALDO Fatt.n. P2018/224  del 25/09/2018 Bolletta Gas relativa al periodo 09/05/2018 - 31/08/2018;09-11-2018;1829;0;158;1;Spese correnti;3;Acquisto di beni e servizi;2;Acquisto di servizi;5;Utenze e canoni;6;Gas;09-11-2018;
1223;3;0;"-0,76";"23,61";SANGROSERVIZI SRL; ;SALDO Fatt.n. P2018/223  del 25/09/2018 Bolletta Gas relativa al periodo 09/05/2018 - 31/08/2018;09-11-2018;1829;0;158;1;Spese correnti;3;Acquisto di beni e servizi;2;Acquisto di servizi;5;Utenze e canoni;6;Gas;09-11-2018;
1223;4;0;"90,85";"23,61";SANGROSERVIZI SRL; ;SALDO Fatt.n. P2018/230  del 25/09/2018 Bolletta Gas relativa al periodo 30/06/2018 - 31/08/2018;09-11-2018;1829;0;158;1;Spese correnti;3;Acquisto di beni e servizi;2;Acquisto di servizi;5;Utenze e canoni;6;Gas;09-11-2018;
1225;1;0;"6.023,95";"6.023,95";DIPENDENTI COMUNALI; ;STIPENDI MESE DI: NOVEMBRE 18;14-11-2018;1001;0;0;1;Spese correnti;3;Acquisto di beni e servizi;2;Acquisto di servizi;1;Organi e incarichi istituzionali dell'amministrazione;1;Organi istituzionali dell'amministrazione - Indennit�;14-11-2018;
1271;1;0;"2.200,00";"2.200,00";AGENZIA DELLE ENTRATE - IVA; ;Liquidazione Iva su fattura Publireti - 2^ rata;26-11-2018;2154;0;334;1;Spese correnti;10;Altre spese correnti;3;Versamenti IVA a debito;1;Versamenti IVA a debito per le gestioni commerciali;1;Versamenti IVA a debito per le gestioni commerciali;26-11-2018;
1272;1;0;"24.549,38";"24.549,38";AMBITO SOCIALE DISTRETT. N. 11 - GESTIONE SOCIALE N. 2; ;Liquidazione spesa piano di zona 2018 - 3^ trimestre 2018;26-11-2018;1794;0;281;1;Spese correnti;4;Trasferimenti correnti;1;Trasferimenti correnti a Amministrazioni Pubbliche;2;Trasferimenti correnti a Amministrazioni Locali;5;Trasferimenti correnti a Unioni di Comuni;26-11-2018;
1273;1;0;"1.138,50";"2.359,80";LEGA ITALIANA DEI DIRITTI DELL'AMINALE;ZD221F1539;SALDO Fatt.n. 36/2018  del 30/09/2018 Ricovero e mantenimento dei cani di proprieta' del comune - Mese di Settembre 2018;26-11-2018;1622;0;36;1;Spese correnti;3;Acquisto di beni e servizi;2;Acquisto di servizi;15;Contratti di servizio pubblico;11;Contratti di servizio per la lotta al randagismo;26-11-2018;
1273;2;0;"1.221,30";"2.359,80";LEGA ITALIANA DEI DIRITTI DELL'AMINALE;ZD221F1539;SALDO Fatt.n. 32/2018  del 31/08/2018 Ricovero e matenimento dei cani randagi - Agosto 2018;26-11-2018;1622;0;36;1;Spese correnti;3;Acquisto di beni e servizi;2;Acquisto di servizi;15;Contratti di servizio pubblico;11;Contratti di servizio per la lotta al randagismo;26-11-2018;
1274;1;0;"400,00";"400,00";PICCININO Lucio; ;TRANSAZIONE STRAGIUDIZIALE CONTROVERSIA PICCININO LUCIO / COMUNE DI SAN VITO CHIETINO - LIQUIDAZIONE.;26-11-2018;1096;0;324;1;Spese correnti;10;Altre spese correnti;5;"Spese dovute a sanzioni, risarcimenti e indennizzi";2;Spese per risarcimento danni;1;Spese per risarcimento danni;26-11-2018;
1275;1;0;"1.500,00";"1.500,00";STELLA Miranda; ;TRANSAZIONE STRAGIUDIZIALE CONTROVERSIA STELLA MIRANDA / COMUNE DI SAN VITO CHIETINO - LIQUIDAZIONE.;26-11-2018;1096;0;320;1;Spese correnti;10;Altre spese correnti;5;"Spese dovute a sanzioni, risarcimenti e indennizzi";2;Spese per risarcimento danni;1;Spese per risarcimento danni;26-11-2018;
1276;1;0;"-1.540,00";"1.540,00";ASSOCIAZIONE CULTURALE "TERRE DEL SUD";ZD7245EC86;SALDO Fatt.n. FATTPA 3_18  del 16/08/2018 Nota di credito su fattura n. 1;26-11-2018;2091;0;193;1;Spese correnti;3;Acquisto di beni e servizi;2;Acquisto di servizi;11;Prestazioni professionali e specialistiche;999;Altre prestazioni professionali e specialistiche n.a.c.;26-11-2018;
1276;2;0;"1.540,00";"1.540,00";ASSOCIAZIONE CULTURALE "TERRE DEL SUD";ZD7245EC86;SALDO Fatt.n. FATTPA 1_18  del 16/08/2018 Prestazione professionale del 9.8.2018.;26-11-2018;2091;0;193;1;Spese correnti;3;Acquisto di beni e servizi;2;Acquisto di servizi;11;Prestazioni professionali e specialistiche;999;Altre prestazioni professionali e specialistiche n.a.c.;26-11-2018;
1276;3;0;"1.540,00";"1.540,00";ASSOCIAZIONE CULTURALE "TERRE DEL SUD";ZD7245EC86;SALDO Fatt.n. FATTPA 4_18  del 29/08/2018 Prestazione professionale lungomare di gualdo;26-11-2018;2091;0;193;1;Spese correnti;3;Acquisto di beni e servizi;2;Acquisto di servizi;11;Prestazioni professionali e specialistiche;999;Altre prestazioni professionali e specialistiche n.a.c.;26-11-2018;
1281;1;0;"1.200,86";"3.602,58";TELECONTROL SERVICE SOC. COOP;XBC18983E9;"SALDO Fatt.n. 14/18  del 03/09/2018 SERVIZIO DI GESTIONE, MANUTENZIONE E RIQUALIFICAZIONE ENERGETICA IMPIANTI DI PUBBLICA ILLUMINAZIONE DEL COMUNE DI SAN VITO CHIETINO - MESE AGOSTO 2018";26-11-2018;1939;0;175;1;Spese correnti;3;Acquisto di beni e servizi;2;Acquisto di servizi;15;Contratti di servizio pubblico;15;Contratti di servizio per l'illuminazione pubblica;26-11-2018;
1281;2;0;"1.200,86";"3.602,58";TELECONTROL SERVICE SOC. COOP;XBC18983E9;"SALDO Fatt.n. 13/18  del 03/08/2018 SERVIZIO DI GESTIONE, MANUTENZIONE E RIQUALIFICAZIONE ENERGETICA IMPIANTI DI PUBBLICA ILLUMINAZIONE DEL COMUNE DI SAN VITO CHIETINO - MESE LUGLIO 2018";26-11-2018;1939;0;175;1;Spese correnti;3;Acquisto di beni e servizi;2;Acquisto di servizi;15;Contratti di servizio pubblico;15;Contratti di servizio per l'illuminazione pubblica;26-11-2018;
1281;3;0;"1.200,86";"3.602,58";TELECONTROL SERVICE SOC. COOP;XBC18983E9;"SALDO Fatt.n. 10/18  del 04/07/2018 SERVIZIO DI GESTIONE, MANUTENZIONE E RIQUALIFICAZIONE ENERGETICA IMPIANTI DI PUBBLICA ILLUMINAZIONE DEL COMUNE DI SAN VITO CHIETINO - MESE GIUGNO 2018";26-11-2018;1939;0;175;1;Spese correnti;3;Acquisto di beni e servizi;2;Acquisto di servizi;15;Contratti di servizio pubblico;15;Contratti di servizio per l'illuminazione pubblica;26-11-2018;
1282;1;0;"58.712,79";"117.425,58";ECO.LAN. S.p.A.; ;SALDO Fatt.n. 100810  del 31/08/2018 Servizio igiene urbana - Mese di agosto 2018;26-11-2018;1745;0;47;1;Spese correnti;3;Acquisto di beni e servizi;2;Acquisto di servizi;15;Contratti di servizio pubblico;4;Contratti di servizio per la raccolta rifiuti;26-11-2018;
1282;2;0;"58.712,79";"117.425,58";ECO.LAN. S.p.A.; ;SALDO Fatt.n. 100913  del 30/09/2018 Servizio igiene urbana - Mese di Settembre 2018;26-11-2018;1745;0;47;1;Spese correnti;3;Acquisto di beni e servizi;2;Acquisto di servizi;15;Contratti di servizio pubblico;4;Contratti di servizio per la raccolta rifiuti;26-11-2018;
1283;1;0;"330,00";"330,00";FASOLMUSIC.COOP;ZD7245EC86;SALDO Fatt.n. 110a  del 23/08/2018 Prestazione musicale del;26-11-2018;2091;0;193;1;Spese correnti;3;Acquisto di beni e servizi;2;Acquisto di servizi;11;Prestazioni professionali e specialistiche;999;Altre prestazioni professionali e specialistiche n.a.c.;26-11-2018;
1284;1;0;"600,00";"600,00";PATRICELLI Nicolino;ZD7245EC86;SALDO Fatt.n. 1  del 23/10/2018 Prestazione musicale estate sanvitese 2018;26-11-2018;2091;0;193;1;Spese correnti;3;Acquisto di beni e servizi;2;Acquisto di servizi;11;Prestazioni professionali e specialistiche;999;Altre prestazioni professionali e specialistiche n.a.c.;26-11-2018;
1285;1;0;"433,35";"433,35";VERI' ERMINIO; ;SALDO Fatt.n. 01PA  del 28/09/2018 Onorario professionale;26-11-2018;1058;0;347;1;Spese correnti;3;Acquisto di beni e servizi;2;Acquisto di servizi;99;Altri servizi;2;Altre spese legali;26-11-2018;
1286;1;0;"0,01";"292,29";ANXA ENERGY (PORTOBELLO);ZE32241565;ACCONTO Fatt.n. 87/B  del 30/09/2018 Fornitura carburnate per mezzi comunali - Settembre 2018;26-11-2018;1270;0;27;1;Spese correnti;3;Acquisto di beni e servizi;1;Acquisto di beni;2;Altri beni di consumo;2;"Carburanti, combustibili e lubrificanti";26-11-2018;
1286;2;0;"0,02";"292,29";ANXA ENERGY (PORTOBELLO);ZE32241565;ACCONTO Fatt.n. 83/B  del 31/08/2018 Fornitura carburante per mezzi comunali - Agosto 2018;26-11-2018;1270;0;27;1;Spese correnti;3;Acquisto di beni e servizi;1;Acquisto di beni;2;Altri beni di consumo;2;"Carburanti, combustibili e lubrificanti";26-11-2018;
1286;3;0;"78,26";"292,29";ANXA ENERGY (PORTOBELLO);ZE32241565;ACCONTO Fatt.n. 83/B  del 31/08/2018 Fornitura carburante per mezzi comunali - Agosto 2018;26-11-2018;1270;0;27;1;Spese correnti;3;Acquisto di beni e servizi;1;Acquisto di beni;2;Altri beni di consumo;2;"Carburanti, combustibili e lubrificanti";26-11-2018;
1286;4;0;"80,00";"292,29";ANXA ENERGY (PORTOBELLO);ZE32241565;ACCONTO Fatt.n. 87/B  del 30/09/2018 Fornitura carburnate per mezzi comunali - Settembre 2018;26-11-2018;1270;0;27;1;Spese correnti;3;Acquisto di beni e servizi;1;Acquisto di beni;2;Altri beni di consumo;2;"Carburanti, combustibili e lubrificanti";26-11-2018;
1286;5;0;"134,00";"292,29";ANXA ENERGY (PORTOBELLO);ZE32241565;ACCONTO Fatt.n. B/80  del 31/08/2018 Fornitura buoni carburante - Agosto 2018;26-11-2018;1270;0;27;1;Spese correnti;3;Acquisto di beni e servizi;1;Acquisto di beni;2;Altri beni di consumo;2;"Carburanti, combustibili e lubrificanti";26-11-2018;
1287;1;0;"18,77";"280,27";ANXA ENERGY (PORTOBELLO);ZE32241565;ACCONTO Fatt.n. B/80  del 31/08/2018 Fornitura buoni carburante - Agosto 2018;26-11-2018;1009;0;26;1;Spese correnti;3;Acquisto di beni e servizi;1;Acquisto di beni;2;Altri beni di consumo;2;"Carburanti, combustibili e lubrificanti";26-11-2018;
1287;2;0;"50,00";"280,27";ANXA ENERGY (PORTOBELLO);ZE32241565;ACCONTO Fatt.n. 87/B  del 30/09/2018 Fornitura carburnate per mezzi comunali - Settembre 2018;26-11-2018;1009;0;26;1;Spese correnti;3;Acquisto di beni e servizi;1;Acquisto di beni;2;Altri beni di consumo;2;"Carburanti, combustibili e lubrificanti";26-11-2018;
1287;3;0;"211,50";"280,27";ANXA ENERGY (PORTOBELLO);ZE32241565;SALDO Fatt.n. 83/B  del 31/08/2018 Fornitura carburante per mezzi comunali - Agosto 2018;26-11-2018;1009;0;26;1;Spese correnti;3;Acquisto di beni e servizi;1;Acquisto di beni;2;Altri beni di consumo;2;"Carburanti, combustibili e lubrificanti";26-11-2018;
1288;1;0;"211,51";"436,87";ANXA ENERGY (PORTOBELLO);ZE32241565;SALDO Fatt.n. 87/B  del 30/09/2018 Fornitura carburnate per mezzi comunali - Settembre 2018;26-11-2018;1926;0;30;1;Spese correnti;3;Acquisto di beni e servizi;1;Acquisto di beni;2;Altri beni di consumo;2;"Carburanti, combustibili e lubrificanti";26-11-2018;
1288;2;0;"225,36";"436,87";ANXA ENERGY (PORTOBELLO);ZE32241565;SALDO Fatt.n. B/80  del 31/08/2018 Fornitura buoni carburante - Agosto 2018;26-11-2018;1926;0;30;1;Spese correnti;3;Acquisto di beni e servizi;1;Acquisto di beni;2;Altri beni di consumo;2;"Carburanti, combustibili e lubrificanti";26-11-2018;
1289;1;0;"361,19";"361,19";ABACO S.P.A.;Z2A235E8A3;SALDO Fatt.n. 2018120002906  del 09/08/2018 Riscossione e accertamento dell'imposta pubblicita' e pubbliche affissioni - Luglio 2018.;26-11-2018;1193;0;121;1;Spese correnti;3;Acquisto di beni e servizi;2;Acquisto di servizi;3;Aggi di riscossione;999;Altri aggi di riscossione n.a.c.;26-11-2018;
1290;1;0;"329,40";"329,40";DECART S.r.l.;ZB12496A46;SALDO Fatt.n. 572/PA  del 31/08/2018 Fornitura buste verdine personalizzate;26-11-2018;1268;0;240;1;Spese correnti;3;Acquisto di beni e servizi;1;Acquisto di beni;2;Altri beni di consumo;1;"Carta, cancelleria e stampati";26-11-2018;
1291;1;0;"1.946,35";"1.946,35";POSTE ITALIANE S.p.A.; ;SALDO Fatt.n. 8718317588  del 21/09/2018 Fattura Elettronica relativa all'Identificativo Rendiconto 2098754652;26-11-2018;1036;0;90;1;Spese correnti;3;Acquisto di beni e servizi;2;Acquisto di servizi;5;Utenze e canoni;999;Utenze e canoni per altri servizi n.a.c.;26-11-2018;
1292;1;0;"750,00";"750,00";IT CREATIVE di D'ANGELO FRANCESCO;Z221E2C663;SALDO Fatt.n. 26/A  del 23/08/2018 GESTIONE DEI SERVIZI RELATIVI ALLA TRASPARENZA DELL'AZIONE AMMINISTRATIVA DELL'ENTE - BIMESTRE LUGLIO/AGOSTO 2018;26-11-2018;1062;0;17;1;Spese correnti;3;Acquisto di beni e servizi;2;Acquisto di servizi;19;Servizi informatici e di telecomunicazioni;1;Gestione e manutenzione applicazioni;26-11-2018;
1293;1;0;"3.600,00";"3.600,00";GRUPPO VOLONTARI PROTEZIONE CIVILE VALTRIGNO; ;LIQUIDAZIONE RELATIVA AL SERVIZIO DI ASSISTENZA BAGNANTI MESI DI LUGLIO ED AGOSTO 2018 - ASS. VALTRIGNO ANLUS;26-11-2018;1115;0;275;1;Spese correnti;3;Acquisto di beni e servizi;2;Acquisto di servizi;99;Altri servizi;999;Altri servizi diversi n.a.c.;26-11-2018;
1294;1;0;"488,00";"488,00";DMN SERVIZI AMBIENTALI;ZD92306FA7;SALDO Fatt.n. /ELE20180019  del 10/08/2018 Servizio con autospurgo.;26-11-2018;1542;0;92;1;Spese correnti;3;Acquisto di beni e servizi;2;Acquisto di servizi;9;Manutenzione ordinaria e riparazioni;8;Manutenzione ordinaria e riparazioni di beni immobili;26-11-2018;
1295;1;0;"976,43";"976,43";POSTE ITALIANE S.p.A.; ;SALDO Fatt.n. 8718278611  del 13/08/2018 Fattura Elettronica relativa all'Identificativo Rendiconto 2098280795;26-11-2018;1036;0;90;1;Spese correnti;3;Acquisto di beni e servizi;2;Acquisto di servizi;5;Utenze e canoni;999;Utenze e canoni per altri servizi n.a.c.;26-11-2018;
1297;1;0;"1.830,00";"1.830,00";URBANIA S.r.l.;Z5F235A781;SALDO Fatt.n. 38/A  del 21/05/2018 SISTEMAZIONE PARCO GIOCHI;26-11-2018;2171;0;98;1;Spese correnti;3;Acquisto di beni e servizi;2;Acquisto di servizi;9;Manutenzione ordinaria e riparazioni;5;Manutenzione ordinaria e riparazioni di attrezzature;26-11-2018;
1298;1;0;"385,00";"385,00";ASSOCIAZIONE METATEATRO ONLUS;ZDB249A894;SALDO Fatt.n. 6/05  del 19/09/2018 Prestazione artistica del 18.08.2018;26-11-2018;2091;0;245;1;Spese correnti;3;Acquisto di beni e servizi;2;Acquisto di servizi;11;Prestazioni professionali e specialistiche;999;Altre prestazioni professionali e specialistiche n.a.c.;26-11-2018;
1299;1;0;"480,00";"480,00";VINCIGUERRA Giovanni;ZD7245EC86;SALDO Fatt.n. 1  del 04/10/2018 Prestazione musicale del 02.08.2018;26-11-2018;2091;0;193;1;Spese correnti;3;Acquisto di beni e servizi;2;Acquisto di servizi;11;Prestazioni professionali e specialistiche;999;Altre prestazioni professionali e specialistiche n.a.c.;26-11-2018;
1300;1;0;"787,01";"787,01";LA FERRAMENTA di Pierangelo DI BATTISTA;Z7224C4D3C;SALDO Fatt.n. 65/PA  del 26/09/2018 Fornitrua materiali per manutenzione territorio.;26-11-2018;1386;0;269;1;Spese correnti;3;Acquisto di beni e servizi;1;Acquisto di beni;2;Altri beni di consumo;999;Altri beni e materiali di consumo n.a.c.;26-11-2018;
1301;1;0;"1.158,09";"1.158,09";LA FERRAMENTA di Pierangelo DI BATTISTA;Z0C24C4D32;SALDO Fatt.n. 64/PA  del 26/09/2018 Fornitrua materiale vario per immobili comunali.;26-11-2018;2173;0;270;1;Spese correnti;3;Acquisto di beni e servizi;1;Acquisto di beni;2;Altri beni di consumo;999;Altri beni e materiali di consumo n.a.c.;26-11-2018;
1302;1;0;"664,90";"664,90";LA FERRAMENTA di Pierangelo DI BATTISTA;Z2924C4D2B;SALDO Fatt.n. 66/PA  del 26/09/2018 Fornitrua vernici per segnaletica stradale;26-11-2018;1933;0;268;1;Spese correnti;3;Acquisto di beni e servizi;1;Acquisto di beni;2;Altri beni di consumo;999;Altri beni e materiali di consumo n.a.c.;26-11-2018;
1303;1;0;"199,30";"199,30";LA FERRAMENTA di Pierangelo DI BATTISTA;ZBE24C4D21;SALDO Fatt.n. 67/PA  del 26/09/2018 Fornitura armadietti in palstica e metallo;26-11-2018;1087;0;267;1;Spese correnti;3;Acquisto di beni e servizi;1;Acquisto di beni;2;Altri beni di consumo;5;Accessori per uffici e alloggi;26-11-2018;
1304;1;0;"216,00";"216,00";DI MECO PABLO DAVID;ZD7245EC86;SALDO Fatt.n. 1  del 25/10/2018 Prestazione musicale estate sanvitese;27-11-2018;2091;0;193;1;Spese correnti;3;Acquisto di beni e servizi;2;Acquisto di servizi;11;Prestazioni professionali e specialistiche;999;Altre prestazioni professionali e specialistiche n.a.c.;27-11-2018;
1305;1;0;"16.679,12";"16.679,12";GECABUS SRLS;6337728A96;ACCONTO Fatt.n. 45/2018/PA  del 31/10/2018 Servizio trasporto scolastico - Ottobre 2018;27-11-2018;1424;0;190;1;Spese correnti;3;Acquisto di beni e servizi;2;Acquisto di servizi;15;Contratti di servizio pubblico;2;Contratti di servizio di trasporto scolastico;27-11-2018;
1306;1;0;"1.573,31";"1.573,31";GECABUS SRLS;6337728A96;SALDO Fatt.n. 45/2018/PA  del 31/10/2018 Servizio trasporto scolastico - Ottobre 2018;27-11-2018;1424;0;291;1;Spese correnti;3;Acquisto di beni e servizi;2;Acquisto di servizi;15;Contratti di servizio pubblico;2;Contratti di servizio di trasporto scolastico;27-11-2018;
1307;1;0;"7.500,00";"7.500,00";CONSORZIO COOPERATIVE SOCIALI S.G.S.;ZB6242ECBF;ACCONTO Fatt.n. 1099/10  del 12/10/2018 Servizio colonia estiva per minori estate 2018;27-11-2018;1790;0;283;1;Spese correnti;3;Acquisto di beni e servizi;2;Acquisto di servizi;11;Prestazioni professionali e specialistiche;999;Altre prestazioni professionali e specialistiche n.a.c.;27-11-2018;
1308;1;0;"6.500,00";"6.500,00";CONSORZIO COOPERATIVE SOCIALI S.G.S.;ZB6242ECBF;SALDO Fatt.n. 1099/10  del 12/10/2018 Servizio colonia estiva per minori estate 2018;27-11-2018;1790;0;174;1;Spese correnti;3;Acquisto di beni e servizi;2;Acquisto di servizi;11;Prestazioni professionali e specialistiche;2;"Assistenza psicologica, sociale e religiosa";27-11-2018;
1309;1;0;"2.700,00";"2.700,00";COOPERATIVA SOCIALEL'ASSISTENZA- ONLUS;Z272520573;SALDO Fatt.n. 6/PA  del 08/10/2018 Integrazione retta periodo: Gennaio/Settembre 2018;27-11-2018;1797;0;282;1;Spese correnti;3;Acquisto di beni e servizi;2;Acquisto di servizi;15;Contratti di servizio pubblico;8;Contratti di servizio di assistenza sociale residenziale e semiresidenziale;27-11-2018;
1310;1;0;"300,00";"300,00";COOPERATIVA SOCIALEL'ASSISTENZA- ONLUS;Z5D20C14F5;SALDO Fatt.n. 5/PA  del 08/10/2018 Integrazione retta mese di dicembre 2017;27-11-2018;1795;0;249;1;Spese correnti;3;Acquisto di beni e servizi;2;Acquisto di servizi;99;Altri servizi;999;Altri servizi diversi n.a.c.;27-11-2018;
1311;1;0;"4,23";"424,45";AGENZIA DELLE ENTRATE - IVA; ;PAGAMENTO F24 TRAMITE ENTRATEL-PAGAMENTO F24 TRAMITE ENTRATEL - C.F.00094240694 - DISPOSIZIONE N.2030372214 (P.     212 -R.    1384);29-11-2018;2154;0;337;1;Spese correnti;10;Altre spese correnti;3;Versamenti IVA a debito;1;Versamenti IVA a debito per le gestioni commerciali;1;Versamenti IVA a debito per le gestioni commerciali;29-11-2018;
1311;2;0;"420,22";"424,45";AGENZIA DELLE ENTRATE - IVA; ;PAGAMENTO F24 TRAMITE ENTRATEL-PAGAMENTO F24 TRAMITE ENTRATEL - C.F.00094240694 - DISPOSIZIONE N.2030370826 (P.     213 -R.    1385);29-11-2018;2154;0;337;1;Spese correnti;10;Altre spese correnti;3;Versamenti IVA a debito;1;Versamenti IVA a debito per le gestioni commerciali;1;Versamenti IVA a debito per le gestioni commerciali;29-11-2018;
1312;1;0;"1.328,62";"2.828,62";VODAFONE Omnitel B.V.; ;ACCONTO Fatt.n. AI14608842  del 14/08/2018 Spese telefoniche giugno/agosto 2018;03-12-2018;1036;0;159;1;Spese correnti;3;Acquisto di beni e servizi;2;Acquisto di servizi;5;Utenze e canoni;1;Telefonia fissa;03-12-2018;
1312;2;0;"1.500,00";"2.828,62";VODAFONE Omnitel B.V.; ;ACCONTO Fatt.n. AI18602488  del 13/10/2018 Spese telefoniche periodo: 9 agosto 2018/8 ottobre 2018.;03-12-2018;1036;0;159;1;Spese correnti;3;Acquisto di beni e servizi;2;Acquisto di servizi;5;Utenze e canoni;1;Telefonia fissa;03-12-2018;
1313;1;0;"34,40";"124,40";VODAFONE Omnitel B.V.; ;ACCONTO Fatt.n. AI14608842  del 14/08/2018 Spese telefoniche giugno/agosto 2018;03-12-2018;1269;0;160;1;Spese correnti;3;Acquisto di beni e servizi;2;Acquisto di servizi;5;Utenze e canoni;1;Telefonia fissa;03-12-2018;
1313;2;0;"90,00";"124,40";VODAFONE Omnitel B.V.; ;ACCONTO Fatt.n. AI18602488  del 13/10/2018 Spese telefoniche periodo: 9 agosto 2018/8 ottobre 2018.;03-12-2018;1269;0;160;1;Spese correnti;3;Acquisto di beni e servizi;2;Acquisto di servizi;5;Utenze e canoni;1;Telefonia fissa;03-12-2018;
1314;1;0;"150,00";"310,81";VODAFONE Omnitel B.V.; ;ACCONTO Fatt.n. AI18602488  del 13/10/2018 Spese telefoniche periodo: 9 agosto 2018/8 ottobre 2018.;03-12-2018;1387;0;161;1;Spese correnti;3;Acquisto di beni e servizi;2;Acquisto di servizi;5;Utenze e canoni;1;Telefonia fissa;03-12-2018;
1314;2;0;"160,81";"310,81";VODAFONE Omnitel B.V.; ;ACCONTO Fatt.n. AI14608842  del 14/08/2018 Spese telefoniche giugno/agosto 2018;03-12-2018;1387;0;161;1;Spese correnti;3;Acquisto di beni e servizi;2;Acquisto di servizi;5;Utenze e canoni;1;Telefonia fissa;03-12-2018;
1315;1;0;"798,62";"1.597,24";VODAFONE Omnitel B.V.; ;ACCONTO Fatt.n. AI14608842  del 14/08/2018 Spese telefoniche giugno/agosto 2018;03-12-2018;1370;0;162;1;Spese correnti;3;Acquisto di beni e servizi;2;Acquisto di servizi;5;Utenze e canoni;1;Telefonia fissa;03-12-2018;
1315;2;0;"798,62";"1.597,24";VODAFONE Omnitel B.V.; ;ACCONTO Fatt.n. AI18602488  del 13/10/2018 Spese telefoniche periodo: 9 agosto 2018/8 ottobre 2018.;03-12-2018;1370;0;162;1;Spese correnti;3;Acquisto di beni e servizi;2;Acquisto di servizi;5;Utenze e canoni;1;Telefonia fissa;03-12-2018;
1316;1;0;"90,00";"180,00";VODAFONE Omnitel B.V.; ;ACCONTO Fatt.n. AI14608842  del 14/08/2018 Spese telefoniche giugno/agosto 2018;03-12-2018;1344;0;163;1;Spese correnti;3;Acquisto di beni e servizi;2;Acquisto di servizi;5;Utenze e canoni;1;Telefonia fissa;03-12-2018;
1316;2;0;"90,00";"180,00";VODAFONE Omnitel B.V.; ;ACCONTO Fatt.n. AI18602488  del 13/10/2018 Spese telefoniche periodo: 9 agosto 2018/8 ottobre 2018.;03-12-2018;1344;0;163;1;Spese correnti;3;Acquisto di beni e servizi;2;Acquisto di servizi;5;Utenze e canoni;1;Telefonia fissa;03-12-2018;
1317;1;0;"90,00";"180,00";VODAFONE Omnitel B.V.; ;ACCONTO Fatt.n. AI14608842  del 14/08/2018 Spese telefoniche giugno/agosto 2018;03-12-2018;1505;0;164;1;Spese correnti;3;Acquisto di beni e servizi;2;Acquisto di servizi;5;Utenze e canoni;1;Telefonia fissa;03-12-2018;
1317;2;0;"90,00";"180,00";VODAFONE Omnitel B.V.; ;ACCONTO Fatt.n. AI18602488  del 13/10/2018 Spese telefoniche periodo: 9 agosto 2018/8 ottobre 2018.;03-12-2018;1505;0;164;1;Spese correnti;3;Acquisto di beni e servizi;2;Acquisto di servizi;5;Utenze e canoni;1;Telefonia fissa;03-12-2018;
1318;1;0;"240,00";"480,00";VODAFONE Omnitel B.V.; ;ACCONTO Fatt.n. AI14608842  del 14/08/2018 Spese telefoniche giugno/agosto 2018;03-12-2018;1479;0;166;1;Spese correnti;3;Acquisto di beni e servizi;2;Acquisto di servizi;5;Utenze e canoni;1;Telefonia fissa;03-12-2018;
1318;2;0;"240,00";"480,00";VODAFONE Omnitel B.V.; ;ACCONTO Fatt.n. AI18602488  del 13/10/2018 Spese telefoniche periodo: 9 agosto 2018/8 ottobre 2018.;03-12-2018;1479;0;166;1;Spese correnti;3;Acquisto di beni e servizi;2;Acquisto di servizi;5;Utenze e canoni;1;Telefonia fissa;03-12-2018;
1319;1;0;"90,00";"180,00";VODAFONE Omnitel B.V.; ;SALDO Fatt.n. AI14608842  del 14/08/2018 Spese telefoniche giugno/agosto 2018;03-12-2018;2084;0;165;1;Spese correnti;3;Acquisto di beni e servizi;2;Acquisto di servizi;5;Utenze e canoni;1;Telefonia fissa;03-12-2018;
1319;2;0;"90,00";"180,00";VODAFONE Omnitel B.V.; ;SALDO Fatt.n. AI18602488  del 13/10/2018 Spese telefoniche periodo: 9 agosto 2018/8 ottobre 2018.;03-12-2018;2084;0;165;1;Spese correnti;3;Acquisto di beni e servizi;2;Acquisto di servizi;5;Utenze e canoni;1;Telefonia fissa;03-12-2018;
1327;1;0;"2.618,00";"2.618,00";DELLA FAZIA EMILIA MARIA; ;LIQUIDAZIONE RELATIVO AL RISARCIMENTO DANNI DI CUI AL GIUDIZIO PROMOSSO DAL SIGNOR FALCONE ANDREA DINANZI AL G.D.P. DI LANCIANO;06-12-2018;1096;0;321;1;Spese correnti;10;Altre spese correnti;5;"Spese dovute a sanzioni, risarcimenti e indennizzi";2;Spese per risarcimento danni;1;Spese per risarcimento danni;06-12-2018;
1328;1;0;"1.499,99";"1.499,99";BIANCHI Simona; ;SALDO Fatt.n. 05  del 09/10/2018 COMPENSO REVISORE UNICO DAL 01/07 AL 30/09/2018;06-12-2018;1010;0;238;1;Spese correnti;3;Acquisto di beni e servizi;2;Acquisto di servizi;1;Organi e incarichi istituzionali dell'amministrazione;8;"Compensi agli organi istituzionali di revisione, di controllo ed altri incarichi istituzionali dell'amministrazione";06-12-2018;
1335;1;0;"2.200,00";"2.200,00";AGENZIA DELLE ENTRATE - IVA; ;PRESA D'ATTO PIANO DI RIENTRO PUBLIRETI S.R.L. - IVA 3^ rata;11-12-2018;2154;0;361;1;Spese correnti;10;Altre spese correnti;3;Versamenti IVA a debito;1;Versamenti IVA a debito per le gestioni commerciali;1;Versamenti IVA a debito per le gestioni commerciali;11-12-2018;
1336;1;0;"6.023,95";"6.023,95";DIPENDENTI COMUNALI; ;STIPENDI MESE DI: DICEMBRE 18;11-12-2018;1001;0;0;1;Spese correnti;3;Acquisto di beni e servizi;2;Acquisto di servizi;1;Organi e incarichi istituzionali dell'amministrazione;1;Organi istituzionali dell'amministrazione - Indennit�;11-12-2018;
1381;1;0;"5.307,00";"5.307,00";CERICOLA S.r.l.;ZCA24B2D2A;SALDO Fatt.n. FATTPA 19_18  del 08/10/2018 Lavori di messa in sicurezza e successivo smaltimento  cemento-amianto abbondonati.;13-12-2018;3041;0;255;2;Spese in conto capitale;2;Investimenti fissi lordi e acquisto di terreni;2;Terreni e beni materiali non prodotti;1;Terreni;999;Altri terreni n.a.c.;13-12-2018;
1382;1;0;"922,32";"922,32";PIEMME ESTINTORI di MADOLINI V. & C. S.a.s.;ZA924F1C09;SALDO Fatt.n. 89/PA  del 31/10/2018 Manutenzione semestrale estintori;13-12-2018;2171;0;276;1;Spese correnti;3;Acquisto di beni e servizi;2;Acquisto di servizi;9;Manutenzione ordinaria e riparazioni;5;Manutenzione ordinaria e riparazioni di attrezzature;13-12-2018;
1383;1;0;"58.712,79";"58.712,79";ECO.LAN. S.p.A.; ;SALDO Fatt.n. 101028  del 31/10/2018 Servizio igiene urbana . Canone mensile Ottobre 2018;13-12-2018;1745;0;47;1;Spese correnti;3;Acquisto di beni e servizi;2;Acquisto di servizi;15;Contratti di servizio pubblico;4;Contratti di servizio per la raccolta rifiuti;13-12-2018;
1384;1;0;"1.200,86";"1.200,86";TELECONTROL SERVICE SOC. COOP;XBC18983E9;"SALDO Fatt.n. 15/18  del 04/10/2018 Servizio di gestione, manutenzione e riqualificazione energetica impianti di pubblica illuminazione - Settembre 2018";13-12-2018;1939;0;175;1;Spese correnti;3;Acquisto di beni e servizi;2;Acquisto di servizi;15;Contratti di servizio pubblico;15;Contratti di servizio per l'illuminazione pubblica;13-12-2018;
1385;1;0;"17.601,98";"17.601,98";HALLEY INFORMATICA S.R.L.;Z0824F18D7;SALDO Fatt.n. 13752/16/10  del 16/10/2018 ASSISTENZA SOFTWARE ANNO 2018 Determina n. 233   del   27/09/2018 Impegno di spesa n. 289 cap. 1053 Responsabile ordine dell'Ente ING. VERI' CORRADO;13-12-2018;1053;0;289;1;Spese correnti;3;Acquisto di beni e servizi;2;Acquisto di servizi;19;Servizi informatici e di telecomunicazioni;1;Gestione e manutenzione applicazioni;13-12-2018;
1386;1;0;"600,00";"600,00";CICCHITTI Luca;ZDB249A894;SALDO Fatt.n. 1  del 22/10/2018 Prestazione occasionale estate sanvitese 2018;13-12-2018;2091;0;245;1;Spese correnti;3;Acquisto di beni e servizi;2;Acquisto di servizi;11;Prestazioni professionali e specialistiche;999;Altre prestazioni professionali e specialistiche n.a.c.;13-12-2018;
1387;1;0;"395,97";"395,97";IEZZI Gabriele;ZEA2576D7C;SALDO Fatt.n. 11/E  del 10/11/2018 Prestazioni da meccanico di Massey Fergusson;13-12-2018;1927;0;310;1;Spese correnti;3;Acquisto di beni e servizi;2;Acquisto di servizi;9;Manutenzione ordinaria e riparazioni;1;"Manutenzione ordinaria e riparazioni di mezzi di trasporto ad uso civile, di sicurezza e ordine pubblico";13-12-2018;
1388;1;0;"4.992,53";"4.992,53";IEZZI Gabriele;Z3824C4D4A;ACCONTO Fatt.n. 12/E  del 10/11/2018 Prestazioni da meccanico su autocarro Antonelli;13-12-2018;1927;0;306;1;Spese correnti;3;Acquisto di beni e servizi;2;Acquisto di servizi;9;Manutenzione ordinaria e riparazioni;1;"Manutenzione ordinaria e riparazioni di mezzi di trasporto ad uso civile, di sicurezza e ordine pubblico";13-12-2018;
1389;1;0;"92,11";"92,11";HALLEY INFORMATICA S.R.L.;Z0E252D860;SALDO Fatt.n. 15333/16/10  del 20/11/2018 Fornitura nastro per stampante fujitsu 9400/7400.;13-12-2018;1116;0;297;1;Spese correnti;3;Acquisto di beni e servizi;1;Acquisto di beni;2;Altri beni di consumo;7;Altri materiali tecnico-specialistici non sanitari;13-12-2018;
1390;1;0;"78,69";"78,69";ANXA ENERGY (PORTOBELLO);ZE32241565;ACCONTO Fatt.n. 90/B  del 31/10/2018 Fornitura carburanti per automezzi comunali - Ottobre 2018;13-12-2018;1270;0;27;1;Spese correnti;3;Acquisto di beni e servizi;1;Acquisto di beni;2;Altri beni di consumo;2;"Carburanti, combustibili e lubrificanti";13-12-2018;
1391;1;0;"71,31";"71,31";ANXA ENERGY (PORTOBELLO);ZE32241565;ACCONTO Fatt.n. 90/B  del 31/10/2018 Fornitura carburanti per automezzi comunali - Ottobre 2018;13-12-2018;1009;0;26;1;Spese correnti;3;Acquisto di beni e servizi;1;Acquisto di beni;2;Altri beni di consumo;2;"Carburanti, combustibili e lubrificanti";13-12-2018;
1392;1;0;"539,34";"539,34";ANXA ENERGY (PORTOBELLO);ZE32241565;SALDO Fatt.n. 90/B  del 31/10/2018 Fornitura carburanti per automezzi comunali - Ottobre 2018;13-12-2018;1926;0;30;1;Spese correnti;3;Acquisto di beni e servizi;1;Acquisto di beni;2;Altri beni di consumo;2;"Carburanti, combustibili e lubrificanti";13-12-2018;
1393;1;0;"1.026,19";"1.026,19";SO.G.E.T. Spa Societa` Gestione Entrate e Tributi;X9C19F743C;ACCONTO Fatt.n. 573500  del 30/12/2016 Convenzione per l'esecuzione dell'attivita' propedeutica alla liquidazione ed all'accertamento dell'ICI.;13-12-2018;1188;0;65;1;Spese correnti;3;Acquisto di beni e servizi;2;Acquisto di servizi;99;Altri servizi;999;Altri servizi diversi n.a.c.;13-12-2018;
1394;1;0;"26,62";"26.961,66";SO.G.E.T. Spa Societa` Gestione Entrate e Tributi;ZA02517594;SALDO Fatt.n. 158400  del 23/03/2018 Rimborso spese notifiche a seguito provvedimenti di sgravio.;13-12-2018;1188;0;280;1;Spese correnti;3;Acquisto di beni e servizi;2;Acquisto di servizi;99;Altri servizi;999;Altri servizi diversi n.a.c.;13-12-2018;
1394;2;0;"1.218,40";"26.961,66";SO.G.E.T. Spa Societa` Gestione Entrate e Tributi;X9C19F743C;SALDO Fatt.n. 517600  del 08/11/2017 Spese postali invio accertamenti IMU;13-12-2018;1188;0;280;1;Spese correnti;3;Acquisto di beni e servizi;2;Acquisto di servizi;99;Altri servizi;999;Altri servizi diversi n.a.c.;13-12-2018;
1394;3;0;"3.750,20";"26.961,66";SO.G.E.T. Spa Societa` Gestione Entrate e Tributi;X9C19F743C;SALDO Fatt.n. 214800  del 13/04/2018 Recupero spese postali invio accertamenti IMU 2014.;13-12-2018;1188;0;280;1;Spese correnti;3;Acquisto di beni e servizi;2;Acquisto di servizi;99;Altri servizi;999;Altri servizi diversi n.a.c.;13-12-2018;
1394;4;0;"4.294,30";"26.961,66";SO.G.E.T. Spa Societa` Gestione Entrate e Tributi;X9C19F743C;SALDO Fatt.n. 67800  del 30/01/2018 Recipero spese postali per invii accertamenti IMU;13-12-2018;1188;0;280;1;Spese correnti;3;Acquisto di beni e servizi;2;Acquisto di servizi;99;Altri servizi;999;Altri servizi diversi n.a.c.;13-12-2018;
1394;5;0;"1.372,48";"26.961,66";SO.G.E.T. Spa Societa` Gestione Entrate e Tributi;ZA02517594;SALDO Fatt.n. 573500  del 30/12/2016 Convenzione per l'esecuzione dell'attivita' propedeutica alla liquidazione ed all'accertamento dell'ICI.;13-12-2018;1188;0;280;1;Spese correnti;3;Acquisto di beni e servizi;2;Acquisto di servizi;99;Altri servizi;999;Altri servizi diversi n.a.c.;13-12-2018;
1394;6;0;"5.716,82";"26.961,66";SO.G.E.T. Spa Societa` Gestione Entrate e Tributi;ZA02517594;SALDO Fatt.n. 640900  del 29/12/2017 Convenzione per l'esecuzione di attivita' di accertamento 01.01.2017/31.12.2017;13-12-2018;1188;0;280;1;Spese correnti;3;Acquisto di beni e servizi;2;Acquisto di servizi;99;Altri servizi;999;Altri servizi diversi n.a.c.;13-12-2018;
1394;7;0;"10.582,84";"26.961,66";SO.G.E.T. Spa Societa` Gestione Entrate e Tributi;ZA02517594;SALDO Fatt.n. 74800  del 01/02/2018 convenzione per l'esecuzione delle attivita' di accertamento 01.01.2017/31.12.2017.;13-12-2018;1188;0;280;1;Spese correnti;3;Acquisto di beni e servizi;2;Acquisto di servizi;99;Altri servizi;999;Altri servizi diversi n.a.c.;13-12-2018;
1395;1;0;"59,34";"263,01";ABACO S.P.A.;Z2A235E8A3;SALDO Fatt.n. 2018120004128  del 08/11/2018 Contratto gestione della riscossione e accertamento ICP e publbiche affissioni - OTTOBRE 2018;13-12-2018;1193;0;121;1;Spese correnti;3;Acquisto di beni e servizi;2;Acquisto di servizi;3;Aggi di riscossione;999;Altri aggi di riscossione n.a.c.;13-12-2018;
1395;2;0;"89,71";"263,01";ABACO S.P.A.;Z2A235E8A3;SALDO Fatt.n. 2018120003265  del 10/09/2018 Contratto gestione riscossione e accertamento ICP e Pubbliche affissioni - Agosto 2018;13-12-2018;1193;0;121;1;Spese correnti;3;Acquisto di beni e servizi;2;Acquisto di servizi;3;Aggi di riscossione;999;Altri aggi di riscossione n.a.c.;13-12-2018;
1395;3;0;"113,96";"263,01";ABACO S.P.A.;Z2A235E8A3;SALDO Fatt.n. 2018120003583  del 09/10/2018 Contratto di gestione della riscossione e accertamento ICP e diritto pubbliche affissioni;13-12-2018;1193;0;121;1;Spese correnti;3;Acquisto di beni e servizi;2;Acquisto di servizi;3;Aggi di riscossione;999;Altri aggi di riscossione n.a.c.;13-12-2018;
1396;1;0;"720,00";"720,00";DELLA CUNA FABIO;ZD7245EC86;SALDO Fatt.n. 1  del 31/10/2018 Prestazione musicale estate sanvitese;13-12-2018;2091;0;193;1;Spese correnti;3;Acquisto di beni e servizi;2;Acquisto di servizi;11;Prestazioni professionali e specialistiche;999;Altre prestazioni professionali e specialistiche n.a.c.;13-12-2018;
1397;1;0;"480,00";"480,00";BIANCHI Osvaldo;ZD62427FB7;SALDO Fatt.n. 1  del 30/10/2018 Prestazione occasionale estate sanvitese;13-12-2018;2091;0;179;1;Spese correnti;3;Acquisto di beni e servizi;2;Acquisto di servizi;11;Prestazioni professionali e specialistiche;999;Altre prestazioni professionali e specialistiche n.a.c.;13-12-2018;
1398;1;0;"400,00";"400,00";TURCHI Domenico Francesco;ZD7245EC86;SALDO Fatt.n. 1  del 08/11/2018 Prestazione occasionale estate sanvitese;13-12-2018;2091;0;193;1;Spese correnti;3;Acquisto di beni e servizi;2;Acquisto di servizi;11;Prestazioni professionali e specialistiche;999;Altre prestazioni professionali e specialistiche n.a.c.;13-12-2018;
1399;1;0;"250,00";"250,00";CASA EDITRICE LEARDINI GUERRINO S.R.L.;Z3324C54C4;ACCONTO Fatt.n. 1948 PA  del 24/09/2018 Fornitura materiale per Istituto Comprensivo;13-12-2018;1367;0;262;1;Spese correnti;3;Acquisto di beni e servizi;1;Acquisto di beni;2;Altri beni di consumo;1;"Carta, cancelleria e stampati";13-12-2018;
1400;1;0;"788,12";"788,12";CASA EDITRICE LEARDINI GUERRINO S.R.L.;Z3324C54C4;ACCONTO Fatt.n. 1948 PA  del 24/09/2018 Fornitura materiale per Istituto Comprensivo;13-12-2018;1388;0;263;1;Spese correnti;3;Acquisto di beni e servizi;1;Acquisto di beni;2;Altri beni di consumo;1;"Carta, cancelleria e stampati";13-12-2018;
1401;1;0;"244,96";"244,96";CASA EDITRICE LEARDINI GUERRINO S.R.L.;Z3324C54C4;SALDO Fatt.n. 1948 PA  del 24/09/2018 Fornitura materiale per Istituto Comprensivo;13-12-2018;1352;0;261;1;Spese correnti;3;Acquisto di beni e servizi;1;Acquisto di beni;2;Altri beni di consumo;1;"Carta, cancelleria e stampati";13-12-2018;
1402;1;0;"165,00";"165,00";DICARTA S.r.l..;Z272521428;ACCONTO Fatt.n. 69/01  del 26/10/2018 Fornitura carta per fotocopiatrici;13-12-2018;1352;0;287;1;Spese correnti;3;Acquisto di beni e servizi;1;Acquisto di beni;2;Altri beni di consumo;1;"Carta, cancelleria e stampati";13-12-2018;
1403;1;0;"165,00";"165,00";DICARTA S.r.l..;Z272521428;SALDO Fatt.n. 69/01  del 26/10/2018 Fornitura carta per fotocopiatrici;13-12-2018;1367;0;288;1;Spese correnti;3;Acquisto di beni e servizi;1;Acquisto di beni;2;Altri beni di consumo;1;"Carta, cancelleria e stampati";13-12-2018;
1404;1;0;"159,10";"159,10";CREDIT NETWORK e FINANCE; ;LIQUIDAZIONE POLIZZE FIDEJUSSORIE PER ATRAVERSAMENTO E FIANCHEGGIAMENTO STRADE -.;13-12-2018;2103;0;317;1;Spese correnti;10;Altre spese correnti;4;Premi di assicurazione;99;Altri premi di assicurazione n.a.c.;999;Altri premi di assicurazione n.a.c.;13-12-2018;
1405;1;0;"653,21";"653,21";DUGHERA ASSOCIAZIONI GROUP S.r.l. - Agente CATTOLICA; ;POLIZZA FIDEJUSSORIA PER ATRAVERSAMENTO E FIANCHEGGIAMENTO STRADE -LIQUIDAZIONE SOCIETA' CATTOLICA DI ASSICURAZIONE SOC. COOP.;13-12-2018;2103;0;317;1;Spese correnti;10;Altre spese correnti;4;Premi di assicurazione;99;Altri premi di assicurazione n.a.c.;999;Altri premi di assicurazione n.a.c.;13-12-2018;
1406;1;0;"3.466,80";"3.466,80";OTTIMA S.r.l.;606897656D;SALDO Fatt.n. FATTPA 74_18  del 10/07/2018 Conguaglio 2017 variazione prezzo energia elettrica;13-12-2018;1939;0;176;1;Spese correnti;3;Acquisto di beni e servizi;2;Acquisto di servizi;15;Contratti di servizio pubblico;15;Contratti di servizio per l'illuminazione pubblica;13-12-2018;
1407;1;0;"39.922,80";"39.922,80";OTTIMA S.r.l.;606897656D;SALDO Fatt.n. FATTPA 115_18  del 31/10/2018 Canone bimestrale Settembre/Ottobre 2018 - Gestione impianto pubblica illuminazione.;13-12-2018;1939;0;127;1;Spese correnti;3;Acquisto di beni e servizi;2;Acquisto di servizi;15;Contratti di servizio pubblico;15;Contratti di servizio per l'illuminazione pubblica;13-12-2018;
1408;1;0;"931,88";"931,88";MUCCI Antonio;Z4D25720DA;SALDO Fatt.n. 14/E  del 09/11/2018 Prestazione da elettricista per manutenzione impianto elettrico campo sportivo;13-12-2018;1828;0;304;1;Spese correnti;3;Acquisto di beni e servizi;2;Acquisto di servizi;9;Manutenzione ordinaria e riparazioni;8;Manutenzione ordinaria e riparazioni di beni immobili;13-12-2018;
1409;1;0;"669,83";"669,83";MUCCI Antonio;Z1C2572355;SALDO Fatt.n. 13/E  del 09/11/2018 Fornitura di materiale elettrico per manutenzione campo sportivo.;13-12-2018;1827;0;303;1;Spese correnti;3;Acquisto di beni e servizi;1;Acquisto di beni;2;Altri beni di consumo;999;Altri beni e materiali di consumo n.a.c.;13-12-2018;
1410;1;0;"364,30";"364,30";IEZZI Gabriele;ZD52576EB0;ACCONTO Fatt.n. 10/E  del 10/11/2018 Prestazione da meccanico su decespugliatore;13-12-2018;1808;0;307;1;Spese correnti;3;Acquisto di beni e servizi;2;Acquisto di servizi;9;Manutenzione ordinaria e riparazioni;12;Manutenzione ordinaria e riparazioni di terreni e beni materiali non prodotti;13-12-2018;
1411;1;0;"366,00";"366,00";IEZZI Gabriele;Z832576E28;SALDO Fatt.n. 9/E  del 10/11/2018 Prestazione da meccanico di ape;13-12-2018;1927;0;309;1;Spese correnti;3;Acquisto di beni e servizi;2;Acquisto di servizi;9;Manutenzione ordinaria e riparazioni;1;"Manutenzione ordinaria e riparazioni di mezzi di trasporto ad uso civile, di sicurezza e ordine pubblico";13-12-2018;
1412;1;0;"750,00";"750,00";IT CREATIVE di D'ANGELO FRANCESCO;Z221E2C663;SALDO Fatt.n. 32/A  del 22/10/2018 GESTIONE DEI SERVIZI RELATIVI ALLA TRASPARENZA DELL'AZIONE AMMINISTRATIVA DELL'ENTE - BIMESTRE SETTEMBRE/OTTOBRE 2018;13-12-2018;1062;0;17;1;Spese correnti;3;Acquisto di beni e servizi;2;Acquisto di servizi;19;Servizi informatici e di telecomunicazioni;1;Gestione e manutenzione applicazioni;13-12-2018;
1413;1;0;"286,03";"590,63";KYOCERA DOCUMENT SOLUTIONS ITALIA S.P.A:;Z5410BC1A4;SALDO Fatt.n. 1010507445  del 15/10/2018 Fotocopiatrici 23 - Lotto 1 - CIG 5462214994 - Durata del contratto 60;13-12-2018;1053;0;200;1;Spese correnti;3;Acquisto di beni e servizi;2;Acquisto di servizi;19;Servizi informatici e di telecomunicazioni;1;Gestione e manutenzione applicazioni;13-12-2018;
1413;2;0;"304,60";"590,63";KYOCERA DOCUMENT SOLUTIONS ITALIA S.P.A:;ZB00FAAFFA;SALDO Fatt.n. 1010509579  del 24/10/2018 Fotocopiatrici 23 - Lotto 1 - CIG 5462214994 - Durata del contratto 48;13-12-2018;1053;0;200;1;Spese correnti;3;Acquisto di beni e servizi;2;Acquisto di servizi;19;Servizi informatici e di telecomunicazioni;1;Gestione e manutenzione applicazioni;13-12-2018;
1414;1;0;"457,50";"457,50";A.E.D. SISTEM S.n.c.;ZEF22A0E3D;SALDO Fatt.n. 24  del 04/10/2018 NOLEGGIO 3 MULTIFUNZIONI MONOCROMATICHE (ft24);13-12-2018;1053;0;52;1;Spese correnti;3;Acquisto di beni e servizi;2;Acquisto di servizi;19;Servizi informatici e di telecomunicazioni;1;Gestione e manutenzione applicazioni;13-12-2018;
1415;1;0;"1.748,92";"1.748,92";POSTE ITALIANE S.p.A.; ;SALDO Fatt.n. 8718345200  del 16/10/2018 Fattura Elettronica relativa all'Identificativo Rendiconto 2099106630;13-12-2018;1036;0;90;1;Spese correnti;3;Acquisto di beni e servizi;2;Acquisto di servizi;5;Utenze e canoni;999;Utenze e canoni per altri servizi n.a.c.;13-12-2018;
1416;1;0;"1.377,00";"5.346,00";CROCE AZZURRA LANCIANO;Z9524D2978;"SALDO Fatt.n. 60/18/PA  del 30/09/2018 Trasporto settembre 2018 - Determinazione n 36, R.G. 214 - del 06/09/2018";13-12-2018;1362;0;260;1;Spese correnti;3;Acquisto di beni e servizi;2;Acquisto di servizi;11;Prestazioni professionali e specialistiche;2;"Assistenza psicologica, sociale e religiosa";13-12-2018;
1416;2;0;"1.863,00";"5.346,00";CROCE AZZURRA LANCIANO;Z9524D2978;"SALDO Fatt.n. 72/18/PA  del 30/11/2018 Trasporto novembre 2018 - Determinazione n 36, R.G. 214 - del 06/09/2018";13-12-2018;1362;0;260;1;Spese correnti;3;Acquisto di beni e servizi;2;Acquisto di servizi;11;Prestazioni professionali e specialistiche;2;"Assistenza psicologica, sociale e religiosa";13-12-2018;
1416;3;0;"2.106,00";"5.346,00";CROCE AZZURRA LANCIANO;Z9524D2978;"SALDO Fatt.n. 67/18/PA  del 31/10/2018 Trasporto ottobre 2018 - Determinazione n 36, R.G. 214 - del 06/09/2018";13-12-2018;1362;0;260;1;Spese correnti;3;Acquisto di beni e servizi;2;Acquisto di servizi;11;Prestazioni professionali e specialistiche;2;"Assistenza psicologica, sociale e religiosa";13-12-2018;
1417;1;0;"1.264,62";"1.264,62";CROCE AZZURRA LANCIANO;Z961FD58C5;SALDO Fatt.n. 34/18/PA  del 31/05/2018 Servizio Trasporto Disabili maggio 2018;13-12-2018;1362;0;257;1;Spese correnti;3;Acquisto di beni e servizi;2;Acquisto di servizi;11;Prestazioni professionali e specialistiche;2;"Assistenza psicologica, sociale e religiosa";13-12-2018;
1418;1;0;"560,96";"2.804,80";SOC. COOP. SOCIALE "SOCIAL-SERVICE" a r.l.;Z34230F0B9;SALDO Fatt.n. FATTPA 304_18  del 17/08/2018 Gestione biblioteca comunale - Luglio 2018.;13-12-2018;1474;0;81;1;Spese correnti;3;Acquisto di beni e servizi;2;Acquisto di servizi;99;Altri servizi;999;Altri servizi diversi n.a.c.;13-12-2018;
1418;2;0;"560,96";"2.804,80";SOC. COOP. SOCIALE "SOCIAL-SERVICE" a r.l.;Z34230F0B9;SALDO Fatt.n. FATTPA 321_18  del 31/08/2018 Gestione biblioteca comunale - Agosto 2018.;13-12-2018;1474;0;81;1;Spese correnti;3;Acquisto di beni e servizi;2;Acquisto di servizi;99;Altri servizi;999;Altri servizi diversi n.a.c.;13-12-2018;
1418;3;0;"560,96";"2.804,80";SOC. COOP. SOCIALE "SOCIAL-SERVICE" a r.l.;Z34230F0B9;SALDO Fatt.n. FATTPA 360_18  del 01/10/2018 Gerstione biblioteca comunale - Settembre 2018;13-12-2018;1474;0;81;1;Spese correnti;3;Acquisto di beni e servizi;2;Acquisto di servizi;99;Altri servizi;999;Altri servizi diversi n.a.c.;13-12-2018;
1418;4;0;"560,96";"2.804,80";SOC. COOP. SOCIALE "SOCIAL-SERVICE" a r.l.;Z34230F0B9;SALDO Fatt.n. FATTPA 384_18  del 23/11/2018 Gestione biblioteca comunale - Ottobre 2018;13-12-2018;1474;0;81;1;Spese correnti;3;Acquisto di beni e servizi;2;Acquisto di servizi;99;Altri servizi;999;Altri servizi diversi n.a.c.;13-12-2018;
1418;5;0;"560,96";"2.804,80";SOC. COOP. SOCIALE "SOCIAL-SERVICE" a r.l.;Z34230F0B9;SALDO Fatt.n. FATTPA 406_18  del 30/11/2018 Gestione biblioteca comunale - Novembre 2018;13-12-2018;1474;0;81;1;Spese correnti;3;Acquisto di beni e servizi;2;Acquisto di servizi;99;Altri servizi;999;Altri servizi diversi n.a.c.;13-12-2018;
1419;1;0;"15.548,37";"15.548,37";GECABUS SRLS;6337728A96;SALDO Fatt.n. 50/2018/PA  del 30/11/2018 Servizio trasporto mese di novembre 2018;13-12-2018;1424;0;291;1;Spese correnti;3;Acquisto di beni e servizi;2;Acquisto di servizi;15;Contratti di servizio pubblico;2;Contratti di servizio di trasporto scolastico;13-12-2018;
1420;1;0;"642,46";"642,46";MEDIASS GPA S.p.A.;ZCC25E68A3;Liquidazione spesa RCpatrimoniale nuova polizza colpa lieve - 25.10.2018/31.12.2018.;13-12-2018;1104;0;0;1;Spese correnti;10;Altre spese correnti;4;Premi di assicurazione;1;Premi di assicurazione contro i danni;3;Premi di assicurazione per responsabilit� civile verso terzi;13-12-2018;
1421;1;0;"5,88";"19,59";COMUNE; ;LIQUIDAZIONE SPESE DI NOTIFICHE .;17-12-2018;1280;0;233;1;Spese correnti;4;Trasferimenti correnti;1;Trasferimenti correnti a Amministrazioni Pubbliche;2;Trasferimenti correnti a Amministrazioni Locali;3;Trasferimenti correnti a Comuni;17-12-2018;
1421;2;0;"5,88";"19,59";COMUNE; ;LIQUIDAZIONE SPESE DI NOTIFICHE .;17-12-2018;1280;0;233;1;Spese correnti;4;Trasferimenti correnti;1;Trasferimenti correnti a Amministrazioni Pubbliche;2;Trasferimenti correnti a Amministrazioni Locali;3;Trasferimenti correnti a Comuni;17-12-2018;
1421;3;0;"7,83";"19,59";COMUNE; ;LIQUIDAZIONE SPESE DI NOTIFICHE .;17-12-2018;1280;0;233;1;Spese correnti;4;Trasferimenti correnti;1;Trasferimenti correnti a Amministrazioni Pubbliche;2;Trasferimenti correnti a Amministrazioni Locali;3;Trasferimenti correnti a Comuni;17-12-2018;
1422;1;0;"5,88";"30,72";COMUNE; ;LIQUIDAZIONE SPESE DI NOTIFICHE.;17-12-2018;1280;0;314;1;Spese correnti;4;Trasferimenti correnti;1;Trasferimenti correnti a Amministrazioni Pubbliche;2;Trasferimenti correnti a Amministrazioni Locali;3;Trasferimenti correnti a Comuni;17-12-2018;
1422;2;0;"5,88";"30,72";COMUNE; ;LIQUIDAZIONE SPESE DI NOTIFICHE - Rep. 2018/24259.;17-12-2018;1280;0;314;1;Spese correnti;4;Trasferimenti correnti;1;Trasferimenti correnti a Amministrazioni Pubbliche;2;Trasferimenti correnti a Amministrazioni Locali;3;Trasferimenti correnti a Comuni;17-12-2018;
1422;3;0;"13,08";"30,72";COMUNE; ;LIQUIDAZIONE SPESE DI NOTIFICHE.;17-12-2018;1280;0;314;1;Spese correnti;4;Trasferimenti correnti;1;Trasferimenti correnti a Amministrazioni Pubbliche;2;Trasferimenti correnti a Amministrazioni Locali;3;Trasferimenti correnti a Comuni;17-12-2018;
1422;4;0;"5,88";"30,72";COMUNE; ;LIQUIDAZIONE SPESE DI NOTIFICHE - 23-GICC-18-02585-01-00094240694;17-12-2018;1280;0;314;1;Spese correnti;4;Trasferimenti correnti;1;Trasferimenti correnti a Amministrazioni Pubbliche;2;Trasferimenti correnti a Amministrazioni Locali;3;Trasferimenti correnti a Comuni;17-12-2018;
1423;1;0;"4.977,60";"4.977,60";VELLANTE Caterina;Z30239696C;SALDO Fatt.n. FATTPA 3_18  del 20/11/2018 Redazione piano demaniale marittimo comunale;17-12-2018;1086;0;147;1;Spese correnti;3;Acquisto di beni e servizi;2;Acquisto di servizi;10;Consulenze;1;"Incarichi libero professionali di studi, ricerca e consulenza";17-12-2018;
1424;1;0;"440,00";"440,00";AMMINISTRAZIONE PROVINCIALE; ;"PAGAMENTO CONTRIBUTO PER CERTIFICAZIONE STATO DI ESERCIZIO, DI MANUTENZIONE E VERIFICA IMPIANTITERMICI COMUNALI -";17-12-2018;2171;0;358;1;Spese correnti;3;Acquisto di beni e servizi;2;Acquisto di servizi;9;Manutenzione ordinaria e riparazioni;8;Manutenzione ordinaria e riparazioni di beni immobili;17-12-2018;
1425;1;0;"188,86";"188,86";SANGROSERVIZI SRL; ;SALDO Fatt.n. P2018/276  del 23/11/2018 Bolletta Gas relativa al periodo 01/09/2018 - 31/10/2018;17-12-2018;1505;0;157;1;Spese correnti;3;Acquisto di beni e servizi;2;Acquisto di servizi;5;Utenze e canoni;6;Gas;17-12-2018;
1426;1;0;"21,60";"59,09";SANGROSERVIZI SRL; ;SALDO Fatt.n. P2018/279  del 23/11/2018 Bolletta Gas relativa al periodo 01/09/2018 - 31/10/2018;17-12-2018;2174;0;216;1;Spese correnti;3;Acquisto di beni e servizi;2;Acquisto di servizi;5;Utenze e canoni;6;Gas;17-12-2018;
1426;2;0;"37,49";"59,09";SANGROSERVIZI SRL; ;SALDO Fatt.n. P2018/280  del 23/11/2018 Bolletta Gas relativa al periodo 01/09/2018 - 31/10/2018;17-12-2018;2174;0;216;1;Spese correnti;3;Acquisto di beni e servizi;2;Acquisto di servizi;5;Utenze e canoni;6;Gas;17-12-2018;
1427;1;0;"21,63";"846,54";SANGROSERVIZI SRL; ;SALDO Fatt.n. P2018/271  del 23/11/2018 Bolletta Gas relativa al periodo 01/09/2018 - 31/10/2018;17-12-2018;1036;0;151;1;Spese correnti;3;Acquisto di beni e servizi;2;Acquisto di servizi;5;Utenze e canoni;6;Gas;17-12-2018;
1427;2;0;"46,23";"846,54";SANGROSERVIZI SRL; ;SALDO Fatt.n. P2018/274  del 23/11/2018 Bolletta Gas relativa al periodo 01/09/2018 - 31/10/2018;17-12-2018;1036;0;151;1;Spese correnti;3;Acquisto di beni e servizi;2;Acquisto di servizi;5;Utenze e canoni;6;Gas;17-12-2018;
1427;3;0;"78,50";"846,54";SANGROSERVIZI SRL; ;SALDO Fatt.n. P2018/275  del 23/11/2018 Bolletta Gas relativa al periodo 01/09/2018 - 31/10/2018;17-12-2018;1036;0;151;1;Spese correnti;3;Acquisto di beni e servizi;2;Acquisto di servizi;5;Utenze e canoni;6;Gas;17-12-2018;
1427;4;0;"91,08";"846,54";SANGROSERVIZI SRL; ;SALDO Fatt.n. P2018/262  del 23/11/2018 Bolletta Gas relativa al periodo 01/09/2018 - 31/10/2018;17-12-2018;1036;0;151;1;Spese correnti;3;Acquisto di beni e servizi;2;Acquisto di servizi;5;Utenze e canoni;6;Gas;17-12-2018;
1427;5;0;"609,10";"846,54";SANGROSERVIZI SRL; ;SALDO Fatt.n. P2018/265  del 23/11/2018 Bolletta Gas relativa al periodo 01/09/2018 - 31/10/2018;17-12-2018;1036;0;151;1;Spese correnti;3;Acquisto di beni e servizi;2;Acquisto di servizi;5;Utenze e canoni;6;Gas;17-12-2018;
1428;1;0;"445,54";"445,54";SANGROSERVIZI SRL; ;SALDO Fatt.n. P2018/270  del 23/11/2018 Bolletta Gas relativa al periodo 31/08/2018 - 31/10/2018;17-12-2018;1387;0;155;1;Spese correnti;3;Acquisto di beni e servizi;2;Acquisto di servizi;5;Utenze e canoni;6;Gas;17-12-2018;
1429;1;0;"120,01";"346,93";SANGROSERVIZI SRL; ;SALDO Fatt.n. P2018/273  del 23/11/2018 Bolletta Gas relativa al periodo 31/08/2018 - 31/10/2018;17-12-2018;1829;0;158;1;Spese correnti;3;Acquisto di beni e servizi;2;Acquisto di servizi;5;Utenze e canoni;6;Gas;17-12-2018;
1429;2;0;"226,92";"346,93";SANGROSERVIZI SRL; ;SALDO Fatt.n. P2018/267  del 23/11/2018 Bolletta Gas relativa al periodo 01/09/2018 - 31/10/2018;17-12-2018;1829;0;158;1;Spese correnti;3;Acquisto di beni e servizi;2;Acquisto di servizi;5;Utenze e canoni;6;Gas;17-12-2018;
1430;1;0;"21,60";"21,60";SANGROSERVIZI SRL; ;SALDO Fatt.n. P2018/272  del 23/11/2018 Bolletta Gas relativa al periodo 01/09/2018 - 31/10/2018;17-12-2018;1269;0;152;1;Spese correnti;3;Acquisto di beni e servizi;2;Acquisto di servizi;5;Utenze e canoni;6;Gas;17-12-2018;
1431;1;0;"344,03";"558,32";SANGROSERVIZI SRL; ;SALDO Fatt.n. P2018/268  del 23/11/2018 Bolletta Gas relativa al periodo 01/09/2018 - 31/10/2018;17-12-2018;1370;0;154;1;Spese correnti;3;Acquisto di beni e servizi;2;Acquisto di servizi;5;Utenze e canoni;6;Gas;17-12-2018;
1431;2;0;"87,54";"558,32";SANGROSERVIZI SRL; ;SALDO Fatt.n. P2018/263  del 23/11/2018 Bolletta Gas relativa al periodo 31/08/2018 - 31/10/2018;17-12-2018;1370;0;154;1;Spese correnti;3;Acquisto di beni e servizi;2;Acquisto di servizi;5;Utenze e canoni;6;Gas;17-12-2018;
1431;3;0;"126,75";"558,32";SANGROSERVIZI SRL; ;SALDO Fatt.n. P2018/269  del 23/11/2018 Bolletta Gas relativa al periodo 31/08/2018 - 31/10/2018;17-12-2018;1370;0;154;1;Spese correnti;3;Acquisto di beni e servizi;2;Acquisto di servizi;5;Utenze e canoni;6;Gas;17-12-2018;
1432;1;0;"6,73";"6,73";SANGROSERVIZI SRL; ;SALDO Fatt.n. P2018/266  del 23/11/2018 Bolletta Gas relativa al periodo 03/08/2018 - 31/10/2018;17-12-2018;2006;0;156;1;Spese correnti;3;Acquisto di beni e servizi;2;Acquisto di servizi;5;Utenze e canoni;6;Gas;17-12-2018;
1433;1;0;"244,87";"244,87";SANGROSERVIZI SRL; ;SALDO Fatt.n. P2018/264  del 23/11/2018 Bolletta Gas relativa al periodo 01/09/2018 - 31/10/2018;17-12-2018;1344;0;153;1;Spese correnti;3;Acquisto di beni e servizi;2;Acquisto di servizi;5;Utenze e canoni;6;Gas;17-12-2018;
1434;1;0;"63,10";"63,10";ODOARDO ZECCA S.r.l.; ;SALDO Fatt.n. P2018/000194  del 27/11/2018 Bolletta Energia Elettrica relativa al periodo 01/09/2018 - 31/10/2018;17-12-2018;1269;0;105;1;Spese correnti;3;Acquisto di beni e servizi;2;Acquisto di servizi;5;Utenze e canoni;4;Energia elettrica;17-12-2018;
1435;1;0;"44,98";"182,46";ODOARDO ZECCA S.r.l.; ;SALDO Fatt.n. P2018/000195  del 27/11/2018 Bolletta Energia Elettrica relativa al periodo 01/09/2018 - 31/10/2018;17-12-2018;2174;0;118;1;Spese correnti;3;Acquisto di beni e servizi;2;Acquisto di servizi;5;Utenze e canoni;4;Energia elettrica;17-12-2018;
1435;2;0;"137,48";"182,46";ODOARDO ZECCA S.r.l.; ;SALDO Fatt.n. P2018/000207  del 27/11/2018 Bolletta Energia Elettrica relativa al periodo 01/09/2018 - 31/10/2018;17-12-2018;2174;0;118;1;Spese correnti;3;Acquisto di beni e servizi;2;Acquisto di servizi;5;Utenze e canoni;4;Energia elettrica;17-12-2018;
1436;1;0;"61,90";"916,92";ODOARDO ZECCA S.r.l.; ;SALDO Fatt.n. P2018/000198  del 27/11/2018 Bolletta Energia Elettrica relativa al periodo 01/09/2018 - 31/10/2018;17-12-2018;1036;0;104;1;Spese correnti;3;Acquisto di beni e servizi;2;Acquisto di servizi;5;Utenze e canoni;4;Energia elettrica;17-12-2018;
1436;2;0;"64,05";"916,92";ODOARDO ZECCA S.r.l.; ;SALDO Fatt.n. P2018/000217  del 27/11/2018 Bolletta Energia Elettrica relativa al periodo 01/09/2018 - 31/10/2018;17-12-2018;1036;0;104;1;Spese correnti;3;Acquisto di beni e servizi;2;Acquisto di servizi;5;Utenze e canoni;4;Energia elettrica;17-12-2018;
1436;3;0;"284,33";"916,92";ODOARDO ZECCA S.r.l.; ;SALDO Fatt.n. P2018/000196  del 27/11/2018 Bolletta Energia Elettrica relativa al periodo 01/09/2018 - 31/10/2018;17-12-2018;1036;0;104;1;Spese correnti;3;Acquisto di beni e servizi;2;Acquisto di servizi;5;Utenze e canoni;4;Energia elettrica;17-12-2018;
1436;4;0;"506,64";"916,92";ODOARDO ZECCA S.r.l.; ;SALDO Fatt.n. P2018/000218  del 27/11/2018 Bolletta Energia Elettrica relativa al periodo 01/10/2018 - 31/10/2018;17-12-2018;1036;0;104;1;Spese correnti;3;Acquisto di beni e servizi;2;Acquisto di servizi;5;Utenze e canoni;4;Energia elettrica;17-12-2018;
1437;1;0;"61,93";"142,04";ODOARDO ZECCA S.r.l.; ;SALDO Fatt.n. P2018/000211  del 27/11/2018 Bolletta Energia Elettrica relativa al periodo 01/09/2018 - 31/10/2018;17-12-2018;1656;0;111;1;Spese correnti;3;Acquisto di beni e servizi;2;Acquisto di servizi;5;Utenze e canoni;4;Energia elettrica;17-12-2018;
1437;2;0;"80,11";"142,04";ODOARDO ZECCA S.r.l.; ;SALDO Fatt.n. P2018/000199  del 27/11/2018 Bolletta Energia Elettrica relativa al periodo 01/09/2018 - 31/10/2018;17-12-2018;1656;0;111;1;Spese correnti;3;Acquisto di beni e servizi;2;Acquisto di servizi;5;Utenze e canoni;4;Energia elettrica;17-12-2018;
1438;1;0;"326,85";"326,85";ODOARDO ZECCA S.r.l.; ;SALDO Fatt.n. P2018/000200  del 27/11/2018 Bolletta Energia Elettrica relativa al periodo 01/10/2018 - 31/10/2018;17-12-2018;2026;0;119;1;Spese correnti;3;Acquisto di beni e servizi;2;Acquisto di servizi;5;Utenze e canoni;4;Energia elettrica;17-12-2018;
1439;1;0;"392,45";"392,45";ODOARDO ZECCA S.r.l.; ;SALDO Fatt.n. P2018/000214  del 27/11/2018 Bolletta Energia Elettrica relativa al periodo 01/09/2018 - 31/10/2018;17-12-2018;1829;0;113;1;Spese correnti;3;Acquisto di beni e servizi;2;Acquisto di servizi;5;Utenze e canoni;4;Energia elettrica;17-12-2018;
1440;1;0;"291,48";"291,48";ODOARDO ZECCA S.r.l.; ;SALDO Fatt.n. P2018/000202  del 27/11/2018 Bolletta Energia Elettrica relativa al periodo 01/10/2018 - 31/10/2018;17-12-2018;1387;0;108;1;Spese correnti;3;Acquisto di beni e servizi;2;Acquisto di servizi;5;Utenze e canoni;4;Energia elettrica;17-12-2018;
1441;1;0;"68,16";"369,55";ODOARDO ZECCA S.r.l.; ;SALDO Fatt.n. P2018/000208  del 27/11/2018 Bolletta Energia Elettrica relativa al periodo 01/09/2018 - 31/10/2018;17-12-2018;2124;0;117;1;Spese correnti;3;Acquisto di beni e servizi;2;Acquisto di servizi;5;Utenze e canoni;4;Energia elettrica;17-12-2018;
1441;2;0;"78,63";"369,55";ODOARDO ZECCA S.r.l.; ;SALDO Fatt.n. P2018/000209  del 27/11/2018 Bolletta Energia Elettrica relativa al periodo 01/09/2018 - 31/10/2018;17-12-2018;2124;0;117;1;Spese correnti;3;Acquisto di beni e servizi;2;Acquisto di servizi;5;Utenze e canoni;4;Energia elettrica;17-12-2018;
1441;3;0;"98,30";"369,55";ODOARDO ZECCA S.r.l.; ;SALDO Fatt.n. P2018/000203  del 27/11/2018 Bolletta Energia Elettrica relativa al periodo 01/09/2018 - 31/10/2018;17-12-2018;2124;0;117;1;Spese correnti;3;Acquisto di beni e servizi;2;Acquisto di servizi;5;Utenze e canoni;4;Energia elettrica;17-12-2018;
1441;4;0;"124,46";"369,55";ODOARDO ZECCA S.r.l.; ;SALDO Fatt.n. P2018/000206  del 27/11/2018 Bolletta Energia Elettrica relativa al periodo 01/09/2018 - 31/10/2018;17-12-2018;2124;0;117;1;Spese correnti;3;Acquisto di beni e servizi;2;Acquisto di servizi;5;Utenze e canoni;4;Energia elettrica;17-12-2018;
1442;1;0;"45,97";"45,97";ODOARDO ZECCA S.r.l.; ;SALDO Fatt.n. P2018/000205  del 27/11/2018 Bolletta Energia Elettrica relativa al periodo 01/10/2018 - 31/10/2018;17-12-2018;1826;0;112;1;Spese correnti;3;Acquisto di beni e servizi;2;Acquisto di servizi;5;Utenze e canoni;4;Energia elettrica;17-12-2018;
1443;1;0;"56,88";"505,62";ODOARDO ZECCA S.r.l.;Z70242E0BE;ACCONTO Fatt.n. P2018/000223  del 27/11/2018 Bolletta Energia Elettrica relativa al periodo 01/09/2018 - 31/10/2018;17-12-2018;2014;0;182;1;Spese correnti;3;Acquisto di beni e servizi;2;Acquisto di servizi;5;Utenze e canoni;4;Energia elettrica;17-12-2018;
1443;2;0;"448,74";"505,62";ODOARDO ZECCA S.r.l.;Z70242E0BE;SALDO Fatt.n. P2018/000183  del 27/09/2018 Bolletta Energia Elettrica relativa al periodo 29/06/2018 - 31/08/2018;17-12-2018;2014;0;182;1;Spese correnti;3;Acquisto di beni e servizi;2;Acquisto di servizi;5;Utenze e canoni;4;Energia elettrica;17-12-2018;
1444;1;0;"46,89";"213,30";ODOARDO ZECCA S.r.l.; ;SALDO Fatt.n. P2018/000223  del 27/11/2018 Bolletta Energia Elettrica relativa al periodo 01/09/2018 - 31/10/2018;17-12-2018;1505;0;110;1;Spese correnti;3;Acquisto di beni e servizi;2;Acquisto di servizi;5;Utenze e canoni;4;Energia elettrica;17-12-2018;
1444;2;0;"166,41";"213,30";ODOARDO ZECCA S.r.l.; ;SALDO Fatt.n. P2018/000221  del 27/11/2018 Bolletta Energia Elettrica relativa al periodo 01/09/2018 - 31/10/2018;17-12-2018;1505;0;110;1;Spese correnti;3;Acquisto di beni e servizi;2;Acquisto di servizi;5;Utenze e canoni;4;Energia elettrica;17-12-2018;
1445;1;0;"71,65";"1.214,72";ODOARDO ZECCA S.r.l.; ;SALDO Fatt.n. P2018/000210  del 27/11/2018 Bolletta Energia Elettrica relativa al periodo 01/09/2018 - 31/10/2018;17-12-2018;1370;0;107;1;Spese correnti;3;Acquisto di beni e servizi;2;Acquisto di servizi;5;Utenze e canoni;4;Energia elettrica;17-12-2018;
1445;2;0;"142,57";"1.214,72";ODOARDO ZECCA S.r.l.; ;SALDO Fatt.n. P2018/000201  del 27/11/2018 Bolletta Energia Elettrica relativa al periodo 01/09/2018 - 31/10/2018;17-12-2018;1370;0;107;1;Spese correnti;3;Acquisto di beni e servizi;2;Acquisto di servizi;5;Utenze e canoni;4;Energia elettrica;17-12-2018;
1445;3;0;"260,14";"1.214,72";ODOARDO ZECCA S.r.l.; ;SALDO Fatt.n. P2018/000204  del 27/11/2018 Bolletta Energia Elettrica relativa al periodo 01/09/2018 - 31/10/2018;17-12-2018;1370;0;107;1;Spese correnti;3;Acquisto di beni e servizi;2;Acquisto di servizi;5;Utenze e canoni;4;Energia elettrica;17-12-2018;
1445;4;0;"322,78";"1.214,72";ODOARDO ZECCA S.r.l.; ;SALDO Fatt.n. P2018/000215  del 27/11/2018 Bolletta Energia Elettrica relativa al periodo 01/09/2018 - 31/10/2018;17-12-2018;1370;0;107;1;Spese correnti;3;Acquisto di beni e servizi;2;Acquisto di servizi;5;Utenze e canoni;4;Energia elettrica;17-12-2018;
1445;5;0;"417,58";"1.214,72";ODOARDO ZECCA S.r.l.; ;SALDO Fatt.n. P2018/000216  del 27/11/2018 Bolletta Energia Elettrica relativa al periodo 01/10/2018 - 31/10/2018;17-12-2018;1370;0;107;1;Spese correnti;3;Acquisto di beni e servizi;2;Acquisto di servizi;5;Utenze e canoni;4;Energia elettrica;17-12-2018;
1446;1;0;"113,47";"265,27";ODOARDO ZECCA S.r.l.; ;SALDO Fatt.n. P2018/000212  del 27/11/2018 Bolletta Energia Elettrica relativa al periodo 01/09/2018 - 31/10/2018;17-12-2018;1932;0;114;1;Spese correnti;3;Acquisto di beni e servizi;2;Acquisto di servizi;5;Utenze e canoni;4;Energia elettrica;17-12-2018;
1446;2;0;"151,80";"265,27";ODOARDO ZECCA S.r.l.; ;SALDO Fatt.n. P2018/000220  del 27/11/2018 Bolletta Energia Elettrica relativa al periodo 01/09/2018 - 31/10/2018;17-12-2018;1932;0;114;1;Spese correnti;3;Acquisto di beni e servizi;2;Acquisto di servizi;5;Utenze e canoni;4;Energia elettrica;17-12-2018;
1447;1;0;"192,09";"474,11";ODOARDO ZECCA S.r.l.; ;SALDO Fatt.n. P2018/000213  del 27/11/2018 Bolletta Energia Elettrica relativa al periodo 01/09/2018 - 31/10/2018;17-12-2018;2026;0;119;1;Spese correnti;3;Acquisto di beni e servizi;2;Acquisto di servizi;5;Utenze e canoni;4;Energia elettrica;17-12-2018;
1447;2;0;"282,02";"474,11";ODOARDO ZECCA S.r.l.; ;SALDO Fatt.n. P2018/000197  del 27/11/2018 Bolletta Energia Elettrica relativa al periodo 01/09/2018 - 31/10/2018;17-12-2018;2026;0;119;1;Spese correnti;3;Acquisto di beni e servizi;2;Acquisto di servizi;5;Utenze e canoni;4;Energia elettrica;17-12-2018;
1448;1;0;"505,82";"505,82";ODOARDO ZECCA S.r.l.;Z70242E0BE;SALDO Fatt.n. E2018/36  del 23/08/2018 Allaccio straoridnario energia elettrica;17-12-2018;2026;0;119;1;Spese correnti;3;Acquisto di beni e servizi;2;Acquisto di servizi;5;Utenze e canoni;4;Energia elettrica;17-12-2018;
1449;1;0;"172,36";"172,36";ODOARDO ZECCA S.r.l.; ;SALDO Fatt.n. P2018/000219  del 27/11/2018 Bolletta Energia Elettrica relativa al periodo 01/09/2018 - 31/10/2018;17-12-2018;1344;0;106;1;Spese correnti;3;Acquisto di beni e servizi;2;Acquisto di servizi;5;Utenze e canoni;4;Energia elettrica;17-12-2018;
1450;1;0;"150,00";"150,00";NERVEGNA Francesco; ;LIQUIDAZIONE IN ANTICIPO SPESE LEGALI - CONTRIBUTO UNIFICATO E BOLLO- RICORSO TRIBUNALE DI LANCIANO (CONTENZIOSO COMUNE DI FOSSACESIA);17-12-2018;1058;0;346;1;Spese correnti;3;Acquisto di beni e servizi;2;Acquisto di servizi;99;Altri servizi;2;Altre spese legali;17-12-2018;
1451;1;0;"9.020,00";"9.020,00";PUBLIRETI Srl; ;Versamento iva su fattura canone fisso anno 2018;17-12-2018;2154;0;387;1;Spese correnti;10;Altre spese correnti;3;Versamenti IVA a debito;1;Versamenti IVA a debito per le gestioni commerciali;1;Versamenti IVA a debito per le gestioni commerciali;17-12-2018;
1453;1;0;"275,35";"3.002,95";CASSA DEPOSITI E PRESTITI; ;Rata Interessi  2^Sem. 31/12/18 Costr. Caserma Carabinieri;18-12-2018;1165;0;218;1;Spese correnti;7;Interessi passivi;5;Interessi su Mutui e altri finanziamenti a medio lungo termine;4;Interessi passivi su finanziamenti a medio lungo termine a Imprese;3;Interessi passivi a Cassa Depositi e Prestiti SPA su mutui e altri finanziamenti a medio lungo termine;18-12-2018;
1453;2;0;"547,95";"3.002,95";CASSA DEPOSITI E PRESTITI; ;Rata Interessi  2^Sem. 31/12/18 Sistemazione area mattatoio;18-12-2018;1165;0;218;1;Spese correnti;7;Interessi passivi;5;Interessi su Mutui e altri finanziamenti a medio lungo termine;4;Interessi passivi su finanziamenti a medio lungo termine a Imprese;3;Interessi passivi a Cassa Depositi e Prestiti SPA su mutui e altri finanziamenti a medio lungo termine;18-12-2018;
1453;3;0;"608,77";"3.002,95";CASSA DEPOSITI E PRESTITI; ;Rata Interessi  2^Sem. 31/12/18 ACQUISTO MOBILI UFFICI;18-12-2018;1165;0;218;1;Spese correnti;7;Interessi passivi;5;Interessi su Mutui e altri finanziamenti a medio lungo termine;4;Interessi passivi su finanziamenti a medio lungo termine a Imprese;3;Interessi passivi a Cassa Depositi e Prestiti SPA su mutui e altri finanziamenti a medio lungo termine;18-12-2018;
1453;4;0;"1.570,88";"3.002,95";CASSA DEPOSITI E PRESTITI; ;Rata Interessi  2^Sem. 31/12/18 COSTRUZIONE CASERMA CARABINIERI;18-12-2018;1165;0;218;1;Spese correnti;7;Interessi passivi;5;Interessi su Mutui e altri finanziamenti a medio lungo termine;4;Interessi passivi su finanziamenti a medio lungo termine a Imprese;3;Interessi passivi a Cassa Depositi e Prestiti SPA su mutui e altri finanziamenti a medio lungo termine;18-12-2018;
1454;1;0;"352,29";"8.596,38";CASSA DEPOSITI E PRESTITI; ;Rata Interessi  2^Sem. 31/12/18 Costruzione scuola elementare;18-12-2018;1373;0;242;1;Spese correnti;7;Interessi passivi;5;Interessi su Mutui e altri finanziamenti a medio lungo termine;4;Interessi passivi su finanziamenti a medio lungo termine a Imprese;3;Interessi passivi a Cassa Depositi e Prestiti SPA su mutui e altri finanziamenti a medio lungo termine;18-12-2018;
1454;2;0;"647,38";"8.596,38";CASSA DEPOSITI E PRESTITI; ;Rata Interessi  2^Sem. 31/12/18 ARREDO SCUOLA ELEMENTARE;18-12-2018;1373;0;242;1;Spese correnti;7;Interessi passivi;5;Interessi su Mutui e altri finanziamenti a medio lungo termine;4;Interessi passivi su finanziamenti a medio lungo termine a Imprese;3;Interessi passivi a Cassa Depositi e Prestiti SPA su mutui e altri finanziamenti a medio lungo termine;18-12-2018;
1454;3;0;"826,08";"8.596,38";CASSA DEPOSITI E PRESTITI; ;Rata Interessi  2^Sem. 31/12/18 Sistemazione scuola elementare;18-12-2018;1373;0;242;1;Spese correnti;7;Interessi passivi;5;Interessi su Mutui e altri finanziamenti a medio lungo termine;4;Interessi passivi su finanziamenti a medio lungo termine a Imprese;3;Interessi passivi a Cassa Depositi e Prestiti SPA su mutui e altri finanziamenti a medio lungo termine;18-12-2018;
1454;4;0;"1.548,69";"8.596,38";CASSA DEPOSITI E PRESTITI; ;Rata Interessi  2^Sem. 31/12/18 Manutenzione scuola elementare;18-12-2018;1373;0;242;1;Spese correnti;7;Interessi passivi;5;Interessi su Mutui e altri finanziamenti a medio lungo termine;4;Interessi passivi su finanziamenti a medio lungo termine a Imprese;3;Interessi passivi a Cassa Depositi e Prestiti SPA su mutui e altri finanziamenti a medio lungo termine;18-12-2018;
1454;5;0;"1.689,57";"8.596,38";CASSA DEPOSITI E PRESTITI; ;Rata Interessi  2^Sem. 31/12/18 MANUT. SCUOLA ELEM. SANT'APOL.;18-12-2018;1373;0;242;1;Spese correnti;7;Interessi passivi;5;Interessi su Mutui e altri finanziamenti a medio lungo termine;4;Interessi passivi su finanziamenti a medio lungo termine a Imprese;3;Interessi passivi a Cassa Depositi e Prestiti SPA su mutui e altri finanziamenti a medio lungo termine;18-12-2018;
1454;6;0;"3.532,37";"8.596,38";CASSA DEPOSITI E PRESTITI; ;Rata Interessi  2^Sem. 31/12/18 COSTRUZIONE SCUOLA ELEMENTARE;18-12-2018;1373;0;242;1;Spese correnti;7;Interessi passivi;5;Interessi su Mutui e altri finanziamenti a medio lungo termine;4;Interessi passivi su finanziamenti a medio lungo termine a Imprese;3;Interessi passivi a Cassa Depositi e Prestiti SPA su mutui e altri finanziamenti a medio lungo termine;18-12-2018;
1455;1;0;"771,89";"4.109,55";CASSA DEPOSITI E PRESTITI; ;Rata Interessi  2^Sem. 31/12/18 MANUTENZIONE PALESTRA COMUNALE;18-12-2018;1396;0;219;1;Spese correnti;7;Interessi passivi;5;Interessi su Mutui e altri finanziamenti a medio lungo termine;4;Interessi passivi su finanziamenti a medio lungo termine a Imprese;3;Interessi passivi a Cassa Depositi e Prestiti SPA su mutui e altri finanziamenti a medio lungo termine;18-12-2018;
1455;2;0;"998,81";"4.109,55";CASSA DEPOSITI E PRESTITI; ;Rata Interessi  2^Sem. 31/12/18 Lavori edificio scuola media;18-12-2018;1396;0;219;1;Spese correnti;7;Interessi passivi;5;Interessi su Mutui e altri finanziamenti a medio lungo termine;4;Interessi passivi su finanziamenti a medio lungo termine a Imprese;3;Interessi passivi a Cassa Depositi e Prestiti SPA su mutui e altri finanziamenti a medio lungo termine;18-12-2018;
1455;3;0;"1.011,61";"4.109,55";CASSA DEPOSITI E PRESTITI; ;Rata Interessi  2^Sem. 31/12/18 IMPIANTO FOTOVOLTAICO SCUOLA MEDIA;18-12-2018;1396;0;219;1;Spese correnti;7;Interessi passivi;5;Interessi su Mutui e altri finanziamenti a medio lungo termine;4;Interessi passivi su finanziamenti a medio lungo termine a Imprese;3;Interessi passivi a Cassa Depositi e Prestiti SPA su mutui e altri finanziamenti a medio lungo termine;18-12-2018;
1455;4;0;"1.327,24";"4.109,55";CASSA DEPOSITI E PRESTITI; ;Rata Interessi  2^Sem. 31/12/18 MANUTENZIONE STRAORDINARIA SCUOLA MEDIA- ADEGUAMENTO NORME E MESSA IN SICUREZZA;18-12-2018;1396;0;219;1;Spese correnti;7;Interessi passivi;5;Interessi su Mutui e altri finanziamenti a medio lungo termine;4;Interessi passivi su finanziamenti a medio lungo termine a Imprese;3;Interessi passivi a Cassa Depositi e Prestiti SPA su mutui e altri finanziamenti a medio lungo termine;18-12-2018;
1456;1;0;"986,66";"986,66";CASSA DEPOSITI E PRESTITI; ;Rata Interessi  2^Sem. 31/12/18 PERCORSO MUESEAE DE CASTELLO;18-12-2018;1509;0;220;1;Spese correnti;7;Interessi passivi;5;Interessi su Mutui e altri finanziamenti a medio lungo termine;4;Interessi passivi su finanziamenti a medio lungo termine a Imprese;3;Interessi passivi a Cassa Depositi e Prestiti SPA su mutui e altri finanziamenti a medio lungo termine;18-12-2018;
1457;1;0;"1.075,54";"1.075,54";CASSA DEPOSITI E PRESTITI; ;Rata Interessi  2^Sem. 31/12/18 Ampliamento cimitero Capoluogo;18-12-2018;1664;0;221;1;Spese correnti;7;Interessi passivi;5;Interessi su Mutui e altri finanziamenti a medio lungo termine;4;Interessi passivi su finanziamenti a medio lungo termine a Imprese;3;Interessi passivi a Cassa Depositi e Prestiti SPA su mutui e altri finanziamenti a medio lungo termine;18-12-2018;
1458;1;0;"1,17";"1,17";MINISTERO DELL'ECONOMIA E DELLE FINANZE; ;"Rata Interessi  2^Sem. 31/12/18 Rifacimento fogne, acqued.ecc.";18-12-2018;1694;0;222;1;Spese correnti;7;Interessi passivi;5;Interessi su Mutui e altri finanziamenti a medio lungo termine;4;Interessi passivi su finanziamenti a medio lungo termine a Imprese;3;Interessi passivi a Cassa Depositi e Prestiti SPA su mutui e altri finanziamenti a medio lungo termine;18-12-2018;
1459;1;0;"138,66";"4.448,43";CASSA DEPOSITI E PRESTITI; ;Rata Interessi  2^Sem. 31/12/18 COSTRUZIONE RETE IDRICA;18-12-2018;1694;0;223;1;Spese correnti;7;Interessi passivi;5;Interessi su Mutui e altri finanziamenti a medio lungo termine;4;Interessi passivi su finanziamenti a medio lungo termine a Imprese;3;Interessi passivi a Cassa Depositi e Prestiti SPA su mutui e altri finanziamenti a medio lungo termine;18-12-2018;
1459;2;0;"202,00";"4.448,43";CASSA DEPOSITI E PRESTITI; ;Rata Interessi  2^Sem. 31/12/18 Lavori rete idrica;18-12-2018;1694;0;223;1;Spese correnti;7;Interessi passivi;5;Interessi su Mutui e altri finanziamenti a medio lungo termine;4;Interessi passivi su finanziamenti a medio lungo termine a Imprese;3;Interessi passivi a Cassa Depositi e Prestiti SPA su mutui e altri finanziamenti a medio lungo termine;18-12-2018;
1459;3;0;"748,74";"4.448,43";CASSA DEPOSITI E PRESTITI; ;Rata Interessi  2^Sem. 31/12/18 COSTRUZIONE RETE IDRICA;18-12-2018;1694;0;223;1;Spese correnti;7;Interessi passivi;5;Interessi su Mutui e altri finanziamenti a medio lungo termine;4;Interessi passivi su finanziamenti a medio lungo termine a Imprese;3;Interessi passivi a Cassa Depositi e Prestiti SPA su mutui e altri finanziamenti a medio lungo termine;18-12-2018;
1459;4;0;"928,85";"4.448,43";CASSA DEPOSITI E PRESTITI; ;Rata Interessi  2^Sem. 31/12/18 COSTRUZIONE RETE IDRICA;18-12-2018;1694;0;223;1;Spese correnti;7;Interessi passivi;5;Interessi su Mutui e altri finanziamenti a medio lungo termine;4;Interessi passivi su finanziamenti a medio lungo termine a Imprese;3;Interessi passivi a Cassa Depositi e Prestiti SPA su mutui e altri finanziamenti a medio lungo termine;18-12-2018;
1459;5;0;"1.170,07";"4.448,43";CASSA DEPOSITI E PRESTITI; ;"Rata Interessi  2^Sem. 31/12/18 Rifacimento fogne, acqued.ecc.";18-12-2018;1694;0;223;1;Spese correnti;7;Interessi passivi;5;Interessi su Mutui e altri finanziamenti a medio lungo termine;4;Interessi passivi su finanziamenti a medio lungo termine a Imprese;3;Interessi passivi a Cassa Depositi e Prestiti SPA su mutui e altri finanziamenti a medio lungo termine;18-12-2018;
1459;6;0;"1.260,11";"4.448,43";CASSA DEPOSITI E PRESTITI; ;Rata Interessi  2^Sem. 31/12/18 LAVORI RETE IDRICA;18-12-2018;1694;0;223;1;Spese correnti;7;Interessi passivi;5;Interessi su Mutui e altri finanziamenti a medio lungo termine;4;Interessi passivi su finanziamenti a medio lungo termine a Imprese;3;Interessi passivi a Cassa Depositi e Prestiti SPA su mutui e altri finanziamenti a medio lungo termine;18-12-2018;
1460;1;0;"122,63";"8.909,77";CASSA DEPOSITI E PRESTITI; ;Rata Interessi  2^Sem. 31/12/18 COSTRUZIONE RETE FOGNANTE;18-12-2018;1724;0;224;1;Spese correnti;7;Interessi passivi;5;Interessi su Mutui e altri finanziamenti a medio lungo termine;4;Interessi passivi su finanziamenti a medio lungo termine a Imprese;3;Interessi passivi a Cassa Depositi e Prestiti SPA su mutui e altri finanziamenti a medio lungo termine;18-12-2018;
1460;2;0;"142,14";"8.909,77";CASSA DEPOSITI E PRESTITI; ;Rata Interessi  2^Sem. 31/12/18 COSTRUZIIONE RETE FOGNARIA CENTRO STORICO;18-12-2018;1724;0;224;1;Spese correnti;7;Interessi passivi;5;Interessi su Mutui e altri finanziamenti a medio lungo termine;4;Interessi passivi su finanziamenti a medio lungo termine a Imprese;3;Interessi passivi a Cassa Depositi e Prestiti SPA su mutui e altri finanziamenti a medio lungo termine;18-12-2018;
1460;3;0;"365,12";"8.909,77";CASSA DEPOSITI E PRESTITI; ;Rata Interessi  2^Sem. 31/12/18 Costruzione rete fognaria;18-12-2018;1724;0;224;1;Spese correnti;7;Interessi passivi;5;Interessi su Mutui e altri finanziamenti a medio lungo termine;4;Interessi passivi su finanziamenti a medio lungo termine a Imprese;3;Interessi passivi a Cassa Depositi e Prestiti SPA su mutui e altri finanziamenti a medio lungo termine;18-12-2018;
1460;4;0;"562,73";"8.909,77";CASSA DEPOSITI E PRESTITI; ;Rata Interessi  2^Sem. 31/12/18 Rete fognaria;18-12-2018;1724;0;224;1;Spese correnti;7;Interessi passivi;5;Interessi su Mutui e altri finanziamenti a medio lungo termine;4;Interessi passivi su finanziamenti a medio lungo termine a Imprese;3;Interessi passivi a Cassa Depositi e Prestiti SPA su mutui e altri finanziamenti a medio lungo termine;18-12-2018;
1460;5;0;"1.231,49";"8.909,77";CASSA DEPOSITI E PRESTITI; ;Rata Interessi  2^Sem. 31/12/18 COSTRUZIONE RETE FOGNARIA CENTRO STORICO;18-12-2018;1724;0;224;1;Spese correnti;7;Interessi passivi;5;Interessi su Mutui e altri finanziamenti a medio lungo termine;4;Interessi passivi su finanziamenti a medio lungo termine a Imprese;3;Interessi passivi a Cassa Depositi e Prestiti SPA su mutui e altri finanziamenti a medio lungo termine;18-12-2018;
1460;6;0;"2.896,58";"8.909,77";CASSA DEPOSITI E PRESTITI; ;Rata Interessi  2^Sem. 31/12/18 RETE FOGNANTE;18-12-2018;1724;0;224;1;Spese correnti;7;Interessi passivi;5;Interessi su Mutui e altri finanziamenti a medio lungo termine;4;Interessi passivi su finanziamenti a medio lungo termine a Imprese;3;Interessi passivi a Cassa Depositi e Prestiti SPA su mutui e altri finanziamenti a medio lungo termine;18-12-2018;
1460;7;0;"3.589,08";"8.909,77";CASSA DEPOSITI E PRESTITI; ;Rata Interessi  2^Sem. 31/12/18 COSTRUZIONE FOGNATURA;18-12-2018;1724;0;224;1;Spese correnti;7;Interessi passivi;5;Interessi su Mutui e altri finanziamenti a medio lungo termine;4;Interessi passivi su finanziamenti a medio lungo termine a Imprese;3;Interessi passivi a Cassa Depositi e Prestiti SPA su mutui e altri finanziamenti a medio lungo termine;18-12-2018;
1461;1;0;"328,77";"1.813,35";CASSA DEPOSITI E PRESTITI; ;Rata Interessi  2^Sem. 31/12/18 Realizzazione isola ecologica;18-12-2018;1744;0;225;1;Spese correnti;7;Interessi passivi;5;Interessi su Mutui e altri finanziamenti a medio lungo termine;4;Interessi passivi su finanziamenti a medio lungo termine a Imprese;3;Interessi passivi a Cassa Depositi e Prestiti SPA su mutui e altri finanziamenti a medio lungo termine;18-12-2018;
1461;2;0;"1.484,58";"1.813,35";CASSA DEPOSITI E PRESTITI; ;Rata Interessi  2^Sem. 31/12/18 ACQ. AUTOMEZZI N.U.;18-12-2018;1744;0;225;1;Spese correnti;7;Interessi passivi;5;Interessi su Mutui e altri finanziamenti a medio lungo termine;4;Interessi passivi su finanziamenti a medio lungo termine a Imprese;3;Interessi passivi a Cassa Depositi e Prestiti SPA su mutui e altri finanziamenti a medio lungo termine;18-12-2018;
1462;1;0;"345,11";"345,11";CASSA DEPOSITI E PRESTITI; ;Rata Interessi  2^Sem. 31/12/18 Costruzione gabinetti;18-12-2018;1759;0;226;1;Spese correnti;7;Interessi passivi;5;Interessi su Mutui e altri finanziamenti a medio lungo termine;4;Interessi passivi su finanziamenti a medio lungo termine a Imprese;3;Interessi passivi a Cassa Depositi e Prestiti SPA su mutui e altri finanziamenti a medio lungo termine;18-12-2018;
1463;1;0;"2.247,73";"4.687,02";CASSA DEPOSITI E PRESTITI; ;Rata Interessi  2^Sem. 31/12/18 COSTRUZIONE CENTRO SOCIALE;18-12-2018;1787;0;227;1;Spese correnti;7;Interessi passivi;5;Interessi su Mutui e altri finanziamenti a medio lungo termine;4;Interessi passivi su finanziamenti a medio lungo termine a Imprese;3;Interessi passivi a Cassa Depositi e Prestiti SPA su mutui e altri finanziamenti a medio lungo termine;18-12-2018;
1463;2;0;"2.439,29";"4.687,02";CASSA DEPOSITI E PRESTITI; ;Rata Interessi  2^Sem. 31/12/18 RECUPERO EX SCUOLA MANCINI;18-12-2018;1787;0;227;1;Spese correnti;7;Interessi passivi;5;Interessi su Mutui e altri finanziamenti a medio lungo termine;4;Interessi passivi su finanziamenti a medio lungo termine a Imprese;3;Interessi passivi a Cassa Depositi e Prestiti SPA su mutui e altri finanziamenti a medio lungo termine;18-12-2018;
1464;1;0;"563,20";"3.085,43";CASSA DEPOSITI E PRESTITI; ;Rata Interessi  2^Sem. 31/12/18 Parco giochi;18-12-2018;1810;0;228;1;Spese correnti;7;Interessi passivi;5;Interessi su Mutui e altri finanziamenti a medio lungo termine;4;Interessi passivi su finanziamenti a medio lungo termine a Imprese;3;Interessi passivi a Cassa Depositi e Prestiti SPA su mutui e altri finanziamenti a medio lungo termine;18-12-2018;
1464;2;0;"683,88";"3.085,43";CASSA DEPOSITI E PRESTITI; ;Rata Interessi  2^Sem. 31/12/18 Sistemazione area a verde;18-12-2018;1810;0;228;1;Spese correnti;7;Interessi passivi;5;Interessi su Mutui e altri finanziamenti a medio lungo termine;4;Interessi passivi su finanziamenti a medio lungo termine a Imprese;3;Interessi passivi a Cassa Depositi e Prestiti SPA su mutui e altri finanziamenti a medio lungo termine;18-12-2018;
1464;3;0;"744,72";"3.085,43";CASSA DEPOSITI E PRESTITI; ;Rata Interessi  2^Sem. 31/12/18 Lavori sistem. area a verde;18-12-2018;1810;0;228;1;Spese correnti;7;Interessi passivi;5;Interessi su Mutui e altri finanziamenti a medio lungo termine;4;Interessi passivi su finanziamenti a medio lungo termine a Imprese;3;Interessi passivi a Cassa Depositi e Prestiti SPA su mutui e altri finanziamenti a medio lungo termine;18-12-2018;
1464;4;0;"1.093,63";"3.085,43";CASSA DEPOSITI E PRESTITI; ;Rata Interessi  2^Sem. 31/12/18 AREA A VERDE PUBBLICO;18-12-2018;1810;0;228;1;Spese correnti;7;Interessi passivi;5;Interessi su Mutui e altri finanziamenti a medio lungo termine;4;Interessi passivi su finanziamenti a medio lungo termine a Imprese;3;Interessi passivi a Cassa Depositi e Prestiti SPA su mutui e altri finanziamenti a medio lungo termine;18-12-2018;
1465;1;0;"160,57";"9.239,20";CASSA DEPOSITI E PRESTITI; ;Rata Interessi  2^Sem. 31/12/18 Costruzione impianti sportivi;18-12-2018;1834;0;229;1;Spese correnti;7;Interessi passivi;5;Interessi su Mutui e altri finanziamenti a medio lungo termine;4;Interessi passivi su finanziamenti a medio lungo termine a Imprese;3;Interessi passivi a Cassa Depositi e Prestiti SPA su mutui e altri finanziamenti a medio lungo termine;18-12-2018;
1465;2;0;"205,25";"9.239,20";CASSA DEPOSITI E PRESTITI; ;Rata Interessi  2^Sem. 31/12/18 Costruzione impianti sportivi;18-12-2018;1834;0;229;1;Spese correnti;7;Interessi passivi;5;Interessi su Mutui e altri finanziamenti a medio lungo termine;4;Interessi passivi su finanziamenti a medio lungo termine a Imprese;3;Interessi passivi a Cassa Depositi e Prestiti SPA su mutui e altri finanziamenti a medio lungo termine;18-12-2018;
1465;3;0;"368,85";"9.239,20";CASSA DEPOSITI E PRESTITI; ;Rata Interessi  2^Sem. 31/12/18 ADEGUAMENTO PALESTRA COMUNALE;18-12-2018;1834;0;229;1;Spese correnti;7;Interessi passivi;5;Interessi su Mutui e altri finanziamenti a medio lungo termine;4;Interessi passivi su finanziamenti a medio lungo termine a Imprese;3;Interessi passivi a Cassa Depositi e Prestiti SPA su mutui e altri finanziamenti a medio lungo termine;18-12-2018;
1465;4;0;"547,95";"9.239,20";CASSA DEPOSITI E PRESTITI; ;Rata Interessi  2^Sem. 31/12/18 Realizzazione campo sportivo;18-12-2018;1834;0;229;1;Spese correnti;7;Interessi passivi;5;Interessi su Mutui e altri finanziamenti a medio lungo termine;4;Interessi passivi su finanziamenti a medio lungo termine a Imprese;3;Interessi passivi a Cassa Depositi e Prestiti SPA su mutui e altri finanziamenti a medio lungo termine;18-12-2018;
1465;5;0;"828,78";"9.239,20";CASSA DEPOSITI E PRESTITI; ;Rata Interessi  2^Sem. 31/12/18 COSTRUZIONE IMPIANTI SPORTIVI;18-12-2018;1834;0;229;1;Spese correnti;7;Interessi passivi;5;Interessi su Mutui e altri finanziamenti a medio lungo termine;4;Interessi passivi su finanziamenti a medio lungo termine a Imprese;3;Interessi passivi a Cassa Depositi e Prestiti SPA su mutui e altri finanziamenti a medio lungo termine;18-12-2018;
1465;6;0;"1.070,19";"9.239,20";CASSA DEPOSITI E PRESTITI; ;Rata Interessi  2^Sem. 31/12/18 SISTEMAZIONE PALESTRA;18-12-2018;1834;0;229;1;Spese correnti;7;Interessi passivi;5;Interessi su Mutui e altri finanziamenti a medio lungo termine;4;Interessi passivi su finanziamenti a medio lungo termine a Imprese;3;Interessi passivi a Cassa Depositi e Prestiti SPA su mutui e altri finanziamenti a medio lungo termine;18-12-2018;
1465;7;0;"1.128,76";"9.239,20";CASSA DEPOSITI E PRESTITI; ;Rata Interessi  2^Sem. 31/12/18 PALESTRA COMUNALE;18-12-2018;1834;0;229;1;Spese correnti;7;Interessi passivi;5;Interessi su Mutui e altri finanziamenti a medio lungo termine;4;Interessi passivi su finanziamenti a medio lungo termine a Imprese;3;Interessi passivi a Cassa Depositi e Prestiti SPA su mutui e altri finanziamenti a medio lungo termine;18-12-2018;
1465;8;0;"1.723,21";"9.239,20";CASSA DEPOSITI E PRESTITI; ;Rata Interessi  2^Sem. 31/12/18 COSTRUZIONE IMPIANTI SPORTIVI;18-12-2018;1834;0;229;1;Spese correnti;7;Interessi passivi;5;Interessi su Mutui e altri finanziamenti a medio lungo termine;4;Interessi passivi su finanziamenti a medio lungo termine a Imprese;3;Interessi passivi a Cassa Depositi e Prestiti SPA su mutui e altri finanziamenti a medio lungo termine;18-12-2018;
1465;9;0;"3.205,64";"9.239,20";CASSA DEPOSITI E PRESTITI; ;Rata Interessi  2^Sem. 31/12/18 COSTRUZIONE IMPIANTI SPORTIVI;18-12-2018;1834;0;229;1;Spese correnti;7;Interessi passivi;5;Interessi su Mutui e altri finanziamenti a medio lungo termine;4;Interessi passivi su finanziamenti a medio lungo termine a Imprese;3;Interessi passivi a Cassa Depositi e Prestiti SPA su mutui e altri finanziamenti a medio lungo termine;18-12-2018;
1466;1;0;"317,48";"7.744,90";MINISTERO DELL'ECONOMIA E DELLE FINANZE; ;Rata Interessi  2^Sem. 31/12/18 MANUTENZIONE STRADA VALLE IENNO;18-12-2018;1941;0;230;1;Spese correnti;7;Interessi passivi;5;Interessi su Mutui e altri finanziamenti a medio lungo termine;4;Interessi passivi su finanziamenti a medio lungo termine a Imprese;3;Interessi passivi a Cassa Depositi e Prestiti SPA su mutui e altri finanziamenti a medio lungo termine;18-12-2018;
1466;2;0;"317,48";"7.744,90";MINISTERO DELL'ECONOMIA E DELLE FINANZE; ;Rata Interessi  2^Sem. 31/12/18 AMPLIAMENTO PUBBLICA ILLUMINAZIONE;18-12-2018;1941;0;230;1;Spese correnti;7;Interessi passivi;5;Interessi su Mutui e altri finanziamenti a medio lungo termine;4;Interessi passivi su finanziamenti a medio lungo termine a Imprese;3;Interessi passivi a Cassa Depositi e Prestiti SPA su mutui e altri finanziamenti a medio lungo termine;18-12-2018;
1466;3;0;"931,68";"7.744,90";MINISTERO DELL'ECONOMIA E DELLE FINANZE; ;Rata Interessi  2^Sem. 31/12/18 SISTEMAZIONE STRADE INTERNE;18-12-2018;1941;0;230;1;Spese correnti;7;Interessi passivi;5;Interessi su Mutui e altri finanziamenti a medio lungo termine;4;Interessi passivi su finanziamenti a medio lungo termine a Imprese;3;Interessi passivi a Cassa Depositi e Prestiti SPA su mutui e altri finanziamenti a medio lungo termine;18-12-2018;
1466;4;0;"2.062,06";"7.744,90";MINISTERO DELL'ECONOMIA E DELLE FINANZE; ;Rata Interessi  2^Sem. 31/12/18 COSTRUZIONE PISTA CICLABILE;18-12-2018;1941;0;230;1;Spese correnti;7;Interessi passivi;5;Interessi su Mutui e altri finanziamenti a medio lungo termine;4;Interessi passivi su finanziamenti a medio lungo termine a Imprese;3;Interessi passivi a Cassa Depositi e Prestiti SPA su mutui e altri finanziamenti a medio lungo termine;18-12-2018;
1466;5;0;"4.116,20";"7.744,90";MINISTERO DELL'ECONOMIA E DELLE FINANZE; ;Rata Interessi  2^Sem. 31/12/18 RIQUALIFICAZIONE URBANA;18-12-2018;1941;0;230;1;Spese correnti;7;Interessi passivi;5;Interessi su Mutui e altri finanziamenti a medio lungo termine;4;Interessi passivi su finanziamenti a medio lungo termine a Imprese;3;Interessi passivi a Cassa Depositi e Prestiti SPA su mutui e altri finanziamenti a medio lungo termine;18-12-2018;
1467;1;0;"139,62";"62.093,15";CASSA DEPOSITI E PRESTITI; ;Rata Interessi  2^Sem. 31/12/18 COSTRUZIONE STRADE;18-12-2018;1941;0;231;1;Spese correnti;7;Interessi passivi;5;Interessi su Mutui e altri finanziamenti a medio lungo termine;4;Interessi passivi su finanziamenti a medio lungo termine a Imprese;3;Interessi passivi a Cassa Depositi e Prestiti SPA su mutui e altri finanziamenti a medio lungo termine;18-12-2018;
1467;2;0;"206,99";"62.093,15";CASSA DEPOSITI E PRESTITI; ;Rata Interessi  2^Sem. 31/12/18 Costruzione strade;18-12-2018;1941;0;231;1;Spese correnti;7;Interessi passivi;5;Interessi su Mutui e altri finanziamenti a medio lungo termine;4;Interessi passivi su finanziamenti a medio lungo termine a Imprese;3;Interessi passivi a Cassa Depositi e Prestiti SPA su mutui e altri finanziamenti a medio lungo termine;18-12-2018;
1467;3;0;"303,29";"62.093,15";CASSA DEPOSITI E PRESTITI; ;Rata Interessi  2^Sem. 31/12/18 Opere stradali varie;18-12-2018;1941;0;231;1;Spese correnti;7;Interessi passivi;5;Interessi su Mutui e altri finanziamenti a medio lungo termine;4;Interessi passivi su finanziamenti a medio lungo termine a Imprese;3;Interessi passivi a Cassa Depositi e Prestiti SPA su mutui e altri finanziamenti a medio lungo termine;18-12-2018;
1467;4;0;"303,87";"62.093,15";CASSA DEPOSITI E PRESTITI; ;Rata Interessi  2^Sem. 31/12/18 Costruzione strade comunali;18-12-2018;1941;0;231;1;Spese correnti;7;Interessi passivi;5;Interessi su Mutui e altri finanziamenti a medio lungo termine;4;Interessi passivi su finanziamenti a medio lungo termine a Imprese;3;Interessi passivi a Cassa Depositi e Prestiti SPA su mutui e altri finanziamenti a medio lungo termine;18-12-2018;
1467;5;0;"335,24";"62.093,15";CASSA DEPOSITI E PRESTITI; ;Rata Interessi  2^Sem. 31/12/18 Rifacimento strade;18-12-2018;1941;0;231;1;Spese correnti;7;Interessi passivi;5;Interessi su Mutui e altri finanziamenti a medio lungo termine;4;Interessi passivi su finanziamenti a medio lungo termine a Imprese;3;Interessi passivi a Cassa Depositi e Prestiti SPA su mutui e altri finanziamenti a medio lungo termine;18-12-2018;
1467;6;0;"365,89";"62.093,15";CASSA DEPOSITI E PRESTITI; ;Rata Interessi  2^Sem. 31/12/18 Costruzione strade;18-12-2018;1941;0;231;1;Spese correnti;7;Interessi passivi;5;Interessi su Mutui e altri finanziamenti a medio lungo termine;4;Interessi passivi su finanziamenti a medio lungo termine a Imprese;3;Interessi passivi a Cassa Depositi e Prestiti SPA su mutui e altri finanziamenti a medio lungo termine;18-12-2018;
1467;7;0;"396,03";"62.093,15";CASSA DEPOSITI E PRESTITI; ;Rata Interessi  2^Sem. 31/12/18 COSTRUZIONE STRADE;18-12-2018;1941;0;231;1;Spese correnti;7;Interessi passivi;5;Interessi su Mutui e altri finanziamenti a medio lungo termine;4;Interessi passivi su finanziamenti a medio lungo termine a Imprese;3;Interessi passivi a Cassa Depositi e Prestiti SPA su mutui e altri finanziamenti a medio lungo termine;18-12-2018;
1467;8;0;"438,36";"62.093,15";CASSA DEPOSITI E PRESTITI; ;Rata Interessi  2^Sem. 31/12/18 Realizzzione fontana;18-12-2018;1941;0;231;1;Spese correnti;7;Interessi passivi;5;Interessi su Mutui e altri finanziamenti a medio lungo termine;4;Interessi passivi su finanziamenti a medio lungo termine a Imprese;3;Interessi passivi a Cassa Depositi e Prestiti SPA su mutui e altri finanziamenti a medio lungo termine;18-12-2018;
1467;9;0;"469,74";"62.093,15";CASSA DEPOSITI E PRESTITI; ;Rata Interessi  2^Sem. 31/12/18 Rifacimento piazzale.;18-12-2018;1941;0;231;1;Spese correnti;7;Interessi passivi;5;Interessi su Mutui e altri finanziamenti a medio lungo termine;4;Interessi passivi su finanziamenti a medio lungo termine a Imprese;3;Interessi passivi a Cassa Depositi e Prestiti SPA su mutui e altri finanziamenti a medio lungo termine;18-12-2018;
1467;10;0;"490,65";"62.093,15";CASSA DEPOSITI E PRESTITI; ;Rata Interessi  2^Sem. 31/12/18 Rifacimento asfalto strade;18-12-2018;1941;0;231;1;Spese correnti;7;Interessi passivi;5;Interessi su Mutui e altri finanziamenti a medio lungo termine;4;Interessi passivi su finanziamenti a medio lungo termine a Imprese;3;Interessi passivi a Cassa Depositi e Prestiti SPA su mutui e altri finanziamenti a medio lungo termine;18-12-2018;
1467;11;0;"576,35";"62.093,15";CASSA DEPOSITI E PRESTITI; ;Rata Interessi  2^Sem. 31/12/18 Strade comunali;18-12-2018;1941;0;231;1;Spese correnti;7;Interessi passivi;5;Interessi su Mutui e altri finanziamenti a medio lungo termine;4;Interessi passivi su finanziamenti a medio lungo termine a Imprese;3;Interessi passivi a Cassa Depositi e Prestiti SPA su mutui e altri finanziamenti a medio lungo termine;18-12-2018;
1467;12;0;"595,42";"62.093,15";CASSA DEPOSITI E PRESTITI; ;Rata Interessi  2^Sem. 31/12/18 Manutenzione straordin. strade;18-12-2018;1941;0;231;1;Spese correnti;7;Interessi passivi;5;Interessi su Mutui e altri finanziamenti a medio lungo termine;4;Interessi passivi su finanziamenti a medio lungo termine a Imprese;3;Interessi passivi a Cassa Depositi e Prestiti SPA su mutui e altri finanziamenti a medio lungo termine;18-12-2018;
1467;13;0;"665,73";"62.093,15";CASSA DEPOSITI E PRESTITI; ;Rata Interessi  2^Sem. 31/12/18 Sistemazione strade;18-12-2018;1941;0;231;1;Spese correnti;7;Interessi passivi;5;Interessi su Mutui e altri finanziamenti a medio lungo termine;4;Interessi passivi su finanziamenti a medio lungo termine a Imprese;3;Interessi passivi a Cassa Depositi e Prestiti SPA su mutui e altri finanziamenti a medio lungo termine;18-12-2018;
1467;14;0;"671,82";"62.093,15";CASSA DEPOSITI E PRESTITI; ;Rata Interessi  2^Sem. 31/12/18 COSTRUZIONE STRADA;18-12-2018;1941;0;231;1;Spese correnti;7;Interessi passivi;5;Interessi su Mutui e altri finanziamenti a medio lungo termine;4;Interessi passivi su finanziamenti a medio lungo termine a Imprese;3;Interessi passivi a Cassa Depositi e Prestiti SPA su mutui e altri finanziamenti a medio lungo termine;18-12-2018;
1467;15;0;"728,80";"62.093,15";CASSA DEPOSITI E PRESTITI; ;Rata Interessi  2^Sem. 31/12/18 Manutenzione strade;18-12-2018;1941;0;231;1;Spese correnti;7;Interessi passivi;5;Interessi su Mutui e altri finanziamenti a medio lungo termine;4;Interessi passivi su finanziamenti a medio lungo termine a Imprese;3;Interessi passivi a Cassa Depositi e Prestiti SPA su mutui e altri finanziamenti a medio lungo termine;18-12-2018;
1467;16;0;"797,16";"62.093,15";CASSA DEPOSITI E PRESTITI; ;Rata Interessi  2^Sem. 31/12/18 Acquisto decespugliatore;18-12-2018;1941;0;231;1;Spese correnti;7;Interessi passivi;5;Interessi su Mutui e altri finanziamenti a medio lungo termine;4;Interessi passivi su finanziamenti a medio lungo termine a Imprese;3;Interessi passivi a Cassa Depositi e Prestiti SPA su mutui e altri finanziamenti a medio lungo termine;18-12-2018;
1467;17;0;"857,16";"62.093,15";CASSA DEPOSITI E PRESTITI; ;Rata Interessi  2^Sem. 31/12/18 COSTRUZIONE STRADA;18-12-2018;1941;0;231;1;Spese correnti;7;Interessi passivi;5;Interessi su Mutui e altri finanziamenti a medio lungo termine;4;Interessi passivi su finanziamenti a medio lungo termine a Imprese;3;Interessi passivi a Cassa Depositi e Prestiti SPA su mutui e altri finanziamenti a medio lungo termine;18-12-2018;
1467;18;0;"1.100,11";"62.093,15";CASSA DEPOSITI E PRESTITI; ;Rata Interessi  2^Sem. 31/12/18 Manutenzione strade comunali;18-12-2018;1941;0;231;1;Spese correnti;7;Interessi passivi;5;Interessi su Mutui e altri finanziamenti a medio lungo termine;4;Interessi passivi su finanziamenti a medio lungo termine a Imprese;3;Interessi passivi a Cassa Depositi e Prestiti SPA su mutui e altri finanziamenti a medio lungo termine;18-12-2018;
1467;19;0;"1.239,80";"62.093,15";CASSA DEPOSITI E PRESTITI; ;Rata Interessi  2^Sem. 31/12/18 Rifacimento marciapiedi Marina;18-12-2018;1941;0;231;1;Spese correnti;7;Interessi passivi;5;Interessi su Mutui e altri finanziamenti a medio lungo termine;4;Interessi passivi su finanziamenti a medio lungo termine a Imprese;3;Interessi passivi a Cassa Depositi e Prestiti SPA su mutui e altri finanziamenti a medio lungo termine;18-12-2018;
1467;20;0;"1.491,63";"62.093,15";CASSA DEPOSITI E PRESTITI; ;Rata Interessi  2^Sem. 31/12/18 Sistemazione strade interne;18-12-2018;1941;0;231;1;Spese correnti;7;Interessi passivi;5;Interessi su Mutui e altri finanziamenti a medio lungo termine;4;Interessi passivi su finanziamenti a medio lungo termine a Imprese;3;Interessi passivi a Cassa Depositi e Prestiti SPA su mutui e altri finanziamenti a medio lungo termine;18-12-2018;
1467;21;0;"1.531,90";"62.093,15";CASSA DEPOSITI E PRESTITI; ;Rata Interessi  2^Sem. 31/12/18 CONSOLIDAMENTO ZONA FRANOSA;18-12-2018;1941;0;231;1;Spese correnti;7;Interessi passivi;5;Interessi su Mutui e altri finanziamenti a medio lungo termine;4;Interessi passivi su finanziamenti a medio lungo termine a Imprese;3;Interessi passivi a Cassa Depositi e Prestiti SPA su mutui e altri finanziamenti a medio lungo termine;18-12-2018;
1467;22;0;"1.914,89";"62.093,15";CASSA DEPOSITI E PRESTITI; ;Rata Interessi  2^Sem. 31/12/18 VIABILITA' CAPOLUOGO e FRAZ.;18-12-2018;1941;0;231;1;Spese correnti;7;Interessi passivi;5;Interessi su Mutui e altri finanziamenti a medio lungo termine;4;Interessi passivi su finanziamenti a medio lungo termine a Imprese;3;Interessi passivi a Cassa Depositi e Prestiti SPA su mutui e altri finanziamenti a medio lungo termine;18-12-2018;
1467;23;0;"1.983,80";"62.093,15";CASSA DEPOSITI E PRESTITI; ;Rata Interessi  2^Sem. 31/12/18 Rifacimento marciapiedi Capol.;18-12-2018;1941;0;231;1;Spese correnti;7;Interessi passivi;5;Interessi su Mutui e altri finanziamenti a medio lungo termine;4;Interessi passivi su finanziamenti a medio lungo termine a Imprese;3;Interessi passivi a Cassa Depositi e Prestiti SPA su mutui e altri finanziamenti a medio lungo termine;18-12-2018;
1467;24;0;"2.191,79";"62.093,15";CASSA DEPOSITI E PRESTITI; ;Rata Interessi  2^Sem. 31/12/18 Sistemazione strade;18-12-2018;1941;0;231;1;Spese correnti;7;Interessi passivi;5;Interessi su Mutui e altri finanziamenti a medio lungo termine;4;Interessi passivi su finanziamenti a medio lungo termine a Imprese;3;Interessi passivi a Cassa Depositi e Prestiti SPA su mutui e altri finanziamenti a medio lungo termine;18-12-2018;
1467;25;0;"2.217,74";"62.093,15";CASSA DEPOSITI E PRESTITI; ;Rata Interessi  2^Sem. 31/12/18 Sistemazione viabilita`;18-12-2018;1941;0;231;1;Spese correnti;7;Interessi passivi;5;Interessi su Mutui e altri finanziamenti a medio lungo termine;4;Interessi passivi su finanziamenti a medio lungo termine a Imprese;3;Interessi passivi a Cassa Depositi e Prestiti SPA su mutui e altri finanziamenti a medio lungo termine;18-12-2018;
1467;26;0;"2.222,44";"62.093,15";CASSA DEPOSITI E PRESTITI; ;Rata Interessi  2^Sem. 31/12/18 Opere viabilita` Via Feltrino;18-12-2018;1941;0;231;1;Spese correnti;7;Interessi passivi;5;Interessi su Mutui e altri finanziamenti a medio lungo termine;4;Interessi passivi su finanziamenti a medio lungo termine a Imprese;3;Interessi passivi a Cassa Depositi e Prestiti SPA su mutui e altri finanziamenti a medio lungo termine;18-12-2018;
1467;27;0;"2.896,65";"62.093,15";CASSA DEPOSITI E PRESTITI; ;Rata Interessi  2^Sem. 31/12/18 SISTEMAZIONE STRADE CAPOLUOGO;18-12-2018;1941;0;231;1;Spese correnti;7;Interessi passivi;5;Interessi su Mutui e altri finanziamenti a medio lungo termine;4;Interessi passivi su finanziamenti a medio lungo termine a Imprese;3;Interessi passivi a Cassa Depositi e Prestiti SPA su mutui e altri finanziamenti a medio lungo termine;18-12-2018;
1467;28;0;"3.004,33";"62.093,15";CASSA DEPOSITI E PRESTITI; ;Rata Interessi  2^Sem. 31/12/18 LAVORI INCROCIO VIA FRENTANA;18-12-2018;1941;0;231;1;Spese correnti;7;Interessi passivi;5;Interessi su Mutui e altri finanziamenti a medio lungo termine;4;Interessi passivi su finanziamenti a medio lungo termine a Imprese;3;Interessi passivi a Cassa Depositi e Prestiti SPA su mutui e altri finanziamenti a medio lungo termine;18-12-2018;
1467;29;0;"3.436,78";"62.093,15";CASSA DEPOSITI E PRESTITI; ;Rata Interessi  2^Sem. 31/12/18 Sistemazione strade;18-12-2018;1941;0;231;1;Spese correnti;7;Interessi passivi;5;Interessi su Mutui e altri finanziamenti a medio lungo termine;4;Interessi passivi su finanziamenti a medio lungo termine a Imprese;3;Interessi passivi a Cassa Depositi e Prestiti SPA su mutui e altri finanziamenti a medio lungo termine;18-12-2018;
1467;30;0;"3.445,89";"62.093,15";CASSA DEPOSITI E PRESTITI; ;Rata Interessi  2^Sem. 31/12/18 Rifacimento strade;18-12-2018;1941;0;231;1;Spese correnti;7;Interessi passivi;5;Interessi su Mutui e altri finanziamenti a medio lungo termine;4;Interessi passivi su finanziamenti a medio lungo termine a Imprese;3;Interessi passivi a Cassa Depositi e Prestiti SPA su mutui e altri finanziamenti a medio lungo termine;18-12-2018;
1467;31;0;"3.454,97";"62.093,15";CASSA DEPOSITI E PRESTITI; ;Rata Interessi  2^Sem. 31/12/18 SISTEMAZIONE STRADE COMUNALI ESTERNE;18-12-2018;1941;0;231;1;Spese correnti;7;Interessi passivi;5;Interessi su Mutui e altri finanziamenti a medio lungo termine;4;Interessi passivi su finanziamenti a medio lungo termine a Imprese;3;Interessi passivi a Cassa Depositi e Prestiti SPA su mutui e altri finanziamenti a medio lungo termine;18-12-2018;
1467;32;0;"3.658,93";"62.093,15";CASSA DEPOSITI E PRESTITI; ;Rata Interessi  2^Sem. 31/12/18 SISTEMAZIONE PIAZZA GARIBALDI;18-12-2018;1941;0;231;1;Spese correnti;7;Interessi passivi;5;Interessi su Mutui e altri finanziamenti a medio lungo termine;4;Interessi passivi su finanziamenti a medio lungo termine a Imprese;3;Interessi passivi a Cassa Depositi e Prestiti SPA su mutui e altri finanziamenti a medio lungo termine;18-12-2018;
1467;33;0;"3.963,84";"62.093,15";CASSA DEPOSITI E PRESTITI; ;Rata Interessi  2^Sem. 31/12/18 LAVORI CHIESA SAN ROCCO E VICOLI;18-12-2018;1941;0;231;1;Spese correnti;7;Interessi passivi;5;Interessi su Mutui e altri finanziamenti a medio lungo termine;4;Interessi passivi su finanziamenti a medio lungo termine a Imprese;3;Interessi passivi a Cassa Depositi e Prestiti SPA su mutui e altri finanziamenti a medio lungo termine;18-12-2018;
1467;34;0;"4.478,85";"62.093,15";CASSA DEPOSITI E PRESTITI; ;Rata Interessi  2^Sem. 31/12/18 RIFACIMENTO STRADA N. SAURO;18-12-2018;1941;0;231;1;Spese correnti;7;Interessi passivi;5;Interessi su Mutui e altri finanziamenti a medio lungo termine;4;Interessi passivi su finanziamenti a medio lungo termine a Imprese;3;Interessi passivi a Cassa Depositi e Prestiti SPA su mutui e altri finanziamenti a medio lungo termine;18-12-2018;
1467;35;0;"4.573,66";"62.093,15";CASSA DEPOSITI E PRESTITI; ;Rata Interessi  2^Sem. 31/12/18 CONSOLIDAMENTO PROMONTORIO DANNUNZIANO;18-12-2018;1941;0;231;1;Spese correnti;7;Interessi passivi;5;Interessi su Mutui e altri finanziamenti a medio lungo termine;4;Interessi passivi su finanziamenti a medio lungo termine a Imprese;3;Interessi passivi a Cassa Depositi e Prestiti SPA su mutui e altri finanziamenti a medio lungo termine;18-12-2018;
1467;36;0;"4.943,03";"62.093,15";CASSA DEPOSITI E PRESTITI; ;Rata Interessi  2^Sem. 31/12/18 SISTEMAZIONE PONTE FELTRINO;18-12-2018;1941;0;231;1;Spese correnti;7;Interessi passivi;5;Interessi su Mutui e altri finanziamenti a medio lungo termine;4;Interessi passivi su finanziamenti a medio lungo termine a Imprese;3;Interessi passivi a Cassa Depositi e Prestiti SPA su mutui e altri finanziamenti a medio lungo termine;18-12-2018;
1468;1;0;"195,64";"8.214,30";CASSA DEPOSITI E PRESTITI; ;Rata Interessi  2^Sem. 31/12/18 IMPIANTO PUBBLICA ILLUMINAZ.;18-12-2018;1947;0;232;1;Spese correnti;7;Interessi passivi;5;Interessi su Mutui e altri finanziamenti a medio lungo termine;4;Interessi passivi su finanziamenti a medio lungo termine a Imprese;3;Interessi passivi a Cassa Depositi e Prestiti SPA su mutui e altri finanziamenti a medio lungo termine;18-12-2018;
1468;2;0;"885,69";"8.214,30";CASSA DEPOSITI E PRESTITI; ;Rata Interessi  2^Sem. 31/12/18 IMPIANTO PUBBLICA ILLUMINAZ.;18-12-2018;1947;0;232;1;Spese correnti;7;Interessi passivi;5;Interessi su Mutui e altri finanziamenti a medio lungo termine;4;Interessi passivi su finanziamenti a medio lungo termine a Imprese;3;Interessi passivi a Cassa Depositi e Prestiti SPA su mutui e altri finanziamenti a medio lungo termine;18-12-2018;
1468;3;0;"996,85";"8.214,30";CASSA DEPOSITI E PRESTITI; ;Rata Interessi  2^Sem. 31/12/18 Adeguamento pubblica illumin.;18-12-2018;1947;0;232;1;Spese correnti;7;Interessi passivi;5;Interessi su Mutui e altri finanziamenti a medio lungo termine;4;Interessi passivi su finanziamenti a medio lungo termine a Imprese;3;Interessi passivi a Cassa Depositi e Prestiti SPA su mutui e altri finanziamenti a medio lungo termine;18-12-2018;
1468;4;0;"1.126,02";"8.214,30";CASSA DEPOSITI E PRESTITI; ;Rata Interessi  2^Sem. 31/12/18 Impianto pubblica illumin.;18-12-2018;1947;0;232;1;Spese correnti;7;Interessi passivi;5;Interessi su Mutui e altri finanziamenti a medio lungo termine;4;Interessi passivi su finanziamenti a medio lungo termine a Imprese;3;Interessi passivi a Cassa Depositi e Prestiti SPA su mutui e altri finanziamenti a medio lungo termine;18-12-2018;
1468;5;0;"1.173,87";"8.214,30";CASSA DEPOSITI E PRESTITI; ;Rata Interessi  2^Sem. 31/12/18 Manutenzione Pubblica illumin.;18-12-2018;1947;0;232;1;Spese correnti;7;Interessi passivi;5;Interessi su Mutui e altri finanziamenti a medio lungo termine;4;Interessi passivi su finanziamenti a medio lungo termine a Imprese;3;Interessi passivi a Cassa Depositi e Prestiti SPA su mutui e altri finanziamenti a medio lungo termine;18-12-2018;
1468;6;0;"1.644,44";"8.214,30";CASSA DEPOSITI E PRESTITI; ;Rata Interessi  2^Sem. 31/12/18 ADEGUAMENTO IMPIANTO PUBBLICA ILLUMINAZIONE.;18-12-2018;1947;0;232;1;Spese correnti;7;Interessi passivi;5;Interessi su Mutui e altri finanziamenti a medio lungo termine;4;Interessi passivi su finanziamenti a medio lungo termine a Imprese;3;Interessi passivi a Cassa Depositi e Prestiti SPA su mutui e altri finanziamenti a medio lungo termine;18-12-2018;
1468;7;0;"2.191,79";"8.214,30";CASSA DEPOSITI E PRESTITI; ;Rata Interessi  2^Sem. 31/12/18 Ampliamento pubblica illumin.;18-12-2018;1947;0;232;1;Spese correnti;7;Interessi passivi;5;Interessi su Mutui e altri finanziamenti a medio lungo termine;4;Interessi passivi su finanziamenti a medio lungo termine a Imprese;3;Interessi passivi a Cassa Depositi e Prestiti SPA su mutui e altri finanziamenti a medio lungo termine;18-12-2018;
1469;1;0;"577,24";"2.063,48";CASSA DEPOSITI E PRESTITI; ;Rata Interessi  2^Sem. 31/12/18 COSTRUZIONE MERCATO;18-12-2018;2008;0;233;1;Spese correnti;7;Interessi passivi;5;Interessi su Mutui e altri finanziamenti a medio lungo termine;4;Interessi passivi su finanziamenti a medio lungo termine a Imprese;3;Interessi passivi a Cassa Depositi e Prestiti SPA su mutui e altri finanziamenti a medio lungo termine;18-12-2018;
1469;2;0;"680,29";"2.063,48";CASSA DEPOSITI E PRESTITI; ;Rata Interessi  2^Sem. 31/12/18 COSTRUZIONE MERCATO;18-12-2018;2008;0;233;1;Spese correnti;7;Interessi passivi;5;Interessi su Mutui e altri finanziamenti a medio lungo termine;4;Interessi passivi su finanziamenti a medio lungo termine a Imprese;3;Interessi passivi a Cassa Depositi e Prestiti SPA su mutui e altri finanziamenti a medio lungo termine;18-12-2018;
1469;3;0;"805,95";"2.063,48";CASSA DEPOSITI E PRESTITI; ;Rata Interessi  2^Sem. 31/12/18 COSTRUZIONE MERCATO;18-12-2018;2008;0;233;1;Spese correnti;7;Interessi passivi;5;Interessi su Mutui e altri finanziamenti a medio lungo termine;4;Interessi passivi su finanziamenti a medio lungo termine a Imprese;3;Interessi passivi a Cassa Depositi e Prestiti SPA su mutui e altri finanziamenti a medio lungo termine;18-12-2018;
1470;1;0;"191,57";"2.235,40";CASSA DEPOSITI E PRESTITI; ;Rata Interessi  2^Sem. 31/12/18 Costruzione mattatoio;18-12-2018;2029;0;234;1;Spese correnti;7;Interessi passivi;5;Interessi su Mutui e altri finanziamenti a medio lungo termine;4;Interessi passivi su finanziamenti a medio lungo termine a Imprese;3;Interessi passivi a Cassa Depositi e Prestiti SPA su mutui e altri finanziamenti a medio lungo termine;18-12-2018;
1470;2;0;"878,01";"2.235,40";CASSA DEPOSITI E PRESTITI; ;Rata Interessi  2^Sem. 31/12/18 RISTRUTTURAZIONE TRABOCCO TURCHINO.;18-12-2018;2029;0;234;1;Spese correnti;7;Interessi passivi;5;Interessi su Mutui e altri finanziamenti a medio lungo termine;4;Interessi passivi su finanziamenti a medio lungo termine a Imprese;3;Interessi passivi a Cassa Depositi e Prestiti SPA su mutui e altri finanziamenti a medio lungo termine;18-12-2018;
1470;3;0;"1.165,82";"2.235,40";CASSA DEPOSITI E PRESTITI; ;Rata Interessi  2^Sem. 31/12/18 COSTRUZIONE MATTATOIO;18-12-2018;2029;0;234;1;Spese correnti;7;Interessi passivi;5;Interessi su Mutui e altri finanziamenti a medio lungo termine;4;Interessi passivi su finanziamenti a medio lungo termine a Imprese;3;Interessi passivi a Cassa Depositi e Prestiti SPA su mutui e altri finanziamenti a medio lungo termine;18-12-2018;
1471;1;0;"1.596,17";"1.596,17";CASSA DEPOSITI E PRESTITI; ;Rata Interessi  2^Sem. 31/12/18 Acquisizione immobile;18-12-2018;2095;0;235;1;Spese correnti;7;Interessi passivi;5;Interessi su Mutui e altri finanziamenti a medio lungo termine;4;Interessi passivi su finanziamenti a medio lungo termine a Imprese;3;Interessi passivi a Cassa Depositi e Prestiti SPA su mutui e altri finanziamenti a medio lungo termine;18-12-2018;
1472;1;0;"377,23";"377,23";MINISTERO DELL'ECONOMIA E DELLE FINANZE; ;Rata Interessi  2^Sem. 31/12/18 COMPLETAMENTO ZONA ARTIGIANALE;18-12-2018;2113;0;236;1;Spese correnti;7;Interessi passivi;5;Interessi su Mutui e altri finanziamenti a medio lungo termine;4;Interessi passivi su finanziamenti a medio lungo termine a Imprese;3;Interessi passivi a Cassa Depositi e Prestiti SPA su mutui e altri finanziamenti a medio lungo termine;18-12-2018;
1473;1;0;"239,87";"3.253,17";CASSA DEPOSITI E PRESTITI; ;Rata Interessi  2^Sem. 31/12/18 OPERE DI URBANIZZAZIONE;18-12-2018;2113;0;237;1;Spese correnti;7;Interessi passivi;5;Interessi su Mutui e altri finanziamenti a medio lungo termine;4;Interessi passivi su finanziamenti a medio lungo termine a Imprese;3;Interessi passivi a Cassa Depositi e Prestiti SPA su mutui e altri finanziamenti a medio lungo termine;18-12-2018;
1473;2;0;"364,52";"3.253,17";CASSA DEPOSITI E PRESTITI; ;Rata Interessi  2^Sem. 31/12/18 COMPLETAMENTO ZONA ARTIGIANALE;18-12-2018;2113;0;237;1;Spese correnti;7;Interessi passivi;5;Interessi su Mutui e altri finanziamenti a medio lungo termine;4;Interessi passivi su finanziamenti a medio lungo termine a Imprese;3;Interessi passivi a Cassa Depositi e Prestiti SPA su mutui e altri finanziamenti a medio lungo termine;18-12-2018;
1473;3;0;"1.199,32";"3.253,17";CASSA DEPOSITI E PRESTITI; ;Rata Interessi  2^Sem. 31/12/18 OPERE URBANIZZAZIONE;18-12-2018;2113;0;237;1;Spese correnti;7;Interessi passivi;5;Interessi su Mutui e altri finanziamenti a medio lungo termine;4;Interessi passivi su finanziamenti a medio lungo termine a Imprese;3;Interessi passivi a Cassa Depositi e Prestiti SPA su mutui e altri finanziamenti a medio lungo termine;18-12-2018;
1473;4;0;"1.449,46";"3.253,17";CASSA DEPOSITI E PRESTITI; ;Rata Interessi  2^Sem. 31/12/18 COSTRUZIONE ZONE ARTIGIANALI;18-12-2018;2113;0;237;1;Spese correnti;7;Interessi passivi;5;Interessi su Mutui e altri finanziamenti a medio lungo termine;4;Interessi passivi su finanziamenti a medio lungo termine a Imprese;3;Interessi passivi a Cassa Depositi e Prestiti SPA su mutui e altri finanziamenti a medio lungo termine;18-12-2018;
1474;1;0;"124,41";"124,41";MINISTERO DELL'ECONOMIA E DELLE FINANZE; ;Rata Interessi  2^Sem. 31/12/18 COSTRUZIONE METANODOTTO;18-12-2018;2114;0;238;1;Spese correnti;7;Interessi passivi;5;Interessi su Mutui e altri finanziamenti a medio lungo termine;4;Interessi passivi su finanziamenti a medio lungo termine a Imprese;3;Interessi passivi a Cassa Depositi e Prestiti SPA su mutui e altri finanziamenti a medio lungo termine;18-12-2018;
1475;1;0;"919,98";"13.994,29";CASSA DEPOSITI E PRESTITI; ;Rata Interessi  2^Sem. 31/12/18 COSTRUZIONE RETE GAS METANO;18-12-2018;2114;0;239;1;Spese correnti;7;Interessi passivi;5;Interessi su Mutui e altri finanziamenti a medio lungo termine;4;Interessi passivi su finanziamenti a medio lungo termine a Imprese;3;Interessi passivi a Cassa Depositi e Prestiti SPA su mutui e altri finanziamenti a medio lungo termine;18-12-2018;
1475;2;0;"1.126,25";"13.994,29";CASSA DEPOSITI E PRESTITI; ;Rata Interessi  2^Sem. 31/12/18 Ampliamento rete gas metano;18-12-2018;2114;0;239;1;Spese correnti;7;Interessi passivi;5;Interessi su Mutui e altri finanziamenti a medio lungo termine;4;Interessi passivi su finanziamenti a medio lungo termine a Imprese;3;Interessi passivi a Cassa Depositi e Prestiti SPA su mutui e altri finanziamenti a medio lungo termine;18-12-2018;
1475;3;0;"1.181,60";"13.994,29";CASSA DEPOSITI E PRESTITI; ;Rata Interessi  2^Sem. 31/12/18 Ampliamento rete gas metano;18-12-2018;2114;0;239;1;Spese correnti;7;Interessi passivi;5;Interessi su Mutui e altri finanziamenti a medio lungo termine;4;Interessi passivi su finanziamenti a medio lungo termine a Imprese;3;Interessi passivi a Cassa Depositi e Prestiti SPA su mutui e altri finanziamenti a medio lungo termine;18-12-2018;
1475;4;0;"1.645,12";"13.994,29";CASSA DEPOSITI E PRESTITI; ;Rata Interessi  2^Sem. 31/12/18 Ampliamento rete gas metano;18-12-2018;2114;0;239;1;Spese correnti;7;Interessi passivi;5;Interessi su Mutui e altri finanziamenti a medio lungo termine;4;Interessi passivi su finanziamenti a medio lungo termine a Imprese;3;Interessi passivi a Cassa Depositi e Prestiti SPA su mutui e altri finanziamenti a medio lungo termine;18-12-2018;
1475;5;0;"2.378,14";"13.994,29";CASSA DEPOSITI E PRESTITI; ;Rata Interessi  2^Sem. 31/12/18 Costruzione metanodotto;18-12-2018;2114;0;239;1;Spese correnti;7;Interessi passivi;5;Interessi su Mutui e altri finanziamenti a medio lungo termine;4;Interessi passivi su finanziamenti a medio lungo termine a Imprese;3;Interessi passivi a Cassa Depositi e Prestiti SPA su mutui e altri finanziamenti a medio lungo termine;18-12-2018;
1475;6;0;"6.743,20";"13.994,29";CASSA DEPOSITI E PRESTITI; ;Rata Interessi  2^Sem. 31/12/18 COSTRUZIONE IMPIANTO RETE GAS;18-12-2018;2114;0;239;1;Spese correnti;7;Interessi passivi;5;Interessi su Mutui e altri finanziamenti a medio lungo termine;4;Interessi passivi su finanziamenti a medio lungo termine a Imprese;3;Interessi passivi a Cassa Depositi e Prestiti SPA su mutui e altri finanziamenti a medio lungo termine;18-12-2018;
1480;1;0;"17.371,57";"17.371,57";Iezzi Fiorangelo;Z7B22DBC94;SALDO Fatt.n. FATTPA 14_18  del 27/11/2018 Acconto per studio geologico relativo all'intervento di dissesto Vie D'Annunzio e San Rocco;18-12-2018;901202002;0;70;2;Spese in conto capitale;2;Investimenti fissi lordi e acquisto di terreni;1;Beni materiali;9;Beni immobili;14;Opere per la sistemazione del suolo;18-12-2018;
1481;1;0;"7.612,80";"7.612,80";SOCIETA' SIS SRL;Z7B22DBC94;SALDO Fatt.n. 41/PA  del 20/11/2018 VERIFICA PROGETTO ESECUTIVO INTERVENTO DI DISSESTO VIE D'ANNUNZIO E SAN ROCCO.;18-12-2018;901202002;0;196;2;Spese in conto capitale;2;Investimenti fissi lordi e acquisto di terreni;1;Beni materiali;9;Beni immobili;14;Opere per la sistemazione del suolo;18-12-2018;
1482;1;0;"37.669,82";"37.669,82";ABRUZZI SONDA DEL GEOM. DI FRANCO LORENZO E C. S.A.S.;Z522332F85;SALDO Fatt.n. FE011.  del 25/05/2018 Interventi di messa in sicurezza e per l'aumento della resilienza dei territori più esposti a rischio idrogeologico e di erosione costiera Indagini geologiche;18-12-2018;901202002;0;85;2;Spese in conto capitale;2;Investimenti fissi lordi e acquisto di terreni;1;Beni materiali;9;Beni immobili;14;Opere per la sistemazione del suolo;18-12-2018;
1483;1;0;"32.988,80";"32.988,80";Geina S.r.l.;Z95209E96B;SALDO Fatt.n. 14/FE  del 28/11/2018 PROGRAMMA POR FERS ABRUZZO 2014-2020 ASSE V RIDUZIONE DEL RISCHIO IDROGEOLOGICO;18-12-2018;901202002;0;69;2;Spese in conto capitale;2;Investimenti fissi lordi e acquisto di terreni;1;Beni materiali;9;Beni immobili;14;Opere per la sistemazione del suolo;18-12-2018;
1484;1;0;"1.750,00";"1.750,00";SOC. CONS. SANGRO AVENTINO a r.l.; ;"PROGETTO ""LA COSTA DEI TRABOCCHI, UNA TERRA DA SCOPRIRE"" - LIQUIDAZIONE CONTRIBUTO IN FAVORE DELLA SOC. CONS. SANGRO AVENTINO A R.L.";20-12-2018;2081;0;75;1;Spese correnti;4;Trasferimenti correnti;3;Trasferimenti correnti a Imprese;2;Trasferimenti correnti a altre imprese partecipate;1;Trasferimenti correnti a altre imprese partecipate;20-12-2018;
1490;1;0;"6.000,00";"6.000,00";MEADE Harry Guido; ;CONTRATTO  CESSIONE DI DIRITTO DI SUPERFICIE DI TERRENO AGRICOLO AI FINI DELLA REALIZZAZIONE DI UN IMPIANTO FOTOVOLTAICO- ANNO 2018;20-12-2018;2164;0;314;1;Spese correnti;3;Acquisto di beni e servizi;2;Acquisto di servizi;7;Utilizzo di beni di terzi;5;Fitti di terreni e giacimenti;20-12-2018;
1492;1;0;"7.100,25";"7.100,25";CONSORZIO COOPERATIVE SOCIALI S.G.S.;649009322C;ACCONTO Fatt.n. 865/10  del 02/08/2018 Gestione asilo nido mese di luglio 2018.;20-12-2018;1421;0;290;1;Spese correnti;3;Acquisto di beni e servizi;2;Acquisto di servizi;15;Contratti di servizio pubblico;10;Contratti di servizio di asilo nido;20-12-2018;
1493;1;0;"2.839,64";"2.839,64";CONSORZIO COOPERATIVE SOCIALI S.G.S.;649009322C;SALDO Fatt.n. 865/10  del 02/08/2018 Gestione asilo nido mese di luglio 2018.;20-12-2018;1421;0;295;1;Spese correnti;3;Acquisto di beni e servizi;2;Acquisto di servizi;15;Contratti di servizio pubblico;10;Contratti di servizio di asilo nido;20-12-2018;
1504;1;0;"55,00";"55,00";ECONOMO COMUNALE - PETACCIA Silvana; ;Rimborso bollette;27-12-2018;1120;0;20;1;Spese correnti;3;Acquisto di beni e servizi;1;Acquisto di beni;2;Altri beni di consumo;6;Materiale informatico;27-12-2018;
1505;1;0;"192,90";"192,90";ECONOMO COMUNALE - PETACCIA Silvana; ;Rimborso bollette;27-12-2018;1121;0;167;1;Spese correnti;3;Acquisto di beni e servizi;1;Acquisto di beni;2;Altri beni di consumo;1;"Carta, cancelleria e stampati";27-12-2018;
1506;1;0;"271,76";"271,76";ECONOMO COMUNALE - PETACCIA Silvana; ;Rimborso bollette;27-12-2018;1122;0;11;1;Spese correnti;3;Acquisto di beni e servizi;1;Acquisto di beni;2;Altri beni di consumo;1;"Carta, cancelleria e stampati";27-12-2018;
1507;1;0;"120,40";"120,40";ECONOMO COMUNALE - PETACCIA Silvana; ;Rimborso bollette;27-12-2018;1123;0;10;1;Spese correnti;3;Acquisto di beni e servizi;1;Acquisto di beni;2;Altri beni di consumo;999;Altri beni e materiali di consumo n.a.c.;27-12-2018;
1508;1;0;"142,40";"142,40";ECONOMO COMUNALE - PETACCIA Silvana; ;Rimborso bollette;27-12-2018;1125;0;58;1;Spese correnti;3;Acquisto di beni e servizi;1;Acquisto di beni;2;Altri beni di consumo;999;Altri beni e materiali di consumo n.a.c.;27-12-2018;
1510;1;0;"32,67";"184,03";COMMISSIONI BANCOMAT;Z612012EA4;"COMMISSIONI PAGOBANCOMAT 52324-COMMISSIONI PAGOBANCOMAT 5232423 00001 OTTOBRE 2018 ; 0,000   SU STESSA BANCA SU EURO 43,7 (P.     205 -R.    1357)";31-12-2018;1053;0;261;1;Spese correnti;3;Acquisto di beni e servizi;2;Acquisto di servizi;19;Servizi informatici e di telecomunicazioni;1;Gestione e manutenzione applicazioni;31-12-2018;
1510;2;0;"47,81";"184,03";COMMISSIONI BANCOMAT;Z612012EA4;"COMMISSIONI PAGOBANCOMAT 52324-COMMISSIONI PAGOBANCOMAT 5232423 00001 NOVEMBRE 2018 ; 2,000   SU STESSA BANCA SU EURO 58, (P.     232 -R.    1604)";31-12-2018;1053;0;261;1;Spese correnti;3;Acquisto di beni e servizi;2;Acquisto di servizi;19;Servizi informatici e di telecomunicazioni;1;Gestione e manutenzione applicazioni;31-12-2018;
1510;3;0;"29,94";"184,03";Unione di Banche Italiane S.p.A.;Z612012EA4;ADDEBITO UNIONE DI BANCHE ITAL-ADDEBITO UNIONE DI BANCHE ITALIANE S.P. PER SERVIZIO ACQUIRING POS CIRCUITI INTERNAZIONALI (P.     198 -R.    1321);31-12-2018;1053;0;261;1;Spese correnti;3;Acquisto di beni e servizi;2;Acquisto di servizi;19;Servizi informatici e di telecomunicazioni;1;Gestione e manutenzione applicazioni;31-12-2018;
1510;4;0;"73,61";"184,03";Unione di Banche Italiane S.p.A.;Z612012EA4;ADDEBITO UNIONE DI BANCHE ITAL-ADDEBITO UNIONE DI BANCHE ITALIANE S.P. PER SERVIZIO ACQUIRING POS CIRCUITI INTERNAZIONALI (P.     220 -R.    1464);31-12-2018;1053;0;261;1;Spese correnti;3;Acquisto di beni e servizi;2;Acquisto di servizi;19;Servizi informatici e di telecomunicazioni;1;Gestione e manutenzione applicazioni;31-12-2018;
1511;1;0;"140,56";"275,00";CARTASI; ;ADDEBITO DIRETTO SDD DA CARTAS-ADDEBITO DIRETTO SDD DA CARTASI PER CARTASI - FT. NR. 000003206618 DEL 30/09/2018 (COD.PAD (P.     182 -R.    1252);31-12-2018;1059;0;99999;1;Spese correnti;3;Acquisto di beni e servizi;2;Acquisto di servizi;16;Servizi amministrativi;1;Pubblicazione bandi di gara;31-12-2018;
1511;2;0;"10,56";"275,00";COMMISSIONI BANCOMAT; ;"COMMISSIONI PAGOBANCOMAT 52324-COMMISSIONI PAGOBANCOMAT 5232423 00001 SETTEMBRE 2018 ; 2,000   ALTRE BANCHE SU EURO 527,9 (P.     188 -R.    1258)";31-12-2018;1059;0;99999;1;Spese correnti;3;Acquisto di beni e servizi;2;Acquisto di servizi;16;Servizi amministrativi;1;Pubblicazione bandi di gara;31-12-2018;
1511;3;0;"20,04";"275,00";Unione di Banche Italiane S.p.A.; ;ADDEBITO UNIONE DI BANCHE ITAL-ADDEBITO UNIONE DI BANCHE ITALIANE S.P. PER SERVIZIO ACQUIRING POS CIRCUITI INTERNAZIONALI (P.     157 -R.    1142);31-12-2018;1059;0;99999;1;Spese correnti;3;Acquisto di beni e servizi;2;Acquisto di servizi;16;Servizi amministrativi;1;Pubblicazione bandi di gara;31-12-2018;
1511;4;0;"50,55";"275,00";Unione di Banche Italiane S.p.A.; ;ADDEBITO UNIONE DI BANCHE ITAL-ADDEBITO UNIONE DI BANCHE ITALIANE S.P. PER SERVIZIO ACQUIRING POS CIRCUITI INTERNAZIONALI (P.     198 -R.    1321);31-12-2018;1059;0;99999;1;Spese correnti;3;Acquisto di beni e servizi;2;Acquisto di servizi;16;Servizi amministrativi;1;Pubblicazione bandi di gara;31-12-2018;
1511;5;0;"53,29";"275,00";Unione di Banche Italiane S.p.A.; ;ADDEBITO UNIONE DI BANCHE ITAL-ADDEBITO UNIONE DI BANCHE ITALIANE S.P. PER SERVIZIO ACQUIRING POS CIRCUITI INTERNAZIONALI (P.     175 -R.    1213);31-12-2018;1059;0;99999;1;Spese correnti;3;Acquisto di beni e servizi;2;Acquisto di servizi;16;Servizi amministrativi;1;Pubblicazione bandi di gara;31-12-2018;
